Publisher Label,Publisher URI,Body Name,Service Area Categorisation,Service Division Categorisation,Expenses Type,Date,Transaction Number,Amount,Capital or Revenue,Supplier Name,Merchant Category
Peterborough,http://opendatacommunities.org/id/unitary-authority/peterborough,Peterborough City Council,Corporate,Corporate,Non Revenue,03/05/2017 00:00,30103962,33004.99,Capital,Clegg Construction Ltd,Building And Site Works
Peterborough,http://opendatacommunities.org/id/unitary-authority/peterborough,Peterborough City Council,City Servs & Communications,Regulatory Services,Agency Staff,03/05/2017 00:00,30109869,1110,Revenue,Osborne Richardson,External Temporary Staff
Peterborough,http://opendatacommunities.org/id/unitary-authority/peterborough,Peterborough City Council,Children's & Safeguarding,Children's Social Care,Agency Staff,03/05/2017 00:00,30119582,1300,Revenue,Sanctuary Personnel Ltd,External Temporary Staff
Peterborough,http://opendatacommunities.org/id/unitary-authority/peterborough,Peterborough City Council,City Servs & Communications,Regulatory Services,Services,03/05/2017 00:00,30123582,1300,Revenue,Public Analyst Scientific Services,Hired Services
Peterborough,http://opendatacommunities.org/id/unitary-authority/peterborough,Peterborough City Council,Adult Services & Communities - Adults,Independent Sector Placements,Services,03/05/2017 00:00,30123734,6484.8,Revenue,Voyage,Home Care
Peterborough,http://opendatacommunities.org/id/unitary-authority/peterborough,Peterborough City Council,Adult Services & Communities - Adults,Independent Sector Placements,Services,03/05/2017 00:00,30123735,2529.6,Revenue,Voyage,Home Care
Peterborough,http://opendatacommunities.org/id/unitary-authority/peterborough,Peterborough City Council,Adult Services & Communities - Adults,Independent Sector Placements,Services,03/05/2017 00:00,30123737,4062.48,Revenue,Voyage,Home Care
Peterborough,http://opendatacommunities.org/id/unitary-authority/peterborough,Peterborough City Council,Adult Services & Communities - Adults,Independent Sector Placements,Services,03/05/2017 00:00,30123738,3365.44,Revenue,Voyage,Home Care
Peterborough,http://opendatacommunities.org/id/unitary-authority/peterborough,Peterborough City Council,Adult Services & Communities - Adults,Independent Sector Placements,Services,03/05/2017 00:00,30123740,6421.6,Revenue,Voyage,Home Care
Peterborough,http://opendatacommunities.org/id/unitary-authority/peterborough,Peterborough City Council,Adult Services & Communities - Adults,Independent Sector Placements,Services,03/05/2017 00:00,30123741,4235.44,Revenue,Voyage,Home Care
Peterborough,http://opendatacommunities.org/id/unitary-authority/peterborough,Peterborough City Council,Adult Services & Communities - Adults,Independent Sector Placements,Services,03/05/2017 00:00,30123742,4235.44,Revenue,Voyage,Home Care
Peterborough,http://opendatacommunities.org/id/unitary-authority/peterborough,Peterborough City Council,Adult Services & Communities - Adults,Independent Sector Placements,Services,03/05/2017 00:00,30123743,5326.4,Revenue,Voyage,Residential Care
Peterborough,http://opendatacommunities.org/id/unitary-authority/peterborough,Peterborough City Council,Adult Services & Communities - Adults,Independent Sector Placements,Services,03/05/2017 00:00,30123747,4283.4,Revenue,Voyage,Residential Care
Peterborough,http://opendatacommunities.org/id/unitary-authority/peterborough,Peterborough City Council,Adult Services & Communities - Adults,Independent Sector Placements,Services,03/05/2017 00:00,30123748,4222.4,Revenue,Voyage,Residential Care
Peterborough,http://opendatacommunities.org/id/unitary-authority/peterborough,Peterborough City Council,Adult Services & Communities - Adults,Independent Sector Placements,Services,03/05/2017 00:00,30123750,3734.2,Revenue,Voyage,Residential Care
Peterborough,http://opendatacommunities.org/id/unitary-authority/peterborough,Peterborough City Council,Adult Services & Communities - Adults,Independent Sector Placements,Services,03/05/2017 00:00,30123752,4415.2,Revenue,Voyage,Residential Care
Peterborough,http://opendatacommunities.org/id/unitary-authority/peterborough,Peterborough City Council,Adult Services & Communities - Adults,Independent Sector Placements,Services,03/05/2017 00:00,30123870,3655.76,Revenue,Voyage,Residential Care
Peterborough,http://opendatacommunities.org/id/unitary-authority/peterborough,Peterborough City Council,Children's & Safeguarding,Children's Social Care,Agency Staff,03/05/2017 00:00,30123927,5026.45,Revenue,Caritas Recruitment,External Temporary Staff
Peterborough,http://opendatacommunities.org/id/unitary-authority/peterborough,Peterborough City Council,Corporate,Corporate,Non Revenue,03/05/2017 00:00,30123990,8676.15,Capital,The Froglife Trust,Grant Payment
Peterborough,http://opendatacommunities.org/id/unitary-authority/peterborough,Peterborough City Council,Education,Pupil Referral Unit,Agency Staff,03/05/2017 00:00,30124225,1057.12,Revenue,Teaching Personnel Ltd,Supply Teachers
Peterborough,http://opendatacommunities.org/id/unitary-authority/peterborough,Peterborough City Council,Legal & Democratic,Democratic Services,Services,03/05/2017 00:00,30124337,11480,Revenue,Penna Plc,Consultants Fees
Peterborough,http://opendatacommunities.org/id/unitary-authority/peterborough,Peterborough City Council,Financial Services,Finance,Agency Staff,03/05/2017 00:00,30124338,13275,Revenue,Penna Plc,External Temporary Staff
Peterborough,http://opendatacommunities.org/id/unitary-authority/peterborough,Peterborough City Council,Adults and Communities - Communities,Service Director - Adults & Communities,Services,03/05/2017 00:00,30124593,1087.5,Revenue,City College Peterborough,Projects
Peterborough,http://opendatacommunities.org/id/unitary-authority/peterborough,Peterborough City Council,Development and Construction,Development Management,Services,03/05/2017 00:00,30124601,774,Revenue,Johnston Press Midlands Division,Advertising
Peterborough,http://opendatacommunities.org/id/unitary-authority/peterborough,Peterborough City Council,Children's & Safeguarding,Child Health,Services,03/05/2017 00:00,30124624,6875,Revenue,Dial Peterborough,Purchased Social Care Services
Peterborough,http://opendatacommunities.org/id/unitary-authority/peterborough,Peterborough City Council,Legal & Democratic,Legal Services,Services,03/05/2017 00:00,30124695,600,Revenue,"Thomas, Mrs Paula",Legal Costs
Peterborough,http://opendatacommunities.org/id/unitary-authority/peterborough,Peterborough City Council,Peterborough Highway Services,Transport & Infrastructure Commissioning,Services,03/05/2017 00:00,30124705,181566.66,Revenue,Stagecoach in Peterborough,Contractors
Peterborough,http://opendatacommunities.org/id/unitary-authority/peterborough,Peterborough City Council,Peterborough Highway Services,Transport & Infrastructure Commissioning,Services,03/05/2017 00:00,30124706,181566.66,Revenue,Stagecoach in Peterborough,Contractors
Peterborough,http://opendatacommunities.org/id/unitary-authority/peterborough,Peterborough City Council,Legal & Democratic,Legal Services,Agency Staff,03/05/2017 00:00,30124721,1771.93,Revenue,Venn Group Ltd,External Temporary Staff
Peterborough,http://opendatacommunities.org/id/unitary-authority/peterborough,Peterborough City Council,Legal & Democratic,Legal Services,Agency Staff,03/05/2017 00:00,30124722,638,Revenue,Venn Group Ltd,External Temporary Staff
Peterborough,http://opendatacommunities.org/id/unitary-authority/peterborough,Peterborough City Council,City Servs & Communications,"Markets, Tourism & Events",Services,03/05/2017 00:00,30124797,1064,Revenue,Stagecoach in Peterborough,Contractors
Peterborough,http://opendatacommunities.org/id/unitary-authority/peterborough,Peterborough City Council,Legal & Democratic,Legal Services,Services,03/05/2017 00:00,30124799,500,Revenue,"Newport, Mr Ian",Legal Costs
Peterborough,http://opendatacommunities.org/id/unitary-authority/peterborough,Peterborough City Council,Peterborough Highway Services,Highway & Drainage Control,Agency Staff,03/05/2017 00:00,30124815,1110,Revenue,Matchtech,External Temporary Staff
Peterborough,http://opendatacommunities.org/id/unitary-authority/peterborough,Peterborough City Council,Peterborough Highway Services,Highway & Drainage Control,Agency Staff,03/05/2017 00:00,30124816,1465.2,Revenue,Matchtech,External Temporary Staff
Peterborough,http://opendatacommunities.org/id/unitary-authority/peterborough,Peterborough City Council,Business Management and Commercial Operations,Clare Lodge,Agency Staff,03/05/2017 00:00,30124980,1085,Revenue,Southview Building Solutions Ltd,External Temporary Staff
Peterborough,http://opendatacommunities.org/id/unitary-authority/peterborough,Peterborough City Council,Adult Services & Communities - Adults,Finance,Agency Staff,03/05/2017 00:00,30125130,3325,Revenue,Willowmead Consultants Ltd,External Temporary Staff
Peterborough,http://opendatacommunities.org/id/unitary-authority/peterborough,Peterborough City Council,Amey Peterborough & Waste Management,Waste & Operational Svs Mgmt,Repair & Maintenance of Buildings,03/05/2017 00:00,30125197,5316.41,Revenue,YMCA Cambridge & Peterborough,Service Charges - Premises
Peterborough,http://opendatacommunities.org/id/unitary-authority/peterborough,Peterborough City Council,Adult Services & Communities - Adults,Independent Sector Placements,Services,03/05/2017 00:00,30125208,1560.04,Revenue,Avery House (Peterborough) t/a Brighterkind,Residential Care
Peterborough,http://opendatacommunities.org/id/unitary-authority/peterborough,Peterborough City Council,Adult Services & Communities - Adults,Independent Sector Placements,Services,03/05/2017 00:00,30125211,-2217.86,Revenue,Mencap,Home Care
Peterborough,http://opendatacommunities.org/id/unitary-authority/peterborough,Peterborough City Council,Adult Services & Communities - Adults,Independent Sector Placements,Services,03/05/2017 00:00,30125218,4621.2,Revenue,Mencap,Residential Care
Peterborough,http://opendatacommunities.org/id/unitary-authority/peterborough,Peterborough City Council,Adult Services & Communities - Adults,Independent Sector Placements,Services,03/05/2017 00:00,30125219,4854.4,Revenue,Mencap,Residential Care
Peterborough,http://opendatacommunities.org/id/unitary-authority/peterborough,Peterborough City Council,Adult Services & Communities - Adults,Independent Sector Placements,Services,03/05/2017 00:00,30125221,4981.2,Revenue,Mencap,Residential Care
Peterborough,http://opendatacommunities.org/id/unitary-authority/peterborough,Peterborough City Council,Adult Services & Communities - Adults,Independent Sector Placements,Services,03/05/2017 00:00,30125222,4078.2,Revenue,Mencap,Residential Care
Peterborough,http://opendatacommunities.org/id/unitary-authority/peterborough,Peterborough City Council,Corporate,Corporate,Non Revenue,03/05/2017 00:00,30125295,540,Capital,Smooth Removals (Peterborough) Ltd,Building And Site Works
Peterborough,http://opendatacommunities.org/id/unitary-authority/peterborough,Peterborough City Council,Westcombe Engineering,Westcombe Engineering,"Tools, Equipment, Furniture & Materials",03/05/2017 00:00,30125305,5515.21,Revenue,BWC Aluminium Ltd,Items For Resale
Peterborough,http://opendatacommunities.org/id/unitary-authority/peterborough,Peterborough City Council,City Servs & Communications,Parking Services,Services,03/05/2017 00:00,30125306,1058,Revenue,BemroseBooth Ltd,Tickets
Peterborough,http://opendatacommunities.org/id/unitary-authority/peterborough,Peterborough City Council,Adults and Communities - Communities,Early Help ASC/CSC,Services,03/05/2017 00:00,30125311,1330,Revenue,BDP Social Care Ltd,Childcare
Peterborough,http://opendatacommunities.org/id/unitary-authority/peterborough,Peterborough City Council,Corporate,Corporate,Non Revenue,03/05/2017 00:00,30125355,637,Balance Sheet,Department for Work and Pensions,Insurance Claims
Peterborough,http://opendatacommunities.org/id/unitary-authority/peterborough,Peterborough City Council,Commercial Group,Strategic Client Services,Services,03/05/2017 00:00,30125396,837.63,Revenue,Danwood Group Limited,Photocopier
Peterborough,http://opendatacommunities.org/id/unitary-authority/peterborough,Peterborough City Council,Corporate,Corporate,Non Revenue,03/05/2017 00:00,30125456,16092,Capital,Garfield Builders Ltd,Building And Site Works
Peterborough,http://opendatacommunities.org/id/unitary-authority/peterborough,Peterborough City Council,Business Management and Commercial Operations,Clare Lodge,Services,03/05/2017 00:00,30125470,4112.04,Revenue,Stanley Security Solutions,Hired Services
Peterborough,http://opendatacommunities.org/id/unitary-authority/peterborough,Peterborough City Council,Corporate,Corporate,Non Revenue,03/05/2017 00:00,30125492,3737,Capital,A W Morley T/A Morley Building Services,Grant Payment
Peterborough,http://opendatacommunities.org/id/unitary-authority/peterborough,Peterborough City Council,Corporate,Corporate,Non Revenue,03/05/2017 00:00,30125497,2520,Capital,A W Morley T/A Morley Building Services,Grant Payment
Peterborough,http://opendatacommunities.org/id/unitary-authority/peterborough,Peterborough City Council,Adult Services & Communities - Adults,Independent Sector Placements,Services,03/05/2017 00:00,30125515,1349.4,Revenue,Sahara Community Care Services,Home Care
Peterborough,http://opendatacommunities.org/id/unitary-authority/peterborough,Peterborough City Council,Adult Services & Communities - Adults,Independent Sector Placements,Services,03/05/2017 00:00,30125516,535.05,Revenue,Sahara Community Care Services,Home Care
Peterborough,http://opendatacommunities.org/id/unitary-authority/peterborough,Peterborough City Council,Adult Services & Communities - Adults,Independent Sector Placements,Services,03/05/2017 00:00,30125519,654,Revenue,Sahara Community Care Services,Home Care
Peterborough,http://opendatacommunities.org/id/unitary-authority/peterborough,Peterborough City Council,Adult Services & Communities - Adults,Independent Sector Placements,Services,03/05/2017 00:00,30125521,647.85,Revenue,Sahara Community Care Services,Home Care
Peterborough,http://opendatacommunities.org/id/unitary-authority/peterborough,Peterborough City Council,Adult Services & Communities - Adults,Independent Sector Placements,Services,03/05/2017 00:00,30125522,796.14,Revenue,BROADLEIGH NURSING HOME,Residential Care
Peterborough,http://opendatacommunities.org/id/unitary-authority/peterborough,Peterborough City Council,Adult Services & Communities - Adults,Independent Sector Placements,Services,03/05/2017 00:00,30125523,815.46,Revenue,BROADLEIGH NURSING HOME,Residential Care
Peterborough,http://opendatacommunities.org/id/unitary-authority/peterborough,Peterborough City Council,Adult Services & Communities - Adults,Independent Sector Placements,Services,03/05/2017 00:00,30125526,2023.2,Revenue,Benell Care Services Ltd,Residential Care
Peterborough,http://opendatacommunities.org/id/unitary-authority/peterborough,Peterborough City Council,Adult Services & Communities - Adults,Independent Sector Placements,Services,03/05/2017 00:00,30125537,2426.14,Revenue,Longueville Court (Barchester),Residential Care
Peterborough,http://opendatacommunities.org/id/unitary-authority/peterborough,Peterborough City Council,Adult Services & Communities - Adults,Independent Sector Placements,Services,03/05/2017 00:00,30125538,550,Revenue,Metropolitan,Home Care
Peterborough,http://opendatacommunities.org/id/unitary-authority/peterborough,Peterborough City Council,Adult Services & Communities - Adults,Independent Sector Placements,Services,03/05/2017 00:00,30125539,538.48,Revenue,Metropolitan,Home Care
Peterborough,http://opendatacommunities.org/id/unitary-authority/peterborough,Peterborough City Council,Adult Services & Communities - Adults,Independent Sector Placements,Services,03/05/2017 00:00,30125540,1357.76,Revenue,The Regard Partnership Limited,Residential Care
Peterborough,http://opendatacommunities.org/id/unitary-authority/peterborough,Peterborough City Council,Adult Services & Communities - Adults,Independent Sector Placements,Services,03/05/2017 00:00,30125542,1327.56,Revenue,Red House Nursing Home,Residential Care
Peterborough,http://opendatacommunities.org/id/unitary-authority/peterborough,Peterborough City Council,Adult Services & Communities - Adults,Independent Sector Placements,Services,03/05/2017 00:00,30125543,1393.33,Revenue,Red House Nursing Home,Residential Care
Peterborough,http://opendatacommunities.org/id/unitary-authority/peterborough,Peterborough City Council,Adult Services & Communities - Adults,Independent Sector Placements,Services,03/05/2017 00:00,30125544,3600,Revenue,LESTER HALL APARTMENTS LTD,Residential Care
Peterborough,http://opendatacommunities.org/id/unitary-authority/peterborough,Peterborough City Council,Adult Services & Communities - Adults,Independent Sector Placements,Services,03/05/2017 00:00,30125545,3400,Revenue,LESTER HALL APARTMENTS LTD,Residential Care
Peterborough,http://opendatacommunities.org/id/unitary-authority/peterborough,Peterborough City Council,Adult Services & Communities - Adults,Independent Sector Placements,Services,03/05/2017 00:00,30125546,6441.87,Revenue,PJ Care Ltd,Residential Care
Peterborough,http://opendatacommunities.org/id/unitary-authority/peterborough,Peterborough City Council,Adult Services & Communities - Adults,Independent Sector Placements,Services,03/05/2017 00:00,30125547,6334.04,Revenue,NORTH EAST AUTISM SOCIETY,Residential Care
Peterborough,http://opendatacommunities.org/id/unitary-authority/peterborough,Peterborough City Council,Adult Services & Communities - Adults,Independent Sector Placements,Services,03/05/2017 00:00,30125548,6334.04,Revenue,NORTH EAST AUTISM SOCIETY,Residential Care
Peterborough,http://opendatacommunities.org/id/unitary-authority/peterborough,Peterborough City Council,Adult Services & Communities - Adults,Independent Sector Placements,Services,03/05/2017 00:00,30125556,1848,Revenue,K2 CARE LTD,Residential Care
Peterborough,http://opendatacommunities.org/id/unitary-authority/peterborough,Peterborough City Council,Adult Services & Communities - Adults,Independent Sector Placements,Services,03/05/2017 00:00,30125558,1255.36,Revenue,POLEBROOK NURSING HOME,Residential Care
Peterborough,http://opendatacommunities.org/id/unitary-authority/peterborough,Peterborough City Council,Adult Services & Communities - Adults,Independent Sector Placements,Services,03/05/2017 00:00,30125561,5626.2,Revenue,PJ Care Ltd,Residential Care
Peterborough,http://opendatacommunities.org/id/unitary-authority/peterborough,Peterborough City Council,Peterborough Highway Services,Highway Services - HoS,Agency Staff,03/05/2017 00:00,30125581,824.02,Revenue,Reed Specialist Recruitment,External Temporary Staff
Peterborough,http://opendatacommunities.org/id/unitary-authority/peterborough,Peterborough City Council,Peterborough Highway Services,Highway Services - HoS,Agency Staff,03/05/2017 00:00,30125588,558.36,Revenue,Reed Specialist Recruitment,External Temporary Staff
Peterborough,http://opendatacommunities.org/id/unitary-authority/peterborough,Peterborough City Council,Business Management and Commercial Operations,Clare Lodge,Agency Staff,03/05/2017 00:00,30125604,528,Revenue,Wrixon Care Services,External Temporary Staff
Peterborough,http://opendatacommunities.org/id/unitary-authority/peterborough,Peterborough City Council,Business Management and Commercial Operations,Clare Lodge,Agency Staff,03/05/2017 00:00,30125605,665.5,Revenue,Wrixon Care Services,External Temporary Staff
Peterborough,http://opendatacommunities.org/id/unitary-authority/peterborough,Peterborough City Council,Business Management and Commercial Operations,Clare Lodge,Agency Staff,03/05/2017 00:00,30125606,912,Revenue,Wrixon Care Services,External Temporary Staff
Peterborough,http://opendatacommunities.org/id/unitary-authority/peterborough,Peterborough City Council,Business Management and Commercial Operations,Clare Lodge,Agency Staff,03/05/2017 00:00,30125607,1357.5,Revenue,Wrixon Care Services,External Temporary Staff
Peterborough,http://opendatacommunities.org/id/unitary-authority/peterborough,Peterborough City Council,Corporate Items,Corporate Services,Repair & Maintenance of Buildings,03/05/2017 00:00,30125611,79650.5,Revenue,Welland & Deepings Internal Drainage Board,Drainage Levy
Peterborough,http://opendatacommunities.org/id/unitary-authority/peterborough,Peterborough City Council,Commercial Group,Strategic Client Services,Services,03/05/2017 00:00,30125614,2083.26,Revenue,Danwood Group Limited,Photocopier
Peterborough,http://opendatacommunities.org/id/unitary-authority/peterborough,Peterborough City Council,Adult Services & Communities - Adults,Independent Sector Placements,Services,03/05/2017 00:00,30125628,767.25,Revenue,Thera East Anglia,Day Care
Peterborough,http://opendatacommunities.org/id/unitary-authority/peterborough,Peterborough City Council,Adult Services & Communities - Adults,Independent Sector Placements,Services,03/05/2017 00:00,30125630,728.52,Revenue,Thera East Anglia,Day Care
Peterborough,http://opendatacommunities.org/id/unitary-authority/peterborough,Peterborough City Council,Adult Services & Communities - Adults,Independent Sector Placements,Services,03/05/2017 00:00,30125640,806,Revenue,Thera East Anglia,Day Care
Peterborough,http://opendatacommunities.org/id/unitary-authority/peterborough,Peterborough City Council,Adult Services & Communities - Adults,Independent Sector Placements,Services,03/05/2017 00:00,30125641,806,Revenue,Thera East Anglia,Day Care
Peterborough,http://opendatacommunities.org/id/unitary-authority/peterborough,Peterborough City Council,Adult Services & Communities - Adults,Independent Sector Placements,Services,03/05/2017 00:00,30125642,806,Revenue,Thera East Anglia,Day Care
Peterborough,http://opendatacommunities.org/id/unitary-authority/peterborough,Peterborough City Council,Adult Services & Communities - Adults,Independent Sector Placements,Services,03/05/2017 00:00,30125643,806,Revenue,Thera East Anglia,Day Care
Peterborough,http://opendatacommunities.org/id/unitary-authority/peterborough,Peterborough City Council,Adult Services & Communities - Adults,Independent Sector Placements,Services,03/05/2017 00:00,30125645,1413.08,Revenue,Thera East Anglia,Day Care
Peterborough,http://opendatacommunities.org/id/unitary-authority/peterborough,Peterborough City Council,Adult Services & Communities - Adults,Independent Sector Placements,Services,03/05/2017 00:00,30125650,-1131.52,Revenue,Thera East Anglia,Day Care
Peterborough,http://opendatacommunities.org/id/unitary-authority/peterborough,Peterborough City Council,Adult Services & Communities - Adults,Independent Sector Placements,Services,03/05/2017 00:00,30125652,1339.46,Revenue,Thera East Anglia,Day Care
Peterborough,http://opendatacommunities.org/id/unitary-authority/peterborough,Peterborough City Council,Adult Services & Communities - Adults,Independent Sector Placements,Services,03/05/2017 00:00,30125661,1255.5,Revenue,Thera East Anglia,Day Care
Peterborough,http://opendatacommunities.org/id/unitary-authority/peterborough,Peterborough City Council,Adult Services & Communities - Adults,Independent Sector Placements,Services,03/05/2017 00:00,30125673,1488,Revenue,Thera East Anglia,Day Care
Peterborough,http://opendatacommunities.org/id/unitary-authority/peterborough,Peterborough City Council,Adult Services & Communities - Adults,Independent Sector Placements,Services,03/05/2017 00:00,30125683,1255.5,Revenue,Thera East Anglia,Day Care
Peterborough,http://opendatacommunities.org/id/unitary-authority/peterborough,Peterborough City Council,Adult Services & Communities - Adults,Independent Sector Placements,Services,03/05/2017 00:00,30125690,-968.76,Revenue,Thera East Anglia,Day Care
Peterborough,http://opendatacommunities.org/id/unitary-authority/peterborough,Peterborough City Council,Adult Services & Communities - Adults,Independent Sector Placements,Services,03/05/2017 00:00,30125696,2211.32,Revenue,Thera East Anglia,Day Care
Peterborough,http://opendatacommunities.org/id/unitary-authority/peterborough,Peterborough City Council,Adult Services & Communities - Adults,Independent Sector Placements,Services,03/05/2017 00:00,30125698,679.41,Revenue,Thera East Anglia,Day Care
Peterborough,http://opendatacommunities.org/id/unitary-authority/peterborough,Peterborough City Council,Adult Services & Communities - Adults,Independent Sector Placements,Services,03/05/2017 00:00,30125699,552.84,Revenue,Thera East Anglia,Day Care
Peterborough,http://opendatacommunities.org/id/unitary-authority/peterborough,Peterborough City Council,Adult Services & Communities - Adults,Independent Sector Placements,Services,03/05/2017 00:00,30125700,2102.83,Revenue,Thera East Anglia,Day Care
Peterborough,http://opendatacommunities.org/id/unitary-authority/peterborough,Peterborough City Council,Adult Services & Communities - Adults,Independent Sector Placements,Services,03/05/2017 00:00,30125702,718.16,Revenue,Thera East Anglia,Day Care
Peterborough,http://opendatacommunities.org/id/unitary-authority/peterborough,Peterborough City Council,Adult Services & Communities - Adults,Independent Sector Placements,Services,03/05/2017 00:00,30125705,2211.32,Revenue,Thera East Anglia,Day Care
Peterborough,http://opendatacommunities.org/id/unitary-authority/peterborough,Peterborough City Council,Adult Services & Communities - Adults,Independent Sector Placements,Services,03/05/2017 00:00,30125706,-806,Revenue,Thera East Anglia,Day Care
Peterborough,http://opendatacommunities.org/id/unitary-authority/peterborough,Peterborough City Council,Adult Services & Communities - Adults,Independent Sector Placements,Services,03/05/2017 00:00,30125707,-806,Revenue,Thera East Anglia,Day Care
Peterborough,http://opendatacommunities.org/id/unitary-authority/peterborough,Peterborough City Council,Adult Services & Communities - Adults,Independent Sector Placements,Services,03/05/2017 00:00,30125708,-767.25,Revenue,Thera East Anglia,Day Care
Peterborough,http://opendatacommunities.org/id/unitary-authority/peterborough,Peterborough City Council,Adult Services & Communities - Adults,Independent Sector Placements,Services,03/05/2017 00:00,30125709,718.16,Revenue,Thera East Anglia,Day Care
Peterborough,http://opendatacommunities.org/id/unitary-authority/peterborough,Peterborough City Council,Adult Services & Communities - Adults,Independent Sector Placements,Services,03/05/2017 00:00,30125726,1922,Revenue,Thera East Anglia,Day Care
Peterborough,http://opendatacommunities.org/id/unitary-authority/peterborough,Peterborough City Council,Adult Services & Communities - Adults,Independent Sector Placements,Services,03/05/2017 00:00,30125727,614.84,Revenue,Thera East Anglia,Day Care
Peterborough,http://opendatacommunities.org/id/unitary-authority/peterborough,Peterborough City Council,Adult Services & Communities - Adults,Independent Sector Placements,Services,03/05/2017 00:00,30125728,614.84,Revenue,Thera East Anglia,Day Care
Peterborough,http://opendatacommunities.org/id/unitary-authority/peterborough,Peterborough City Council,Adult Services & Communities - Adults,Independent Sector Placements,Services,03/05/2017 00:00,30125729,614.84,Revenue,Thera East Anglia,Day Care
Peterborough,http://opendatacommunities.org/id/unitary-authority/peterborough,Peterborough City Council,Adult Services & Communities - Adults,Independent Sector Placements,Services,03/05/2017 00:00,30125730,-806,Revenue,Thera East Anglia,Day Care
Peterborough,http://opendatacommunities.org/id/unitary-authority/peterborough,Peterborough City Council,Adult Services & Communities - Adults,Independent Sector Placements,Services,03/05/2017 00:00,30125731,583.84,Revenue,Thera East Anglia,Day Care
Peterborough,http://opendatacommunities.org/id/unitary-authority/peterborough,Peterborough City Council,Adult Services & Communities - Adults,Independent Sector Placements,Services,03/05/2017 00:00,30125732,583.84,Revenue,Thera East Anglia,Day Care
Peterborough,http://opendatacommunities.org/id/unitary-authority/peterborough,Peterborough City Council,Adult Services & Communities - Adults,Independent Sector Placements,Services,03/05/2017 00:00,30125733,-767.25,Revenue,Thera East Anglia,Day Care
Peterborough,http://opendatacommunities.org/id/unitary-authority/peterborough,Peterborough City Council,Adult Services & Communities - Adults,Independent Sector Placements,Services,03/05/2017 00:00,30125734,-806,Revenue,Thera East Anglia,Day Care
Peterborough,http://opendatacommunities.org/id/unitary-authority/peterborough,Peterborough City Council,Adult Services & Communities - Adults,Independent Sector Placements,Services,03/05/2017 00:00,30125735,614.84,Revenue,Thera East Anglia,Day Care
Peterborough,http://opendatacommunities.org/id/unitary-authority/peterborough,Peterborough City Council,Adults and Communities - Communities,Housing and Health,Services,03/05/2017 00:00,30125771,24979,Revenue,Stef & Philips Ltd,Homelessness Bed & Breakfast Costs
Peterborough,http://opendatacommunities.org/id/unitary-authority/peterborough,Peterborough City Council,Adults and Communities - Communities,Housing and Health,Services,03/05/2017 00:00,30125772,25336,Revenue,Stef & Philips Ltd,Homelessness Bed & Breakfast Costs
Peterborough,http://opendatacommunities.org/id/unitary-authority/peterborough,Peterborough City Council,Adult Services & Communities - Adults,Independent Sector Placements,Services,03/05/2017 00:00,30125802,-675.53,Revenue,Avery House (Peterborough) t/a Brighterkind,Residential Care
Peterborough,http://opendatacommunities.org/id/unitary-authority/peterborough,Peterborough City Council,Adult Services & Communities - Adults,Independent Sector Placements,Services,03/05/2017 00:00,30125803,599.8,Revenue,Avery House (Peterborough) t/a Brighterkind,Residential Care
Peterborough,http://opendatacommunities.org/id/unitary-authority/peterborough,Peterborough City Council,Adult Services & Communities - Adults,Independent Sector Placements,Services,03/05/2017 00:00,30125825,913.32,Revenue,Pilgrim Havens,Residential Care
Peterborough,http://opendatacommunities.org/id/unitary-authority/peterborough,Peterborough City Council,Adults and Communities - Communities,Early Help ASC/CSC,Rents,03/05/2017 00:00,30125853,500,Revenue,Queensgate Unit Trust,Hire Of Premises
Peterborough,http://opendatacommunities.org/id/unitary-authority/peterborough,Peterborough City Council,Education,Pupil Referral Unit,Services,03/05/2017 00:00,30125871,6860,Revenue,NACRO,Courses And Seminars
Peterborough,http://opendatacommunities.org/id/unitary-authority/peterborough,Peterborough City Council,Adult Services & Communities - Adults,Independent Sector Placements,Services,03/05/2017 00:00,30125904,3037.84,Revenue,Cozy Care,Home Care
Peterborough,http://opendatacommunities.org/id/unitary-authority/peterborough,Peterborough City Council,Adult Services & Communities - Adults,Independent Sector Placements,Services,03/05/2017 00:00,30125909,966,Revenue,Cozy Care,Home Care
Peterborough,http://opendatacommunities.org/id/unitary-authority/peterborough,Peterborough City Council,Adults and Communities - Communities,Youth / Youth Offending,Services,03/05/2017 00:00,30125925,9195.13,Revenue,Cambs & P'boro NHS Foundation Trust,Purchased Social Care Services
Peterborough,http://opendatacommunities.org/id/unitary-authority/peterborough,Peterborough City Council,Adult Services & Communities - Adults,Independent Sector Placements,Services,03/05/2017 00:00,30126102,5818.95,Revenue,MEARS GROUP,Home Care
Peterborough,http://opendatacommunities.org/id/unitary-authority/peterborough,Peterborough City Council,Adult Services & Communities - Adults,Independent Sector Placements,Services,03/05/2017 00:00,30126103,989.64,Revenue,FIELD HOUSE (EYE) LTD,Residential Care
Peterborough,http://opendatacommunities.org/id/unitary-authority/peterborough,Peterborough City Council,Adult Services & Communities - Adults,Independent Sector Placements,Services,03/05/2017 00:00,30126104,2057.14,Revenue,FIELD HOUSE (EYE) LTD,Residential Care
Peterborough,http://opendatacommunities.org/id/unitary-authority/peterborough,Peterborough City Council,Adult Services & Communities - Adults,Independent Sector Placements,Services,03/05/2017 00:00,30126105,4550,Revenue,FIELD HOUSE (EYE) LTD,Residential Care
Peterborough,http://opendatacommunities.org/id/unitary-authority/peterborough,Peterborough City Council,Adults and Communities - Communities,Housing and Health,Services,03/05/2017 00:00,30126118,973.25,Revenue,Handyman Steve,Contractors
Peterborough,http://opendatacommunities.org/id/unitary-authority/peterborough,Peterborough City Council,Adults and Communities - Communities,Housing and Health,Services,03/05/2017 00:00,30126119,1317.5,Revenue,Dave Elms Building & Maintenance,Contractors
Peterborough,http://opendatacommunities.org/id/unitary-authority/peterborough,Peterborough City Council,Peterborough Highway Services,Transport & Infrastructure Commissioning,Services,03/05/2017 00:00,30126144,1230,Revenue,ITSO Ltd,Computer Software
Peterborough,http://opendatacommunities.org/id/unitary-authority/peterborough,Peterborough City Council,Adults and Communities - Communities,Service Director - Adults & Communities,Services,03/05/2017 00:00,30126160,28500,Revenue,PARCA,Projects
Peterborough,http://opendatacommunities.org/id/unitary-authority/peterborough,Peterborough City Council,Adult Services & Communities - Adults,Independent Sector Placements,Services,03/05/2017 00:00,30126162,1248.12,Revenue,FIELD HOUSE (EYE) LTD,Residential Care
Peterborough,http://opendatacommunities.org/id/unitary-authority/peterborough,Peterborough City Council,Adult Services & Communities - Adults,Independent Sector Placements,Services,03/05/2017 00:00,30126169,833.63,Revenue,Cross Keys Homes,Home Care
Peterborough,http://opendatacommunities.org/id/unitary-authority/peterborough,Peterborough City Council,Adult Services & Communities - Adults,Independent Sector Placements,Services,03/05/2017 00:00,30126171,10640,Revenue,Exclusive Secure Care Services,Home Care
Peterborough,http://opendatacommunities.org/id/unitary-authority/peterborough,Peterborough City Council,ICT,ICT,Services,03/05/2017 00:00,30126188,12000,Revenue,Phoenix Software Ltd,Computer Software
Peterborough,http://opendatacommunities.org/id/unitary-authority/peterborough,Peterborough City Council,Business Management and Commercial Operations,Business Management and Commercial Operations,Interview & Training Expenses,03/05/2017 00:00,30126194,2550,Revenue,The University Of Birmingham,Training
Peterborough,http://opendatacommunities.org/id/unitary-authority/peterborough,Peterborough City Council,Corporate,Corporate,Non Revenue,03/05/2017 00:00,30126234,10900,Capital,T C Harrison Group Ltd,Vehicle Acquisition
Peterborough,http://opendatacommunities.org/id/unitary-authority/peterborough,Peterborough City Council,Corporate,Corporate,Non Revenue,03/05/2017 00:00,30126245,4202.4,Capital,Casbon Building Services,Grant Payment
Peterborough,http://opendatacommunities.org/id/unitary-authority/peterborough,Peterborough City Council,"Director, OP & JV",Growth HoS,Services,03/05/2017 00:00,30126259,1000,Revenue,Pinsent Masons,Legal Costs
Peterborough,http://opendatacommunities.org/id/unitary-authority/peterborough,Peterborough City Council,Adult Services & Communities - Adults,Independent Sector Placements,Services,03/05/2017 00:00,30126282,1299.08,Revenue,PHILIA LODGE REST HOME,Residential Care
Peterborough,http://opendatacommunities.org/id/unitary-authority/peterborough,Peterborough City Council,Adult Services & Communities - Adults,Independent Sector Placements,Services,03/05/2017 00:00,30126283,662.4,Revenue,Mencap,Home Care
Peterborough,http://opendatacommunities.org/id/unitary-authority/peterborough,Peterborough City Council,Adult Services & Communities - Adults,Independent Sector Placements,Services,03/05/2017 00:00,30126285,17759.33,Revenue,NHS Cambs & P'boro CCG (Clinical Commissioning Group),Residential Care
Peterborough,http://opendatacommunities.org/id/unitary-authority/peterborough,Peterborough City Council,Adult Services & Communities - Adults,Independent Sector Placements,Services,03/05/2017 00:00,30126286,1578.12,Revenue,Qu'appelle Care Home Ltd,Residential Care
Peterborough,http://opendatacommunities.org/id/unitary-authority/peterborough,Peterborough City Council,Adult Services & Communities - Adults,Independent Sector Placements,Services,03/05/2017 00:00,30126287,1425.4,Revenue,Qu'appelle Care Home Ltd,Residential Care
Peterborough,http://opendatacommunities.org/id/unitary-authority/peterborough,Peterborough City Council,Adult Services & Communities - Adults,Independent Sector Placements,Services,03/05/2017 00:00,30126288,1805.25,Revenue,GCH (North London) Ltd - Tudors,Residential Care
Peterborough,http://opendatacommunities.org/id/unitary-authority/peterborough,Peterborough City Council,Adult Services & Communities - Adults,Independent Sector Placements,Services,03/05/2017 00:00,30126291,1235.31,Revenue,Park Vista Care Home,Residential Care
Peterborough,http://opendatacommunities.org/id/unitary-authority/peterborough,Peterborough City Council,Adult Services & Communities - Adults,Independent Sector Placements,Services,03/05/2017 00:00,30126292,2652.2,Revenue,BUPA Care Homes,Residential Care
Peterborough,http://opendatacommunities.org/id/unitary-authority/peterborough,Peterborough City Council,Adult Services & Communities - Adults,Independent Sector Placements,Services,03/05/2017 00:00,30126293,-522.8,Revenue,BUPA Care Homes,Residential Care
Peterborough,http://opendatacommunities.org/id/unitary-authority/peterborough,Peterborough City Council,Adult Services & Communities - Adults,Independent Sector Placements,Services,03/05/2017 00:00,30126294,-522.8,Revenue,BUPA Care Homes,Residential Care
Peterborough,http://opendatacommunities.org/id/unitary-authority/peterborough,Peterborough City Council,Adult Services & Communities - Adults,Finance,Agency Staff,03/05/2017 00:00,30126303,2660,Revenue,Willowmead Consultants Ltd,External Temporary Staff
Peterborough,http://opendatacommunities.org/id/unitary-authority/peterborough,Peterborough City Council,Vivacity/Cultural Services,Cultural Services,Services,03/05/2017 00:00,30126305,17834,Revenue,Metaphor Communications Ltd,Projects
Peterborough,http://opendatacommunities.org/id/unitary-authority/peterborough,Peterborough City Council,Legal & Democratic,Democratic Services,Services,03/05/2017 00:00,30126307,34207.28,Revenue,Local Government Association,Subscriptions
Peterborough,http://opendatacommunities.org/id/unitary-authority/peterborough,Peterborough City Council,Legal & Democratic,Democratic Services,Catering,03/05/2017 00:00,30126316,2153.5,Revenue,Optimum Catering,Hospitality
Peterborough,http://opendatacommunities.org/id/unitary-authority/peterborough,Peterborough City Council,Legal & Democratic,Elections,Services,03/05/2017 00:00,30126335,2532.19,Revenue,Print UK,Printing
Peterborough,http://opendatacommunities.org/id/unitary-authority/peterborough,Peterborough City Council,Legal & Democratic,Elections,Services,03/05/2017 00:00,30126336,35881.5,Revenue,Print UK,Printing
Peterborough,http://opendatacommunities.org/id/unitary-authority/peterborough,Peterborough City Council,Adult Services & Communities - Adults,Therapy/Reablement/Community Equipment,"Tools, Equipment, Furniture & Materials",03/05/2017 00:00,30126342,103611.85,Revenue,NRS Healthcare,Occupational Therapy Equipment
Peterborough,http://opendatacommunities.org/id/unitary-authority/peterborough,Peterborough City Council,Adult Services & Communities - Adults,Mental Capacity Act & DoLs,Services,03/05/2017 00:00,30126346,1339,Revenue,Raj Medical Consultancy Limited,Hired Services
Peterborough,http://opendatacommunities.org/id/unitary-authority/peterborough,Peterborough City Council,Amey Peterborough & Waste Management,Waste Management,Services,03/05/2017 00:00,30126347,18090.79,Revenue,Material Change Ltd,Recycling
Peterborough,http://opendatacommunities.org/id/unitary-authority/peterborough,Peterborough City Council,Business Management and Commercial Operations,Commissioning,Services,03/05/2017 00:00,30126354,2818.5,Revenue,Bright Star's day Nursery,Grant Payment
Peterborough,http://opendatacommunities.org/id/unitary-authority/peterborough,Peterborough City Council,Business Management and Commercial Operations,Commissioning,Services,03/05/2017 00:00,30126355,760.5,Revenue,The Village Playgroup,Grant Payment
Peterborough,http://opendatacommunities.org/id/unitary-authority/peterborough,Peterborough City Council,Business Management and Commercial Operations,Commissioning,Services,03/05/2017 00:00,30126356,760.5,Revenue,The Hampton Day Nursery,Grant Payment
Peterborough,http://opendatacommunities.org/id/unitary-authority/peterborough,Peterborough City Council,Business Management and Commercial Operations,Commissioning,Services,03/05/2017 00:00,30126359,845,Revenue,Little Bees Pre-School,Grant Payment
Peterborough,http://opendatacommunities.org/id/unitary-authority/peterborough,Peterborough City Council,Business Management and Commercial Operations,Commissioning,Services,03/05/2017 00:00,30126360,507,Revenue,Newborough Pre-School Playgroup,Grant Payment
Peterborough,http://opendatacommunities.org/id/unitary-authority/peterborough,Peterborough City Council,Business Management and Commercial Operations,Commissioning,Services,03/05/2017 00:00,30126362,1267.5,Revenue,Stepping Stones Day Nursery,Grant Payment
Peterborough,http://opendatacommunities.org/id/unitary-authority/peterborough,Peterborough City Council,Corporate,Corporate,Non Revenue,03/05/2017 00:00,30126364,3050.11,Capital,M J Greaves,Grant Payment
Peterborough,http://opendatacommunities.org/id/unitary-authority/peterborough,Peterborough City Council,Adult Services & Communities - Adults,Block Contracts,Third Party Payments,03/05/2017 00:00,30126376,5034.04,Revenue,Sense,Third Party Payments - Contract
Peterborough,http://opendatacommunities.org/id/unitary-authority/peterborough,Peterborough City Council,"Director, OP & JV",Growth HoS,Services,03/05/2017 00:00,30126419,22228.39,Revenue,Grant Thornton UK LLP,Professional Services
Peterborough,http://opendatacommunities.org/id/unitary-authority/peterborough,Peterborough City Council,Adult Services & Communities - Adults,Independent Sector Placements,Services,03/05/2017 00:00,30126437,3575,Revenue,Select Support Partnerships Limited,Home Care
Peterborough,http://opendatacommunities.org/id/unitary-authority/peterborough,Peterborough City Council,Adult Services & Communities - Adults,Independent Sector Placements,Services,03/05/2017 00:00,30126439,2017.08,Revenue,Country Court Care Homes Ltd (St Johns),Residential Care
Peterborough,http://opendatacommunities.org/id/unitary-authority/peterborough,Peterborough City Council,Adult Services & Communities - Adults,Independent Sector Placements,Services,03/05/2017 00:00,30126440,3996,Revenue,Longueville Court (Barchester),Residential Care
Peterborough,http://opendatacommunities.org/id/unitary-authority/peterborough,Peterborough City Council,Adult Services & Communities - Adults,Independent Sector Placements,Services,03/05/2017 00:00,30126442,981.36,Revenue,GCH (North London) Ltd - Tudors,Residential Care
Peterborough,http://opendatacommunities.org/id/unitary-authority/peterborough,Peterborough City Council,Adult Services & Communities - Adults,Independent Sector Placements,Services,03/05/2017 00:00,30126443,7982.56,Revenue,Country Court Care Homes Ltd (St Johns),Residential Care
Peterborough,http://opendatacommunities.org/id/unitary-authority/peterborough,Peterborough City Council,Vivacity/Cultural Services,Cultural Services,Services,03/05/2017 00:00,30126463,5000,Revenue,Opportunity Peterborough T/A OP Ltd,Hired Services
Peterborough,http://opendatacommunities.org/id/unitary-authority/peterborough,Peterborough City Council,Vivacity/Cultural Services,Cultural Services,Services,03/05/2017 00:00,30126468,2000,Revenue,Opportunity Peterborough T/A OP Ltd,Hired Services
Peterborough,http://opendatacommunities.org/id/unitary-authority/peterborough,Peterborough City Council,Vivacity/Cultural Services,Cultural Services,Services,03/05/2017 00:00,30126471,3000,Revenue,Opportunity Peterborough T/A OP Ltd,Hired Services
Peterborough,http://opendatacommunities.org/id/unitary-authority/peterborough,Peterborough City Council,Legal & Democratic,Legal Services,Agency Staff,03/05/2017 00:00,30126494,1591,Revenue,Venn Group Ltd,External Temporary Staff
Peterborough,http://opendatacommunities.org/id/unitary-authority/peterborough,Peterborough City Council,Corporate,Corporate,Non Revenue,03/05/2017 00:00,30126495,3199.56,Capital,Swarco Traffic Ltd,Infrastructure
Peterborough,http://opendatacommunities.org/id/unitary-authority/peterborough,Peterborough City Council,City Servs & Communications,Regulatory Services,Agency Staff,03/05/2017 00:00,30126496,5031.45,Revenue,Eden Brown Ltd,External Temporary Staff
Peterborough,http://opendatacommunities.org/id/unitary-authority/peterborough,Peterborough City Council,Corporate Property,Commercial Propety,Rents,03/05/2017 00:00,30126497,1758.5,Revenue,Milton Estates (Peterborough) Ltd,Rent
Peterborough,http://opendatacommunities.org/id/unitary-authority/peterborough,Peterborough City Council,Performance & Information,Performance & Information,Agency Staff,03/05/2017 00:00,30126501,627.52,Revenue,Reed Specialist Recruitment,External Temporary Staff
Peterborough,http://opendatacommunities.org/id/unitary-authority/peterborough,Peterborough City Council,Performance & Information,Performance & Information,Agency Staff,03/05/2017 00:00,30126507,563.63,Revenue,Reed Specialist Recruitment,External Temporary Staff
Peterborough,http://opendatacommunities.org/id/unitary-authority/peterborough,Peterborough City Council,Performance & Information,Performance & Information,Agency Staff,03/05/2017 00:00,30126508,746.25,Revenue,Reed Specialist Recruitment,External Temporary Staff
Peterborough,http://opendatacommunities.org/id/unitary-authority/peterborough,Peterborough City Council,Corporate Items,Corporate Services,Agency Staff,03/05/2017 00:00,30126512,5000,Revenue,Penna Plc,External Temporary Staff
Peterborough,http://opendatacommunities.org/id/unitary-authority/peterborough,Peterborough City Council,Education,Pupil Referral Unit,Agency Staff,03/05/2017 00:00,30126513,736,Revenue,t/a Travail Education,Supply Teachers
Peterborough,http://opendatacommunities.org/id/unitary-authority/peterborough,Peterborough City Council,ICT,ICT,Services,03/05/2017 00:00,30126518,4572.52,Revenue,Pindar Creative,Computer Software
Peterborough,http://opendatacommunities.org/id/unitary-authority/peterborough,Peterborough City Council,Adults and Communities - Communities,Service Director - Adults & Communities,Third Party Payments,03/05/2017 00:00,30126523,13000,Revenue,Rainbow Savers Anglia Credit Union Ltd,Grant-Third Party
Peterborough,http://opendatacommunities.org/id/unitary-authority/peterborough,Peterborough City Council,Amey Peterborough & Waste Management,Waste & Operational Svs Mgmt,Services,03/05/2017 00:00,30126525,3350,Revenue,Local Green Points,Special Projects
Peterborough,http://opendatacommunities.org/id/unitary-authority/peterborough,Peterborough City Council,Vivacity/Cultural Services,Cultural Services,Water Services,03/05/2017 00:00,30126527,4807.14,Revenue,Anglian Water,Water
Peterborough,http://opendatacommunities.org/id/unitary-authority/peterborough,Peterborough City Council,Adult Services & Communities - Adults,Other Services,Third Party Payments,03/05/2017 00:00,30126538,28382,Revenue,P'Boro Council For Voluntary Srvs (PCVS),Third Party Payments - Contract
Peterborough,http://opendatacommunities.org/id/unitary-authority/peterborough,Peterborough City Council,Adult Services & Communities - Adults,Other Services,Third Party Payments,03/05/2017 00:00,30126540,2990,Revenue,P'Boro Council For Voluntary Srvs (PCVS),Third Party Payments - Contract
Peterborough,http://opendatacommunities.org/id/unitary-authority/peterborough,Peterborough City Council,Public Health,Housing and Health - Public Health,Services,03/05/2017 00:00,30126565,5238,Revenue,Image Box Design Ltd,Advertising
Peterborough,http://opendatacommunities.org/id/unitary-authority/peterborough,Peterborough City Council,Children's & Safeguarding,Access to Resources & Specialist Commissioning,Services,03/05/2017 00:00,30126567,30000,Revenue,Wilds Lodge School,Boarding Out Allowances
Peterborough,http://opendatacommunities.org/id/unitary-authority/peterborough,Peterborough City Council,Children's & Safeguarding,Access to Resources & Specialist Commissioning,Services,03/05/2017 00:00,30126568,30000,Revenue,Wilds Lodge School,Boarding Out Allowances
Peterborough,http://opendatacommunities.org/id/unitary-authority/peterborough,Peterborough City Council,Children's & Safeguarding,Access to Resources & Specialist Commissioning,Services,03/05/2017 00:00,30126569,30000,Revenue,Wilds Lodge School,Boarding Out Allowances
Peterborough,http://opendatacommunities.org/id/unitary-authority/peterborough,Peterborough City Council,Children's & Safeguarding,Access to Resources & Specialist Commissioning,Services,03/05/2017 00:00,30126570,26666.67,Revenue,Wilds Lodge School,Boarding Out Allowances
Peterborough,http://opendatacommunities.org/id/unitary-authority/peterborough,Peterborough City Council,Children's & Safeguarding,Access to Resources & Specialist Commissioning,Services,03/05/2017 00:00,30126571,26666.67,Revenue,Wilds Lodge School,Boarding Out Allowances
Peterborough,http://opendatacommunities.org/id/unitary-authority/peterborough,Peterborough City Council,Children's & Safeguarding,Access to Resources & Specialist Commissioning,Services,03/05/2017 00:00,30126573,27500,Revenue,Wilds Lodge School,Boarding Out Allowances
Peterborough,http://opendatacommunities.org/id/unitary-authority/peterborough,Peterborough City Council,Children's & Safeguarding,Access to Resources & Specialist Commissioning,Services,03/05/2017 00:00,30126574,18333.33,Revenue,Wilds Lodge School,Boarding Out Allowances
Peterborough,http://opendatacommunities.org/id/unitary-authority/peterborough,Peterborough City Council,Children's & Safeguarding,Access to Resources & Specialist Commissioning,Services,03/05/2017 00:00,30126575,27500,Revenue,Wilds Lodge School,Boarding Out Allowances
Peterborough,http://opendatacommunities.org/id/unitary-authority/peterborough,Peterborough City Council,Children's & Safeguarding,Access to Resources & Specialist Commissioning,Services,03/05/2017 00:00,30126576,30000,Revenue,Wilds Lodge School,Boarding Out Allowances
Peterborough,http://opendatacommunities.org/id/unitary-authority/peterborough,Peterborough City Council,Children's & Safeguarding,Access to Resources & Specialist Commissioning,Services,03/05/2017 00:00,30126577,26666.67,Revenue,Wilds Lodge School,Boarding Out Allowances
Peterborough,http://opendatacommunities.org/id/unitary-authority/peterborough,Peterborough City Council,Children's & Safeguarding,Access to Resources & Specialist Commissioning,Services,03/05/2017 00:00,30126578,27500,Revenue,Wilds Lodge School,Boarding Out Allowances
Peterborough,http://opendatacommunities.org/id/unitary-authority/peterborough,Peterborough City Council,Children's & Safeguarding,Access to Resources & Specialist Commissioning,Services,03/05/2017 00:00,30126579,27500,Revenue,Wilds Lodge School,Boarding Out Allowances
Peterborough,http://opendatacommunities.org/id/unitary-authority/peterborough,Peterborough City Council,Children's & Safeguarding,Access to Resources & Specialist Commissioning,Services,03/05/2017 00:00,30126580,26666.67,Revenue,Wilds Lodge School,Boarding Out Allowances
Peterborough,http://opendatacommunities.org/id/unitary-authority/peterborough,Peterborough City Council,Children's & Safeguarding,Access to Resources & Specialist Commissioning,Services,03/05/2017 00:00,30126581,27500,Revenue,Wilds Lodge School,Boarding Out Allowances
Peterborough,http://opendatacommunities.org/id/unitary-authority/peterborough,Peterborough City Council,Children's & Safeguarding,Access to Resources & Specialist Commissioning,Services,03/05/2017 00:00,30126582,28333.33,Revenue,Wilds Lodge School,Boarding Out Allowances
Peterborough,http://opendatacommunities.org/id/unitary-authority/peterborough,Peterborough City Council,Children's & Safeguarding,Access to Resources & Specialist Commissioning,Services,03/05/2017 00:00,30126583,30000,Revenue,Wilds Lodge School,Boarding Out Allowances
Peterborough,http://opendatacommunities.org/id/unitary-authority/peterborough,Peterborough City Council,Children's & Safeguarding,Access to Resources & Specialist Commissioning,Services,03/05/2017 00:00,30126584,30000,Revenue,Wilds Lodge School,Boarding Out Allowances
Peterborough,http://opendatacommunities.org/id/unitary-authority/peterborough,Peterborough City Council,Children's & Safeguarding,Access to Resources & Specialist Commissioning,Services,03/05/2017 00:00,30126585,28333.33,Revenue,Wilds Lodge School,Boarding Out Allowances
Peterborough,http://opendatacommunities.org/id/unitary-authority/peterborough,Peterborough City Council,Children's & Safeguarding,Access to Resources & Specialist Commissioning,Services,03/05/2017 00:00,30126586,28333.33,Revenue,Wilds Lodge School,Boarding Out Allowances
Peterborough,http://opendatacommunities.org/id/unitary-authority/peterborough,Peterborough City Council,Children's & Safeguarding,Access to Resources & Specialist Commissioning,Services,03/05/2017 00:00,30126587,28333.33,Revenue,Wilds Lodge School,Boarding Out Allowances
Peterborough,http://opendatacommunities.org/id/unitary-authority/peterborough,Peterborough City Council,Legal & Democratic,Legal Services,Services,03/05/2017 00:00,30126599,800,Revenue,Buckles Solicitors LLP,Legal Costs
Peterborough,http://opendatacommunities.org/id/unitary-authority/peterborough,Peterborough City Council,Adult Services & Communities - Adults,Independent Sector Placements,Services,03/05/2017 00:00,30126604,715,Revenue,Select Support Partnerships Limited,Home Care
Peterborough,http://opendatacommunities.org/id/unitary-authority/peterborough,Peterborough City Council,Adult Services & Communities - Adults,Independent Sector Placements,Services,03/05/2017 00:00,30126608,507,Revenue,Select Support Partnerships Limited,Home Care
Peterborough,http://opendatacommunities.org/id/unitary-authority/peterborough,Peterborough City Council,Adult Services & Communities - Adults,Independent Sector Placements,Services,03/05/2017 00:00,30126609,689,Revenue,Select Support Partnerships Limited,Home Care
Peterborough,http://opendatacommunities.org/id/unitary-authority/peterborough,Peterborough City Council,Adult Services & Communities - Adults,Independent Sector Placements,Services,03/05/2017 00:00,30126612,1196,Revenue,Select Support Partnerships Limited,Home Care
Peterborough,http://opendatacommunities.org/id/unitary-authority/peterborough,Peterborough City Council,Adult Services & Communities - Adults,Independent Sector Placements,Services,03/05/2017 00:00,30126613,-1248,Revenue,Select Support Partnerships Limited,Home Care
Peterborough,http://opendatacommunities.org/id/unitary-authority/peterborough,Peterborough City Council,Adult Services & Communities - Adults,Independent Sector Placements,Services,03/05/2017 00:00,30126614,-624,Revenue,Select Support Partnerships Limited,Home Care
Peterborough,http://opendatacommunities.org/id/unitary-authority/peterborough,Peterborough City Council,Adult Services & Communities - Adults,Independent Sector Placements,Services,03/05/2017 00:00,30126615,-1248,Revenue,Select Support Partnerships Limited,Home Care
Peterborough,http://opendatacommunities.org/id/unitary-authority/peterborough,Peterborough City Council,Adult Services & Communities - Adults,Independent Sector Placements,Services,03/05/2017 00:00,30126616,-923,Revenue,Select Support Partnerships Limited,Home Care
Peterborough,http://opendatacommunities.org/id/unitary-authority/peterborough,Peterborough City Council,Westcombe Engineering,Westcombe Engineering,Energy Costs,03/05/2017 00:00,30126619,675.54,Revenue,British Gas Business,Electricity
Peterborough,http://opendatacommunities.org/id/unitary-authority/peterborough,Peterborough City Council,Education,Service Director Education,Services,03/05/2017 00:00,30126624,25000,Revenue,Family Voice Peterborough,Education Expenses
Peterborough,http://opendatacommunities.org/id/unitary-authority/peterborough,Peterborough City Council,Adult Services & Communities - Adults,Independent Sector Placements,Services,03/05/2017 00:00,30126626,1299.08,Revenue,GCH (North London) Ltd - Tudors,Residential Care
Peterborough,http://opendatacommunities.org/id/unitary-authority/peterborough,Peterborough City Council,Adult Services & Communities - Adults,Independent Sector Placements,Services,03/05/2017 00:00,30126627,1299.08,Revenue,GCH (North London) Ltd - Tudors,Residential Care
Peterborough,http://opendatacommunities.org/id/unitary-authority/peterborough,Peterborough City Council,Adult Services & Communities - Adults,Independent Sector Placements,Services,03/05/2017 00:00,30126628,856.56,Revenue,GCH (North London) Ltd - Tudors,Residential Care
Peterborough,http://opendatacommunities.org/id/unitary-authority/peterborough,Peterborough City Council,Adult Services & Communities - Adults,Independent Sector Placements,Services,03/05/2017 00:00,30126629,1078.76,Revenue,GCH (North London) Ltd - Tudors,Residential Care
Peterborough,http://opendatacommunities.org/id/unitary-authority/peterborough,Peterborough City Council,Adult Services & Communities - Adults,Independent Sector Placements,Services,03/05/2017 00:00,30126630,1295.08,Revenue,GCH (North London) Ltd - Tudors,Residential Care
Peterborough,http://opendatacommunities.org/id/unitary-authority/peterborough,Peterborough City Council,Adult Services & Communities - Adults,Independent Sector Placements,Services,03/05/2017 00:00,30126631,1024.68,Revenue,GCH (North London) Ltd - Tudors,Residential Care
Peterborough,http://opendatacommunities.org/id/unitary-authority/peterborough,Peterborough City Council,Adult Services & Communities - Adults,Independent Sector Placements,Services,03/05/2017 00:00,30126634,1540.52,Revenue,The Regard Partnership Limited,Residential Care
Peterborough,http://opendatacommunities.org/id/unitary-authority/peterborough,Peterborough City Council,Adult Services & Communities - Adults,Independent Sector Placements,Services,03/05/2017 00:00,30126635,856.56,Revenue,GCH (North London) Ltd - Tudors,Residential Care
Peterborough,http://opendatacommunities.org/id/unitary-authority/peterborough,Peterborough City Council,Adult Services & Communities - Adults,Independent Sector Placements,Services,03/05/2017 00:00,30126640,1078.76,Revenue,GCH (North London) Ltd - Tudors,Residential Care
Peterborough,http://opendatacommunities.org/id/unitary-authority/peterborough,Peterborough City Council,Adult Services & Communities - Adults,Independent Sector Placements,Services,03/05/2017 00:00,30126641,1024.68,Revenue,GCH (North London) Ltd - Tudors,Residential Care
Peterborough,http://opendatacommunities.org/id/unitary-authority/peterborough,Peterborough City Council,Adult Services & Communities - Adults,Independent Sector Placements,Services,03/05/2017 00:00,30126642,663.36,Revenue,GCH (North London) Ltd - Tudors,Residential Care
Peterborough,http://opendatacommunities.org/id/unitary-authority/peterborough,Peterborough City Council,Adult Services & Communities - Adults,Independent Sector Placements,Services,03/05/2017 00:00,30126643,2021.88,Revenue,GCH (North London) Ltd - Tudors,Residential Care
Peterborough,http://opendatacommunities.org/id/unitary-authority/peterborough,Peterborough City Council,Adult Services & Communities - Adults,Independent Sector Placements,Services,03/05/2017 00:00,30126644,1303.08,Revenue,GCH (North London) Ltd - Tudors,Residential Care
Peterborough,http://opendatacommunities.org/id/unitary-authority/peterborough,Peterborough City Council,Adult Services & Communities - Adults,Independent Sector Placements,Services,03/05/2017 00:00,30126645,1290.32,Revenue,GCH (North London) Ltd - Tudors,Residential Care
Peterborough,http://opendatacommunities.org/id/unitary-authority/peterborough,Peterborough City Council,Adult Services & Communities - Adults,Independent Sector Placements,Services,03/05/2017 00:00,30126646,981.36,Revenue,GCH (North London) Ltd - Tudors,Residential Care
Peterborough,http://opendatacommunities.org/id/unitary-authority/peterborough,Peterborough City Council,Adult Services & Communities - Adults,Independent Sector Placements,Services,03/05/2017 00:00,30126647,1295.08,Revenue,GCH (North London) Ltd - Tudors,Residential Care
Peterborough,http://opendatacommunities.org/id/unitary-authority/peterborough,Peterborough City Council,Adult Services & Communities - Adults,Independent Sector Placements,Services,03/05/2017 00:00,30126648,663.36,Revenue,GCH (North London) Ltd - Tudors,Residential Care
Peterborough,http://opendatacommunities.org/id/unitary-authority/peterborough,Peterborough City Council,Adult Services & Communities - Adults,Independent Sector Placements,Services,03/05/2017 00:00,30126649,1290.32,Revenue,GCH (North London) Ltd - Tudors,Residential Care
Peterborough,http://opendatacommunities.org/id/unitary-authority/peterborough,Peterborough City Council,Adult Services & Communities - Adults,Independent Sector Placements,Services,03/05/2017 00:00,30126651,981.36,Revenue,GCH (North London) Ltd - Tudors,Residential Care
Peterborough,http://opendatacommunities.org/id/unitary-authority/peterborough,Peterborough City Council,Adult Services & Communities - Adults,Independent Sector Placements,Services,03/05/2017 00:00,30126652,1303.08,Revenue,GCH (North London) Ltd - Tudors,Residential Care
Peterborough,http://opendatacommunities.org/id/unitary-authority/peterborough,Peterborough City Council,Adult Services & Communities - Adults,Independent Sector Placements,Services,03/05/2017 00:00,30126653,1024.68,Revenue,GCH (North London) Ltd - Tudors,Residential Care
Peterborough,http://opendatacommunities.org/id/unitary-authority/peterborough,Peterborough City Council,Adult Services & Communities - Adults,Independent Sector Placements,Services,03/05/2017 00:00,30126654,1078.76,Revenue,GCH (North London) Ltd - Tudors,Residential Care
Peterborough,http://opendatacommunities.org/id/unitary-authority/peterborough,Peterborough City Council,Adult Services & Communities - Adults,Independent Sector Placements,Services,03/05/2017 00:00,30126655,2021.88,Revenue,GCH (North London) Ltd - Tudors,Residential Care
Peterborough,http://opendatacommunities.org/id/unitary-authority/peterborough,Peterborough City Council,Adult Services & Communities - Adults,Independent Sector Placements,Services,03/05/2017 00:00,30126656,2021.88,Revenue,GCH (North London) Ltd - Tudors,Residential Care
Peterborough,http://opendatacommunities.org/id/unitary-authority/peterborough,Peterborough City Council,Corporate,Corporate,Non Revenue,03/05/2017 00:00,30126657,-500,Capital,T C Harrison Group Ltd,Vehicle Acquisition
Peterborough,http://opendatacommunities.org/id/unitary-authority/peterborough,Peterborough City Council,Corporate,Corporate,Non Revenue,03/05/2017 00:00,30126659,819682.43,Balance Sheet,Teachers Pensions,Pensions
Peterborough,http://opendatacommunities.org/id/unitary-authority/peterborough,Peterborough City Council,Business Management and Commercial Operations,Commissioning,Services,03/05/2017 00:00,30126675,2028,Revenue,The Voyager Nursery,Grant Payment
Peterborough,http://opendatacommunities.org/id/unitary-authority/peterborough,Peterborough City Council,Business Management and Commercial Operations,Commissioning,Services,03/05/2017 00:00,30126676,1430,Revenue,Braybrook Nursery,Grant Payment
Peterborough,http://opendatacommunities.org/id/unitary-authority/peterborough,Peterborough City Council,Business Management and Commercial Operations,Commissioning,Services,03/05/2017 00:00,30126677,633.75,Revenue,Stars Pre-School Ravensthorpe,Grant Payment
Peterborough,http://opendatacommunities.org/id/unitary-authority/peterborough,Peterborough City Council,Business Management and Commercial Operations,Commissioning,Services,03/05/2017 00:00,30126678,845,Revenue,Paston & Gunthorpe Pre-School,Grant Payment
Peterborough,http://opendatacommunities.org/id/unitary-authority/peterborough,Peterborough City Council,Adult Services & Communities - Adults,Independent Sector Placements,Services,03/05/2017 00:00,30126679,533,Revenue,Select Support Partnerships Limited,Home Care
Peterborough,http://opendatacommunities.org/id/unitary-authority/peterborough,Peterborough City Council,Children's & Safeguarding,Access to Resources & Specialist Commissioning,Services,03/05/2017 00:00,30126680,621.1,Revenue,Redacted Personal Information,Boarding Out Allowances
Peterborough,http://opendatacommunities.org/id/unitary-authority/peterborough,Peterborough City Council,Children's & Safeguarding,Access to Resources & Specialist Commissioning,Services,03/05/2017 00:00,30126682,776.24,Revenue,Redacted Personal Information,Boarding Out Allowances
Peterborough,http://opendatacommunities.org/id/unitary-authority/peterborough,Peterborough City Council,Business Management and Commercial Operations,Commissioning,Services,03/05/2017 00:00,30126684,760.5,Revenue,Castor & Ailsworth Pre School,Grant Payment
Peterborough,http://opendatacommunities.org/id/unitary-authority/peterborough,Peterborough City Council,Business Management and Commercial Operations,Commissioning,Services,03/05/2017 00:00,30126685,845,Revenue,Stars Pre-School Dogsthorpe,Grant Payment
Peterborough,http://opendatacommunities.org/id/unitary-authority/peterborough,Peterborough City Council,Business Management and Commercial Operations,Commissioning,Services,03/05/2017 00:00,30126686,845,Revenue,Eye Pre-School,Grant Payment
Peterborough,http://opendatacommunities.org/id/unitary-authority/peterborough,Peterborough City Council,Business Management and Commercial Operations,Commissioning,Services,03/05/2017 00:00,30126687,3802.5,Revenue,Little Stars Day Nursery,Grant Payment
Peterborough,http://opendatacommunities.org/id/unitary-authority/peterborough,Peterborough City Council,Children's & Safeguarding,Child Health,Services,03/05/2017 00:00,8000088061,672.04,Revenue,Redacted Personal Information,Financial Assistance
Peterborough,http://opendatacommunities.org/id/unitary-authority/peterborough,Peterborough City Council,Adult Services & Communities - Adults,Independent Sector Placements,Services,03/05/2017 00:00,8000088121,823.2,Revenue,Axiom Housing Association,Home Care
Peterborough,http://opendatacommunities.org/id/unitary-authority/peterborough,Peterborough City Council,Adult Services & Communities - Adults,Independent Sector Placements,Services,03/05/2017 00:00,8000088122,823.2,Revenue,Axiom Housing Association,Home Care
Peterborough,http://opendatacommunities.org/id/unitary-authority/peterborough,Peterborough City Council,Adult Services & Communities - Adults,Independent Sector Placements,Services,03/05/2017 00:00,8000088124,529.2,Revenue,Axiom Housing Association,Home Care
Peterborough,http://opendatacommunities.org/id/unitary-authority/peterborough,Peterborough City Council,Adult Services & Communities - Adults,Independent Sector Placements,Services,03/05/2017 00:00,8000088131,617.4,Revenue,Axiom Housing Association,Home Care
Peterborough,http://opendatacommunities.org/id/unitary-authority/peterborough,Peterborough City Council,Adult Services & Communities - Adults,Independent Sector Placements,Services,03/05/2017 00:00,8000088144,588,Revenue,Axiom Housing Association,Home Care
Peterborough,http://opendatacommunities.org/id/unitary-authority/peterborough,Peterborough City Council,Adult Services & Communities - Adults,Independent Sector Placements,Services,03/05/2017 00:00,8000088149,737.94,Revenue,Axiom Housing Association,Home Care
Peterborough,http://opendatacommunities.org/id/unitary-authority/peterborough,Peterborough City Council,Adult Services & Communities - Adults,Independent Sector Placements,Services,03/05/2017 00:00,8000088230,668.38,Revenue,COMFORCARE SENIOR SERVICES,Home Care
Peterborough,http://opendatacommunities.org/id/unitary-authority/peterborough,Peterborough City Council,Adult Services & Communities - Adults,Independent Sector Placements,Services,03/05/2017 00:00,8000088233,648.6,Revenue,COMFORCARE SENIOR SERVICES,Home Care
Peterborough,http://opendatacommunities.org/id/unitary-authority/peterborough,Peterborough City Council,Adult Services & Communities - Adults,Independent Sector Placements,Services,03/05/2017 00:00,8000088234,1256.4,Revenue,COMFORCARE SENIOR SERVICES,Home Care
Peterborough,http://opendatacommunities.org/id/unitary-authority/peterborough,Peterborough City Council,Adult Services & Communities - Adults,Independent Sector Placements,Services,03/05/2017 00:00,8000088282,1883.25,Revenue,COMFORCARE SENIOR SERVICES,Home Care
Peterborough,http://opendatacommunities.org/id/unitary-authority/peterborough,Peterborough City Council,Adult Services & Communities - Adults,Independent Sector Placements,Services,03/05/2017 00:00,8000088290,1944.25,Revenue,Cambridgeshirehomecare,Home Care
Peterborough,http://opendatacommunities.org/id/unitary-authority/peterborough,Peterborough City Council,Adult Services & Communities - Adults,Independent Sector Placements,Services,03/05/2017 00:00,8000088291,2197,Revenue,Cambridgeshirehomecare,Home Care
Peterborough,http://opendatacommunities.org/id/unitary-authority/peterborough,Peterborough City Council,Adult Services & Communities - Adults,Independent Sector Placements,Services,03/05/2017 00:00,8000088293,558.75,Revenue,Cross Keys Homes,Home Care
Peterborough,http://opendatacommunities.org/id/unitary-authority/peterborough,Peterborough City Council,Adult Services & Communities - Adults,Independent Sector Placements,Services,03/05/2017 00:00,8000088294,757.5,Revenue,Cross Keys Homes,Home Care
Peterborough,http://opendatacommunities.org/id/unitary-authority/peterborough,Peterborough City Council,Adult Services & Communities - Adults,Independent Sector Placements,Services,03/05/2017 00:00,8000088295,570,Revenue,Cross Keys Homes,Home Care
Peterborough,http://opendatacommunities.org/id/unitary-authority/peterborough,Peterborough City Council,Adult Services & Communities - Adults,Independent Sector Placements,Services,03/05/2017 00:00,8000088306,1725,Revenue,Cozy Care,Home Care
Peterborough,http://opendatacommunities.org/id/unitary-authority/peterborough,Peterborough City Council,Adult Services & Communities - Adults,Independent Sector Placements,Services,03/05/2017 00:00,8000088307,786.6,Revenue,Cozy Care,Home Care
Peterborough,http://opendatacommunities.org/id/unitary-authority/peterborough,Peterborough City Council,Adult Services & Communities - Adults,Independent Sector Placements,Services,03/05/2017 00:00,8000088311,2125.2,Revenue,Cozy Care,Home Care
Peterborough,http://opendatacommunities.org/id/unitary-authority/peterborough,Peterborough City Council,Adult Services & Communities - Adults,Independent Sector Placements,Services,03/05/2017 00:00,8000088315,538.2,Revenue,Cozy Care,Home Care
Peterborough,http://opendatacommunities.org/id/unitary-authority/peterborough,Peterborough City Council,Adult Services & Communities - Adults,Independent Sector Placements,Services,03/05/2017 00:00,8000088317,966,Revenue,Cozy Care,Home Care
Peterborough,http://opendatacommunities.org/id/unitary-authority/peterborough,Peterborough City Council,Adult Services & Communities - Adults,Independent Sector Placements,Services,03/05/2017 00:00,8000088318,1977.54,Revenue,Cozy Care,Home Care
Peterborough,http://opendatacommunities.org/id/unitary-authority/peterborough,Peterborough City Council,Adult Services & Communities - Adults,Independent Sector Placements,Services,03/05/2017 00:00,8000088321,576.15,Revenue,Cozy Care,Home Care
Peterborough,http://opendatacommunities.org/id/unitary-authority/peterborough,Peterborough City Council,Adult Services & Communities - Adults,Independent Sector Placements,Services,03/05/2017 00:00,8000088325,772.8,Revenue,Cozy Care,Home Care
Peterborough,http://opendatacommunities.org/id/unitary-authority/peterborough,Peterborough City Council,Adult Services & Communities - Adults,Independent Sector Placements,Services,03/05/2017 00:00,8000088327,1738.8,Revenue,Cozy Care,Home Care
Peterborough,http://opendatacommunities.org/id/unitary-authority/peterborough,Peterborough City Council,Adult Services & Communities - Adults,Independent Sector Placements,Services,03/05/2017 00:00,8000088329,565.8,Revenue,Cozy Care,Home Care
Peterborough,http://opendatacommunities.org/id/unitary-authority/peterborough,Peterborough City Council,Adult Services & Communities - Adults,Independent Sector Placements,Services,03/05/2017 00:00,8000088330,593.4,Revenue,Cozy Care,Home Care
Peterborough,http://opendatacommunities.org/id/unitary-authority/peterborough,Peterborough City Council,Adult Services & Communities - Adults,Independent Sector Placements,Services,03/05/2017 00:00,8000088331,1738.8,Revenue,Cozy Care,Home Care
Peterborough,http://opendatacommunities.org/id/unitary-authority/peterborough,Peterborough City Council,Adult Services & Communities - Adults,Independent Sector Placements,Services,03/05/2017 00:00,8000088334,562.35,Revenue,Cozy Care,Home Care
Peterborough,http://opendatacommunities.org/id/unitary-authority/peterborough,Peterborough City Council,Adult Services & Communities - Adults,Independent Sector Placements,Services,03/05/2017 00:00,8000088338,986.7,Revenue,Cozy Care,Home Care
Peterborough,http://opendatacommunities.org/id/unitary-authority/peterborough,Peterborough City Council,Adult Services & Communities - Adults,Independent Sector Placements,Services,03/05/2017 00:00,8000088339,874.23,Revenue,Cozy Care,Home Care
Peterborough,http://opendatacommunities.org/id/unitary-authority/peterborough,Peterborough City Council,Adult Services & Communities - Adults,Independent Sector Placements,Services,03/05/2017 00:00,8000088344,828,Revenue,Cozy Care,Home Care
Peterborough,http://opendatacommunities.org/id/unitary-authority/peterborough,Peterborough City Council,Adult Services & Communities - Adults,Independent Sector Placements,Services,03/05/2017 00:00,8000088345,745.2,Revenue,Cozy Care,Home Care
Peterborough,http://opendatacommunities.org/id/unitary-authority/peterborough,Peterborough City Council,Adult Services & Communities - Adults,Independent Sector Placements,Services,03/05/2017 00:00,8000088347,676.2,Revenue,Cozy Care,Home Care
Peterborough,http://opendatacommunities.org/id/unitary-authority/peterborough,Peterborough City Council,Adult Services & Communities - Adults,Independent Sector Placements,Services,03/05/2017 00:00,8000088348,531.3,Revenue,Cozy Care,Home Care
Peterborough,http://opendatacommunities.org/id/unitary-authority/peterborough,Peterborough City Council,Adult Services & Communities - Adults,Independent Sector Placements,Services,03/05/2017 00:00,8000088352,897,Revenue,Cozy Care,Home Care
Peterborough,http://opendatacommunities.org/id/unitary-authority/peterborough,Peterborough City Council,Adult Services & Communities - Adults,Independent Sector Placements,Services,03/05/2017 00:00,8000088353,579.6,Revenue,Cozy Care,Home Care
Peterborough,http://opendatacommunities.org/id/unitary-authority/peterborough,Peterborough City Council,Adult Services & Communities - Adults,Independent Sector Placements,Services,03/05/2017 00:00,8000088354,1338.6,Revenue,Cozy Care,Home Care
Peterborough,http://opendatacommunities.org/id/unitary-authority/peterborough,Peterborough City Council,Adult Services & Communities - Adults,Independent Sector Placements,Services,03/05/2017 00:00,8000088356,779.7,Revenue,Cozy Care,Home Care
Peterborough,http://opendatacommunities.org/id/unitary-authority/peterborough,Peterborough City Council,Adult Services & Communities - Adults,Independent Sector Placements,Services,03/05/2017 00:00,8000088360,530.64,Revenue,MEARS GROUP,Home Care
Peterborough,http://opendatacommunities.org/id/unitary-authority/peterborough,Peterborough City Council,Adult Services & Communities - Adults,Independent Sector Placements,Services,03/05/2017 00:00,8000088362,1006.56,Revenue,MEARS GROUP,Home Care
Peterborough,http://opendatacommunities.org/id/unitary-authority/peterborough,Peterborough City Council,Adult Services & Communities - Adults,Independent Sector Placements,Services,03/05/2017 00:00,8000088370,516.48,Revenue,MEARS GROUP,Home Care
Peterborough,http://opendatacommunities.org/id/unitary-authority/peterborough,Peterborough City Council,Adult Services & Communities - Adults,Independent Sector Placements,Services,03/05/2017 00:00,8000088497,1003.33,Revenue,PRESTIGE NURSING LIMITED,Home Care
Peterborough,http://opendatacommunities.org/id/unitary-authority/peterborough,Peterborough City Council,Adult Services & Communities - Adults,Independent Sector Placements,Services,03/05/2017 00:00,8000088499,613.05,Revenue,PRESTIGE NURSING LIMITED,Home Care
Peterborough,http://opendatacommunities.org/id/unitary-authority/peterborough,Peterborough City Council,Adult Services & Communities - Adults,Independent Sector Placements,Services,03/05/2017 00:00,8000088500,756.05,Revenue,PRESTIGE NURSING LIMITED,Home Care
Peterborough,http://opendatacommunities.org/id/unitary-authority/peterborough,Peterborough City Council,Education,Pupil Referral Unit,Services,05/05/2017 00:00,30114947,500,Revenue,City College Peterborough,Courses And Seminars
Peterborough,http://opendatacommunities.org/id/unitary-authority/peterborough,Peterborough City Council,Adult Services & Communities - Adults,Day Opportunities / In House,Rents,05/05/2017 00:00,30119481,1040,Revenue,Cross Keys Homes,Hire Of Premises
Peterborough,http://opendatacommunities.org/id/unitary-authority/peterborough,Peterborough City Council,Adult Services & Communities - Adults,Day Opportunities / In House,Rents,05/05/2017 00:00,30119482,1560,Revenue,Cross Keys Homes,Hire Of Premises
Peterborough,http://opendatacommunities.org/id/unitary-authority/peterborough,Peterborough City Council,HR,HR WFD & Training,Services,05/05/2017 00:00,30119551,1150,Revenue,Anglia Ruskin University,Courses And Seminars
Peterborough,http://opendatacommunities.org/id/unitary-authority/peterborough,Peterborough City Council,Commercial Group,Strategic Client Services,Services,05/05/2017 00:00,30120353,47964.99,Revenue,Konica Minolta Bus.Sol. East Ltd,Printing
Peterborough,http://opendatacommunities.org/id/unitary-authority/peterborough,Peterborough City Council,Children's & Safeguarding,Children's Social Care,Agency Staff,05/05/2017 00:00,30121476,1485,Revenue,Eden Brown Ltd,External Temporary Staff
Peterborough,http://opendatacommunities.org/id/unitary-authority/peterborough,Peterborough City Council,Corporate,Corporate,Non Revenue,05/05/2017 00:00,30123269,98526.24,Capital,Serco Ltd,IT Equipment
Peterborough,http://opendatacommunities.org/id/unitary-authority/peterborough,Peterborough City Council,Corporate Property,Commercial Propety,Repair & Maintenance of Buildings,05/05/2017 00:00,30123354,1710.32,Revenue,Serco Ltd,Premises Maintenance
Peterborough,http://opendatacommunities.org/id/unitary-authority/peterborough,Peterborough City Council,Westcombe Engineering,Westcombe Engineering,"Tools, Equipment, Furniture & Materials",05/05/2017 00:00,30124481,536.37,Revenue,Carillon Industrial Services Ltd,Items For Resale
Peterborough,http://opendatacommunities.org/id/unitary-authority/peterborough,Peterborough City Council,Adult Services & Communities - Adults,Independent Sector Placements,Services,05/05/2017 00:00,30124569,720,Revenue,SOCIAL CARE SOLUTIONS LTD,Home Care
Peterborough,http://opendatacommunities.org/id/unitary-authority/peterborough,Peterborough City Council,Adult Services & Communities - Adults,Independent Sector Placements,Services,05/05/2017 00:00,30124596,4096.32,Revenue,SOCIAL CARE SOLUTIONS LTD,Home Care
Peterborough,http://opendatacommunities.org/id/unitary-authority/peterborough,Peterborough City Council,Adult Services & Communities - Adults,Independent Sector Placements,Services,05/05/2017 00:00,30124597,960,Revenue,SOCIAL CARE SOLUTIONS LTD,Home Care
Peterborough,http://opendatacommunities.org/id/unitary-authority/peterborough,Peterborough City Council,Adult Services & Communities - Adults,Independent Sector Placements,Services,05/05/2017 00:00,30124598,7509.6,Revenue,SOCIAL CARE SOLUTIONS LTD,Home Care
Peterborough,http://opendatacommunities.org/id/unitary-authority/peterborough,Peterborough City Council,Adult Services & Communities - Adults,Independent Sector Placements,Services,05/05/2017 00:00,30124600,3223.2,Revenue,SOCIAL CARE SOLUTIONS LTD,Home Care
Peterborough,http://opendatacommunities.org/id/unitary-authority/peterborough,Peterborough City Council,Adult Services & Communities - Adults,Independent Sector Placements,Services,05/05/2017 00:00,30124602,4840,Revenue,SOCIAL CARE SOLUTIONS LTD,Home Care
Peterborough,http://opendatacommunities.org/id/unitary-authority/peterborough,Peterborough City Council,Adult Services & Communities - Adults,Independent Sector Placements,Services,05/05/2017 00:00,30124604,3223.2,Revenue,SOCIAL CARE SOLUTIONS LTD,Home Care
Peterborough,http://opendatacommunities.org/id/unitary-authority/peterborough,Peterborough City Council,Corporate,Corporate,Non Revenue,05/05/2017 00:00,30125021,3000,Capital,Chris Groome Decorating Ltd,Building And Site Works
Peterborough,http://opendatacommunities.org/id/unitary-authority/peterborough,Peterborough City Council,Children's & Safeguarding,Adult & Children Safeguarding Board,Interview & Training Expenses,05/05/2017 00:00,30125051,600,Revenue,HHSCC,Training
Peterborough,http://opendatacommunities.org/id/unitary-authority/peterborough,Peterborough City Council,Adult Services & Communities - Adults,Independent Sector Placements,Services,05/05/2017 00:00,30125141,806,Revenue,Thera East Anglia,Day Care
Peterborough,http://opendatacommunities.org/id/unitary-authority/peterborough,Peterborough City Council,Adult Services & Communities - Adults,Independent Sector Placements,Services,05/05/2017 00:00,30125145,806,Revenue,Thera East Anglia,Day Care
Peterborough,http://opendatacommunities.org/id/unitary-authority/peterborough,Peterborough City Council,Adult Services & Communities - Adults,Independent Sector Placements,Services,05/05/2017 00:00,30125147,1860,Revenue,Thera East Anglia,Day Care
Peterborough,http://opendatacommunities.org/id/unitary-authority/peterborough,Peterborough City Council,Adult Services & Communities - Adults,Independent Sector Placements,Services,05/05/2017 00:00,30125161,2051.16,Revenue,Thera East Anglia,Day Care
Peterborough,http://opendatacommunities.org/id/unitary-authority/peterborough,Peterborough City Council,Adult Services & Communities - Adults,Independent Sector Placements,Services,05/05/2017 00:00,30125163,713,Revenue,Thera East Anglia,Day Care
Peterborough,http://opendatacommunities.org/id/unitary-authority/peterborough,Peterborough City Council,Adult Services & Communities - Adults,Independent Sector Placements,Services,05/05/2017 00:00,30125164,3720,Revenue,Thera East Anglia,Day Care
Peterborough,http://opendatacommunities.org/id/unitary-authority/peterborough,Peterborough City Council,Adult Services & Communities - Adults,Independent Sector Placements,Services,05/05/2017 00:00,30125165,2361.16,Revenue,Thera East Anglia,Day Care
Peterborough,http://opendatacommunities.org/id/unitary-authority/peterborough,Peterborough City Council,Adult Services & Communities - Adults,Independent Sector Placements,Services,05/05/2017 00:00,30125166,806,Revenue,Thera East Anglia,Day Care
Peterborough,http://opendatacommunities.org/id/unitary-authority/peterborough,Peterborough City Council,Adult Services & Communities - Adults,Independent Sector Placements,Services,05/05/2017 00:00,30125167,769.84,Revenue,Thera East Anglia,Day Care
Peterborough,http://opendatacommunities.org/id/unitary-authority/peterborough,Peterborough City Council,Adult Services & Communities - Adults,Independent Sector Placements,Services,05/05/2017 00:00,30125168,806,Revenue,Thera East Anglia,Day Care
Peterborough,http://opendatacommunities.org/id/unitary-authority/peterborough,Peterborough City Council,Adult Services & Communities - Adults,Independent Sector Placements,Services,05/05/2017 00:00,30125169,2051.16,Revenue,Thera East Anglia,Day Care
Peterborough,http://opendatacommunities.org/id/unitary-authority/peterborough,Peterborough City Council,Adult Services & Communities - Adults,Independent Sector Placements,Services,05/05/2017 00:00,30125170,713,Revenue,Thera East Anglia,Day Care
Peterborough,http://opendatacommunities.org/id/unitary-authority/peterborough,Peterborough City Council,Legal & Democratic,Legal Services,Agency Staff,05/05/2017 00:00,30125277,1362.36,Revenue,Sellick Partnership Group Limited,External Temporary Staff
Peterborough,http://opendatacommunities.org/id/unitary-authority/peterborough,Peterborough City Council,Corporate,Corporate,Non Revenue,05/05/2017 00:00,30125309,576.88,Capital,British Telecom PLC,Infrastructure
Peterborough,http://opendatacommunities.org/id/unitary-authority/peterborough,Peterborough City Council,City Servs & Communications,"Markets, Tourism & Events",Repair & Maintenance of Buildings,05/05/2017 00:00,30125441,1901,Revenue,Ustigate Ltd,Premises Maintenance
Peterborough,http://opendatacommunities.org/id/unitary-authority/peterborough,Peterborough City Council,City Servs & Communications,"Markets, Tourism & Events",Repair & Maintenance of Buildings,05/05/2017 00:00,30125443,950,Revenue,Ustigate Ltd,Premises Maintenance
Peterborough,http://opendatacommunities.org/id/unitary-authority/peterborough,Peterborough City Council,Corporate,Corporate,Non Revenue,05/05/2017 00:00,30125491,3810,Capital,Dolphin Mobility East Midlands Ltd,Grant Payment
Peterborough,http://opendatacommunities.org/id/unitary-authority/peterborough,Peterborough City Council,Adult Services & Communities - Adults,Independent Sector Placements,Services,05/05/2017 00:00,30125527,1629.32,Revenue,BUPA Care Homes,Residential Care
Peterborough,http://opendatacommunities.org/id/unitary-authority/peterborough,Peterborough City Council,Adult Services & Communities - Adults,Independent Sector Placements,Services,05/05/2017 00:00,30125530,10726.08,Revenue,Community Care Solutions Ltd,Residential Care
Peterborough,http://opendatacommunities.org/id/unitary-authority/peterborough,Peterborough City Council,Adult Services & Communities - Adults,Independent Sector Placements,Services,05/05/2017 00:00,30125531,6400,Revenue,Community Care Solutions Ltd,Residential Care
Peterborough,http://opendatacommunities.org/id/unitary-authority/peterborough,Peterborough City Council,Adult Services & Communities - Adults,Independent Sector Placements,Services,05/05/2017 00:00,30125649,759.72,Revenue,Athena (Ashlynn Grange),Residential Care
Peterborough,http://opendatacommunities.org/id/unitary-authority/peterborough,Peterborough City Council,Adult Services & Communities - Adults,Independent Sector Placements,Services,05/05/2017 00:00,30125651,1638.96,Revenue,Athena (Ashlynn Grange),Residential Care
Peterborough,http://opendatacommunities.org/id/unitary-authority/peterborough,Peterborough City Council,Adult Services & Communities - Adults,Independent Sector Placements,Services,05/05/2017 00:00,30125653,1599.92,Revenue,Athena (Ashlynn Grange),Residential Care
Peterborough,http://opendatacommunities.org/id/unitary-authority/peterborough,Peterborough City Council,Adult Services & Communities - Adults,Independent Sector Placements,Services,05/05/2017 00:00,30125654,1047,Revenue,Athena (Ashlynn Grange),Residential Care
Peterborough,http://opendatacommunities.org/id/unitary-authority/peterborough,Peterborough City Council,Adult Services & Communities - Adults,Independent Sector Placements,Services,05/05/2017 00:00,30125656,1337.34,Revenue,Athena (Ashlynn Grange),Residential Care
Peterborough,http://opendatacommunities.org/id/unitary-authority/peterborough,Peterborough City Council,Adult Services & Communities - Adults,Independent Sector Placements,Services,05/05/2017 00:00,30125658,1701.16,Revenue,Athena (Ashlynn Grange),Residential Care
Peterborough,http://opendatacommunities.org/id/unitary-authority/peterborough,Peterborough City Council,Adult Services & Communities - Adults,Independent Sector Placements,Services,05/05/2017 00:00,30125660,1783.12,Revenue,Athena (Ashlynn Grange),Residential Care
Peterborough,http://opendatacommunities.org/id/unitary-authority/peterborough,Peterborough City Council,Adult Services & Communities - Adults,Independent Sector Placements,Services,05/05/2017 00:00,30125662,1576.24,Revenue,Athena (Ashlynn Grange),Residential Care
Peterborough,http://opendatacommunities.org/id/unitary-authority/peterborough,Peterborough City Council,Adult Services & Communities - Adults,Independent Sector Placements,Services,05/05/2017 00:00,30125664,1443.48,Revenue,Athena (Ashlynn Grange),Residential Care
Peterborough,http://opendatacommunities.org/id/unitary-authority/peterborough,Peterborough City Council,Adult Services & Communities - Adults,Independent Sector Placements,Services,05/05/2017 00:00,30125665,1172.44,Revenue,Athena (Ashlynn Grange),Residential Care
Peterborough,http://opendatacommunities.org/id/unitary-authority/peterborough,Peterborough City Council,Adult Services & Communities - Adults,Independent Sector Placements,Services,05/05/2017 00:00,30125667,1752.8,Revenue,Athena (Ashlynn Grange),Residential Care
Peterborough,http://opendatacommunities.org/id/unitary-authority/peterborough,Peterborough City Council,Adult Services & Communities - Adults,Independent Sector Placements,Services,05/05/2017 00:00,30125670,2103.83,Revenue,Athena (Ashlynn Grange),Residential Care
Peterborough,http://opendatacommunities.org/id/unitary-authority/peterborough,Peterborough City Council,Adult Services & Communities - Adults,Independent Sector Placements,Services,05/05/2017 00:00,30125671,2460,Revenue,Athena (Ashlynn Grange),Residential Care
Peterborough,http://opendatacommunities.org/id/unitary-authority/peterborough,Peterborough City Council,Adult Services & Communities - Adults,Independent Sector Placements,Services,05/05/2017 00:00,30125672,1576.24,Revenue,Athena (Ashlynn Grange),Residential Care
Peterborough,http://opendatacommunities.org/id/unitary-authority/peterborough,Peterborough City Council,Adult Services & Communities - Adults,Independent Sector Placements,Services,05/05/2017 00:00,30125674,1230.64,Revenue,Athena (Ashlynn Grange),Residential Care
Peterborough,http://opendatacommunities.org/id/unitary-authority/peterborough,Peterborough City Council,Adult Services & Communities - Adults,Independent Sector Placements,Services,05/05/2017 00:00,30125676,2305.92,Revenue,Athena (Ashlynn Grange),Residential Care
Peterborough,http://opendatacommunities.org/id/unitary-authority/peterborough,Peterborough City Council,Adult Services & Communities - Adults,Independent Sector Placements,Services,05/05/2017 00:00,30125679,1152.96,Revenue,Athena (Ashlynn Grange),Residential Care
Peterborough,http://opendatacommunities.org/id/unitary-authority/peterborough,Peterborough City Council,Adult Services & Communities - Adults,Independent Sector Placements,Services,05/05/2017 00:00,30125680,2305.92,Revenue,Athena (Ashlynn Grange),Residential Care
Peterborough,http://opendatacommunities.org/id/unitary-authority/peterborough,Peterborough City Council,Adult Services & Communities - Adults,Independent Sector Placements,Services,05/05/2017 00:00,30125682,1821.88,Revenue,Athena (Ashlynn Grange),Residential Care
Peterborough,http://opendatacommunities.org/id/unitary-authority/peterborough,Peterborough City Council,Adult Services & Communities - Adults,Independent Sector Placements,Services,05/05/2017 00:00,30125684,1299.08,Revenue,Athena (Ashlynn Grange),Residential Care
Peterborough,http://opendatacommunities.org/id/unitary-authority/peterborough,Peterborough City Council,Adult Services & Communities - Adults,Independent Sector Placements,Services,05/05/2017 00:00,30125686,718.72,Revenue,Athena (Ashlynn Grange),Residential Care
Peterborough,http://opendatacommunities.org/id/unitary-authority/peterborough,Peterborough City Council,Adult Services & Communities - Adults,Independent Sector Placements,Services,05/05/2017 00:00,30125688,1542.08,Revenue,Athena (Ashlynn Grange),Residential Care
Peterborough,http://opendatacommunities.org/id/unitary-authority/peterborough,Peterborough City Council,Adult Services & Communities - Adults,Independent Sector Placements,Services,05/05/2017 00:00,30125689,3053.38,Revenue,Athena (Ashlynn Grange),Residential Care
Peterborough,http://opendatacommunities.org/id/unitary-authority/peterborough,Peterborough City Council,Adult Services & Communities - Adults,Independent Sector Placements,Services,05/05/2017 00:00,30125691,1680.92,Revenue,Athena (Ashlynn Grange),Residential Care
Peterborough,http://opendatacommunities.org/id/unitary-authority/peterborough,Peterborough City Council,Adult Services & Communities - Adults,Independent Sector Placements,Services,05/05/2017 00:00,30125693,14401.6,Revenue,Athena (Ashlynn Grange),Residential Care
Peterborough,http://opendatacommunities.org/id/unitary-authority/peterborough,Peterborough City Council,Adult Services & Communities - Adults,Independent Sector Placements,Services,05/05/2017 00:00,30125695,1775.12,Revenue,Athena (Ashlynn Grange),Residential Care
Peterborough,http://opendatacommunities.org/id/unitary-authority/peterborough,Peterborough City Council,Adult Services & Communities - Adults,Independent Sector Placements,Services,05/05/2017 00:00,30125697,-545.83,Revenue,Athena (Ashlynn Grange),Residential Care
Peterborough,http://opendatacommunities.org/id/unitary-authority/peterborough,Peterborough City Council,Adults and Communities - Communities,Community Safety,"Tools, Equipment, Furniture & Materials",05/05/2017 00:00,30125754,83376.86,Revenue,British Telecom PLC,Communications Equipment
Peterborough,http://opendatacommunities.org/id/unitary-authority/peterborough,Peterborough City Council,Westcombe Engineering,Westcombe Engineering,"Tools, Equipment, Furniture & Materials",05/05/2017 00:00,30125765,973.73,Revenue,Eaton Ltd,Items For Resale
Peterborough,http://opendatacommunities.org/id/unitary-authority/peterborough,Peterborough City Council,Adult Services & Communities - Adults,Independent Sector Placements,Services,05/05/2017 00:00,30125906,658,Revenue,COMFORCARE SENIOR SERVICES,Home Care
Peterborough,http://opendatacommunities.org/id/unitary-authority/peterborough,Peterborough City Council,Adult Services & Communities - Adults,Independent Sector Placements,Services,05/05/2017 00:00,30125914,2047.09,Revenue,Athena (Ashlynn Grange),Residential Care
Peterborough,http://opendatacommunities.org/id/unitary-authority/peterborough,Peterborough City Council,Adult Services & Communities - Adults,Independent Sector Placements,Services,05/05/2017 00:00,30125934,1258.92,Revenue,Athena (Ashlynn Grange),Residential Care
Peterborough,http://opendatacommunities.org/id/unitary-authority/peterborough,Peterborough City Council,Adult Services & Communities - Adults,Independent Sector Placements,Services,05/05/2017 00:00,30125935,1776.72,Revenue,Athena (Ashlynn Grange),Residential Care
Peterborough,http://opendatacommunities.org/id/unitary-authority/peterborough,Peterborough City Council,Adult Services & Communities - Adults,Independent Sector Placements,Services,05/05/2017 00:00,30125936,859.2,Revenue,Athena (Ashlynn Grange),Residential Care
Peterborough,http://opendatacommunities.org/id/unitary-authority/peterborough,Peterborough City Council,Adult Services & Communities - Adults,Independent Sector Placements,Services,05/05/2017 00:00,30125938,921.52,Revenue,Athena (Ashlynn Grange),Residential Care
Peterborough,http://opendatacommunities.org/id/unitary-authority/peterborough,Peterborough City Council,Adult Services & Communities - Adults,Independent Sector Placements,Services,05/05/2017 00:00,30125945,3775.6,Revenue,Community Care Solutions Ltd,Residential Care
Peterborough,http://opendatacommunities.org/id/unitary-authority/peterborough,Peterborough City Council,Children's & Safeguarding,Child Health,Services,05/05/2017 00:00,30125949,750.4,Revenue,Sahara Community Care Services,Purchased Social Care Services
Peterborough,http://opendatacommunities.org/id/unitary-authority/peterborough,Peterborough City Council,Adult Services & Communities - Adults,Independent Sector Placements,Services,05/05/2017 00:00,30125950,3775.6,Revenue,Community Care Solutions Ltd,Residential Care
Peterborough,http://opendatacommunities.org/id/unitary-authority/peterborough,Peterborough City Council,Adult Services & Communities - Adults,Independent Sector Placements,Services,05/05/2017 00:00,30125952,3775.6,Revenue,Community Care Solutions Ltd,Residential Care
Peterborough,http://opendatacommunities.org/id/unitary-authority/peterborough,Peterborough City Council,Adult Services & Communities - Adults,Independent Sector Placements,Services,05/05/2017 00:00,30125974,3775.6,Revenue,Community Care Solutions Ltd,Residential Care
Peterborough,http://opendatacommunities.org/id/unitary-authority/peterborough,Peterborough City Council,Business Management and Commercial Operations,Commissioning,Water Services,05/05/2017 00:00,30126238,894.59,Revenue,Anglian Water,Water
Peterborough,http://opendatacommunities.org/id/unitary-authority/peterborough,Peterborough City Council,Education,PFI,Water Services,05/05/2017 00:00,30126238,921.6,Revenue,Anglian Water,Water
Peterborough,http://opendatacommunities.org/id/unitary-authority/peterborough,Peterborough City Council,Education,PFI,Water Services,05/05/2017 00:00,30126238,862.16,Revenue,Anglian Water,Water
Peterborough,http://opendatacommunities.org/id/unitary-authority/peterborough,Peterborough City Council,City Servs & Communications,"Markets, Tourism & Events",Water Services,05/05/2017 00:00,30126238,549.63,Revenue,Anglian Water,Water
Peterborough,http://opendatacommunities.org/id/unitary-authority/peterborough,Peterborough City Council,Vivacity/Cultural Services,Cultural Services,Water Services,05/05/2017 00:00,30126238,521.22,Revenue,Anglian Water,Water
Peterborough,http://opendatacommunities.org/id/unitary-authority/peterborough,Peterborough City Council,Amey Peterborough & Waste Management,Waste & Operational Svs Mgmt,Water Services,05/05/2017 00:00,30126241,1275.66,Revenue,Anglian Water,Water
Peterborough,http://opendatacommunities.org/id/unitary-authority/peterborough,Peterborough City Council,City Servs & Communications,Parking Services,Water Services,05/05/2017 00:00,30126241,1164.93,Revenue,Anglian Water,Water
Peterborough,http://opendatacommunities.org/id/unitary-authority/peterborough,Peterborough City Council,Adult Services & Communities - Adults,Independent Sector Placements,Services,05/05/2017 00:00,30126289,2047.4,Revenue,LINK HOUSE,Residential Care
Peterborough,http://opendatacommunities.org/id/unitary-authority/peterborough,Peterborough City Council,Westcombe Engineering,Westcombe Engineering,"Tools, Equipment, Furniture & Materials",05/05/2017 00:00,30126304,641.12,Revenue,Parkside Steel (Stockholders) Ltd,Items For Resale
Peterborough,http://opendatacommunities.org/id/unitary-authority/peterborough,Peterborough City Council,Business Management and Commercial Operations,Clare Lodge,Services,05/05/2017 00:00,30126420,585,Revenue,SLB Securing School Improvement Ltd,Education Expenses
Peterborough,http://opendatacommunities.org/id/unitary-authority/peterborough,Peterborough City Council,City Servs & Communications,Marketing & Communications,Services,05/05/2017 00:00,30126625,915,Revenue,G P Print Limited,Printing
Peterborough,http://opendatacommunities.org/id/unitary-authority/peterborough,Peterborough City Council,Adults and Communities - Communities,Service Director - Adults & Communities,Services,05/05/2017 00:00,30126667,800,Revenue,Rightroom Lettings Ltd,Financial Assistance
Peterborough,http://opendatacommunities.org/id/unitary-authority/peterborough,Peterborough City Council,Adults and Communities - Communities,Service Director - Adults & Communities,Services,05/05/2017 00:00,30126671,575,Revenue,Record Property Solutions,Financial Assistance
Peterborough,http://opendatacommunities.org/id/unitary-authority/peterborough,Peterborough City Council,Adults and Communities - Communities,Service Director - Adults & Communities,Services,05/05/2017 00:00,30126672,625,Revenue,Rightroom Lettings Ltd,Financial Assistance
Peterborough,http://opendatacommunities.org/id/unitary-authority/peterborough,Peterborough City Council,Adults and Communities - Communities,Service Director - Adults & Communities,Services,05/05/2017 00:00,30126674,800,Revenue,Hope Into Action,Financial Assistance
Peterborough,http://opendatacommunities.org/id/unitary-authority/peterborough,Peterborough City Council,Corporate,Corporate,Non Revenue,05/05/2017 00:00,30126699,2764.51,Capital,Lynch Healthcare,Grant Payment
Peterborough,http://opendatacommunities.org/id/unitary-authority/peterborough,Peterborough City Council,Adults and Communities - Communities,Housing and Health,Services,05/05/2017 00:00,30126701,800,Revenue,AGT Property Managment Ltd,Financial Assistance
Peterborough,http://opendatacommunities.org/id/unitary-authority/peterborough,Peterborough City Council,"Cemeteries, Cremation & Registrars",Bereavement Service,Energy Costs,05/05/2017 00:00,30126702,773.76,Revenue,Corona Energy Retail 4 Limited,Gas
Peterborough,http://opendatacommunities.org/id/unitary-authority/peterborough,Peterborough City Council,Corporate Property,Office Accomodation,Energy Costs,05/05/2017 00:00,30126704,635.61,Revenue,Corona Energy Retail 4 Limited,Gas
Peterborough,http://opendatacommunities.org/id/unitary-authority/peterborough,Peterborough City Council,Vivacity/Cultural Services,Cultural Services,Energy Costs,05/05/2017 00:00,30126704,861.47,Revenue,Corona Energy Retail 4 Limited,Gas
Peterborough,http://opendatacommunities.org/id/unitary-authority/peterborough,Peterborough City Council,Vivacity/Cultural Services,Cultural Services,Energy Costs,05/05/2017 00:00,30126704,908.72,Revenue,Corona Energy Retail 4 Limited,Gas
Peterborough,http://opendatacommunities.org/id/unitary-authority/peterborough,Peterborough City Council,Corporate Property,Commercial Propety,Energy Costs,05/05/2017 00:00,30126704,1055.2,Revenue,Corona Energy Retail 4 Limited,Gas
Peterborough,http://opendatacommunities.org/id/unitary-authority/peterborough,Peterborough City Council,Vivacity/Cultural Services,Cultural Services,Energy Costs,05/05/2017 00:00,30126704,936.7,Revenue,Corona Energy Retail 4 Limited,Gas
Peterborough,http://opendatacommunities.org/id/unitary-authority/peterborough,Peterborough City Council,Vivacity/Cultural Services,Cultural Services,Energy Costs,05/05/2017 00:00,30126704,1339.71,Revenue,Corona Energy Retail 4 Limited,Gas
Peterborough,http://opendatacommunities.org/id/unitary-authority/peterborough,Peterborough City Council,Vivacity/Cultural Services,Cultural Services,Energy Costs,05/05/2017 00:00,30126705,4568.12,Revenue,Corona Energy Retail 4 Limited,Gas
Peterborough,http://opendatacommunities.org/id/unitary-authority/peterborough,Peterborough City Council,Adult Services & Communities - Adults,Independent Sector Placements,Services,05/05/2017 00:00,30126714,4289.6,Revenue,Peterborough Care  The Maltings,Residential Care
Peterborough,http://opendatacommunities.org/id/unitary-authority/peterborough,Peterborough City Council,Adult Services & Communities - Adults,Independent Sector Placements,Services,05/05/2017 00:00,30126716,3244,Revenue,Richmond Fellowship,Residential Care
Peterborough,http://opendatacommunities.org/id/unitary-authority/peterborough,Peterborough City Council,Adult Services & Communities - Adults,Independent Sector Placements,Services,05/05/2017 00:00,30126717,3292,Revenue,Richmond Fellowship,Residential Care
Peterborough,http://opendatacommunities.org/id/unitary-authority/peterborough,Peterborough City Council,Adult Services & Communities - Adults,Independent Sector Placements,Services,05/05/2017 00:00,30126718,2494.2,Revenue,STAR RESIDENTIAL HOME LTD,Residential Care
Peterborough,http://opendatacommunities.org/id/unitary-authority/peterborough,Peterborough City Council,Adult Services & Communities - Adults,Independent Sector Placements,Services,05/05/2017 00:00,30126719,3276,Revenue,Select Support Partnerships Limited,Home Care
Peterborough,http://opendatacommunities.org/id/unitary-authority/peterborough,Peterborough City Council,Adult Services & Communities - Adults,Independent Sector Placements,Services,05/05/2017 00:00,30126721,1356.87,Revenue,Country Court Care Homes Ltd (St Johns),Residential Care
Peterborough,http://opendatacommunities.org/id/unitary-authority/peterborough,Peterborough City Council,Adults and Communities - Communities,Service Director - Adults & Communities,Services,05/05/2017 00:00,30126725,625,Revenue,Record Property Solutions,Financial Assistance
Peterborough,http://opendatacommunities.org/id/unitary-authority/peterborough,Peterborough City Council,Adults and Communities - Communities,Housing and Health,Services,05/05/2017 00:00,30126729,600.01,Revenue,Touch Stone CPS,Financial Assistance
Peterborough,http://opendatacommunities.org/id/unitary-authority/peterborough,Peterborough City Council,Adults and Communities - Communities,Early Help ASC/CSC,Services,05/05/2017 00:00,30126733,5220,Revenue,Kevin Sanders Events,Programmes
Peterborough,http://opendatacommunities.org/id/unitary-authority/peterborough,Peterborough City Council,"Cemeteries, Cremation & Registrars",Bereavement Service,Energy Costs,05/05/2017 00:00,30126789,1877.42,Revenue,Corona Energy Retail 4 Limited,Gas
Peterborough,http://opendatacommunities.org/id/unitary-authority/peterborough,Peterborough City Council,Education,PFI,Energy Costs,05/05/2017 00:00,30126789,957.07,Revenue,Corona Energy Retail 4 Limited,Gas
Peterborough,http://opendatacommunities.org/id/unitary-authority/peterborough,Peterborough City Council,Education,PFI,Energy Costs,05/05/2017 00:00,30126790,706.53,Revenue,Corona Energy Retail 4 Limited,Gas
Peterborough,http://opendatacommunities.org/id/unitary-authority/peterborough,Peterborough City Council,Education,Pupil Referral Unit,Energy Costs,05/05/2017 00:00,30126790,1392.54,Revenue,Corona Energy Retail 4 Limited,Gas
Peterborough,http://opendatacommunities.org/id/unitary-authority/peterborough,Peterborough City Council,Vivacity/Cultural Services,Cultural Services,Energy Costs,05/05/2017 00:00,30126792,1589.98,Revenue,Corona Energy Retail 4 Limited,Gas
Peterborough,http://opendatacommunities.org/id/unitary-authority/peterborough,Peterborough City Council,Adult Services & Communities - Adults,Independent Sector Placements,Services,05/05/2017 00:00,30126819,3900,Revenue,Select Support Partnerships Limited,Home Care
Peterborough,http://opendatacommunities.org/id/unitary-authority/peterborough,Peterborough City Council,Adult Services & Communities - Adults,Independent Sector Placements,Services,05/05/2017 00:00,30126820,3900,Revenue,Select Support Partnerships Limited,Home Care
Peterborough,http://opendatacommunities.org/id/unitary-authority/peterborough,Peterborough City Council,Education,Pupil Referral Unit,Services,05/05/2017 00:00,30126822,975,Revenue,Boome Academy,Courses And Seminars
Peterborough,http://opendatacommunities.org/id/unitary-authority/peterborough,Peterborough City Council,Legal & Democratic,Democratic Services,Catering,05/05/2017 00:00,30126840,1073,Revenue,Bretton Caterers,Catering Supplies
Peterborough,http://opendatacommunities.org/id/unitary-authority/peterborough,Peterborough City Council,Education,Special Educational Needs / Inclusion,Services,05/05/2017 00:00,30126931,554,Revenue,Children's Therapy Solutions Ltd,Occupational Health
Peterborough,http://opendatacommunities.org/id/unitary-authority/peterborough,Peterborough City Council,Children's & Safeguarding,Children's Social Care,Services,05/05/2017 00:00,30126947,8400,Revenue,Cambs & P'boro NHS Foundation Trust,Consultants Fees
Peterborough,http://opendatacommunities.org/id/unitary-authority/peterborough,Peterborough City Council,Children's & Safeguarding,Child Health,Cleaning & Domestic Supplies,05/05/2017 00:00,30126955,1012.92,Revenue,OCS Group (UK) Ltd - Cannon Hygiene,Refuse Collection
Peterborough,http://opendatacommunities.org/id/unitary-authority/peterborough,Peterborough City Council,Education,Pupil Referral Unit,Agency Staff,05/05/2017 00:00,30126960,6560,Revenue,Vision for Education Ltd,Supply Teachers
Peterborough,http://opendatacommunities.org/id/unitary-authority/peterborough,Peterborough City Council,Adult Services & Communities - Adults,Finance,Agency Staff,05/05/2017 00:00,30126967,1465.6,Revenue,Reed Specialist Recruitment,External Temporary Staff
Peterborough,http://opendatacommunities.org/id/unitary-authority/peterborough,Peterborough City Council,Adult Services & Communities - Adults,Independent Sector Placements,Services,05/05/2017 00:00,30127004,1528.92,Revenue,Sense,Day Care
Peterborough,http://opendatacommunities.org/id/unitary-authority/peterborough,Peterborough City Council,Adult Services & Communities - Adults,Independent Sector Placements,Services,05/05/2017 00:00,30127008,630,Revenue,Sense,Day Care
Peterborough,http://opendatacommunities.org/id/unitary-authority/peterborough,Peterborough City Council,Adult Services & Communities - Adults,Independent Sector Placements,Services,05/05/2017 00:00,30127010,1636.8,Revenue,Sense,Day Care
Peterborough,http://opendatacommunities.org/id/unitary-authority/peterborough,Peterborough City Council,Amey Peterborough & Waste Management,Waste & Operational Svs Mgmt,Third Party Payments,05/05/2017 00:00,30127026,560432.18,Revenue,Enterprise Managed Services Limited,Third Party Payments - Contract
Peterborough,http://opendatacommunities.org/id/unitary-authority/peterborough,Peterborough City Council,Adults and Communities - Communities,Housing and Health,Services,05/05/2017 00:00,30127029,952,Revenue,Rawheat Heating & Plumbing Eng.,Contractors
Peterborough,http://opendatacommunities.org/id/unitary-authority/peterborough,Peterborough City Council,Children's & Safeguarding,Children's Social Care,Services,05/05/2017 00:00,30127031,16003.52,Revenue,Irwin Mitchell LLP,Legal Costs
Peterborough,http://opendatacommunities.org/id/unitary-authority/peterborough,Peterborough City Council,Education,Special Educational Needs / Inclusion,Services,05/05/2017 00:00,30127034,630,Revenue,The National Teaching & Advisory Service,Education Expenses
Peterborough,http://opendatacommunities.org/id/unitary-authority/peterborough,Peterborough City Council,Education,Special Educational Needs / Inclusion,Agency Staff,05/05/2017 00:00,30127035,1548.2,Revenue,Redacted Personal Information,External Temporary Staff
Peterborough,http://opendatacommunities.org/id/unitary-authority/peterborough,Peterborough City Council,Westcombe Engineering,Westcombe Engineering,Services,05/05/2017 00:00,30127043,1561,Revenue,Data Interchange,Hired Services
Peterborough,http://opendatacommunities.org/id/unitary-authority/peterborough,Peterborough City Council,Adult Services & Communities - Adults,Block Contracts,Third Party Payments,05/05/2017 00:00,30127060,4812.15,Revenue,Turning Point Services Ltd,Third Party Payments - Contract
Peterborough,http://opendatacommunities.org/id/unitary-authority/peterborough,Peterborough City Council,Adult Services & Communities - Adults,Block Contracts,Third Party Payments,05/05/2017 00:00,30127062,119613.53,Revenue,Turning Point Services Ltd,Third Party Payments - Contract
Peterborough,http://opendatacommunities.org/id/unitary-authority/peterborough,Peterborough City Council,Adults and Communities - Communities,Housing and Health,Services,05/05/2017 00:00,30127070,600.01,Revenue,City and County,Financial Assistance
Peterborough,http://opendatacommunities.org/id/unitary-authority/peterborough,Peterborough City Council,Vivacity/Cultural Services,Cultural Services,Customer and client receipts - Fees & Charges,05/05/2017 00:00,30127078,5896.6,Revenue,Vivacity Culture and Leisure,Cash Collected
Peterborough,http://opendatacommunities.org/id/unitary-authority/peterborough,Peterborough City Council,Adults and Communities - Communities,Housing and Health,Services,05/05/2017 00:00,30127080,525,Revenue,Eastfield Guesthouse,Homelessness Bed & Breakfast Costs
Peterborough,http://opendatacommunities.org/id/unitary-authority/peterborough,Peterborough City Council,Adults and Communities - Communities,Housing and Health,Services,05/05/2017 00:00,30127086,525,Revenue,Eastfield Guesthouse,Homelessness Bed & Breakfast Costs
Peterborough,http://opendatacommunities.org/id/unitary-authority/peterborough,Peterborough City Council,Adults and Communities - Communities,Housing and Health,Services,05/05/2017 00:00,30127088,525,Revenue,Eastfield Guesthouse,Homelessness Bed & Breakfast Costs
Peterborough,http://opendatacommunities.org/id/unitary-authority/peterborough,Peterborough City Council,Adults and Communities - Communities,Housing and Health,Services,05/05/2017 00:00,30127132,507.5,Revenue,Eastfield Guesthouse,Homelessness Bed & Breakfast Costs
Peterborough,http://opendatacommunities.org/id/unitary-authority/peterborough,Peterborough City Council,Adults and Communities - Communities,Housing and Health,Services,05/05/2017 00:00,30127134,507.5,Revenue,Eastfield Guesthouse,Homelessness Bed & Breakfast Costs
Peterborough,http://opendatacommunities.org/id/unitary-authority/peterborough,Peterborough City Council,Adults and Communities - Communities,Housing and Health,Services,05/05/2017 00:00,30127137,507.5,Revenue,Eastfield Guesthouse,Homelessness Bed & Breakfast Costs
Peterborough,http://opendatacommunities.org/id/unitary-authority/peterborough,Peterborough City Council,Adults and Communities - Communities,Housing and Health,Services,05/05/2017 00:00,30127142,507.5,Revenue,Eastfield Guesthouse,Homelessness Bed & Breakfast Costs
Peterborough,http://opendatacommunities.org/id/unitary-authority/peterborough,Peterborough City Council,Adults and Communities - Communities,Housing and Health,Services,05/05/2017 00:00,30127151,525,Revenue,Eastfield Guesthouse,Homelessness Bed & Breakfast Costs
Peterborough,http://opendatacommunities.org/id/unitary-authority/peterborough,Peterborough City Council,Adults and Communities - Communities,Housing and Health,Services,05/05/2017 00:00,30127152,525,Revenue,Eastfield Guesthouse,Homelessness Bed & Breakfast Costs
Peterborough,http://opendatacommunities.org/id/unitary-authority/peterborough,Peterborough City Council,Adults and Communities - Communities,Housing and Health,Services,05/05/2017 00:00,30127153,525,Revenue,Eastfield Guesthouse,Homelessness Bed & Breakfast Costs
Peterborough,http://opendatacommunities.org/id/unitary-authority/peterborough,Peterborough City Council,Adult Services & Communities - Adults,Independent Sector Placements,Services,05/05/2017 00:00,8000088151,3409.32,Revenue,Augusta Care Ltd,Home Care
Peterborough,http://opendatacommunities.org/id/unitary-authority/peterborough,Peterborough City Council,Adult Services & Communities - Adults,Independent Sector Placements,Services,05/05/2017 00:00,8000088152,3497.36,Revenue,Augusta Care Ltd,Home Care
Peterborough,http://opendatacommunities.org/id/unitary-authority/peterborough,Peterborough City Council,Adult Services & Communities - Adults,Independent Sector Placements,Services,05/05/2017 00:00,8000088153,2380.12,Revenue,Augusta Care Ltd,Home Care
Peterborough,http://opendatacommunities.org/id/unitary-authority/peterborough,Peterborough City Council,Adult Services & Communities - Adults,Independent Sector Placements,Services,05/05/2017 00:00,8000088154,3017.4,Revenue,Augusta Care Ltd,Home Care
Peterborough,http://opendatacommunities.org/id/unitary-authority/peterborough,Peterborough City Council,Adult Services & Communities - Adults,Independent Sector Placements,Services,05/05/2017 00:00,8000088156,681.6,Revenue,Augusta Care Ltd,Home Care
Peterborough,http://opendatacommunities.org/id/unitary-authority/peterborough,Peterborough City Council,Adult Services & Communities - Adults,Independent Sector Placements,Services,05/05/2017 00:00,8000088157,1902.8,Revenue,Augusta Care Ltd,Home Care
Peterborough,http://opendatacommunities.org/id/unitary-authority/peterborough,Peterborough City Council,Adult Services & Communities - Adults,Independent Sector Placements,Services,05/05/2017 00:00,8000088158,6337.36,Revenue,Augusta Care Ltd,Home Care
Peterborough,http://opendatacommunities.org/id/unitary-authority/peterborough,Peterborough City Council,Adult Services & Communities - Adults,Independent Sector Placements,Services,05/05/2017 00:00,8000088159,1793.36,Revenue,Augusta Care Ltd,Home Care
Peterborough,http://opendatacommunities.org/id/unitary-authority/peterborough,Peterborough City Council,Adult Services & Communities - Adults,Independent Sector Placements,Services,05/05/2017 00:00,8000088160,2446.56,Revenue,Augusta Care Ltd,Home Care
Peterborough,http://opendatacommunities.org/id/unitary-authority/peterborough,Peterborough City Council,Adult Services & Communities - Adults,Independent Sector Placements,Services,05/05/2017 00:00,8000088161,3882.8,Revenue,Augusta Care Ltd,Home Care
Peterborough,http://opendatacommunities.org/id/unitary-authority/peterborough,Peterborough City Council,Adult Services & Communities - Adults,Independent Sector Placements,Services,05/05/2017 00:00,8000088162,2746.8,Revenue,Augusta Care Ltd,Home Care
Peterborough,http://opendatacommunities.org/id/unitary-authority/peterborough,Peterborough City Council,Adult Services & Communities - Adults,Independent Sector Placements,Services,05/05/2017 00:00,8000088163,1400.12,Revenue,Augusta Care Ltd,Home Care
Peterborough,http://opendatacommunities.org/id/unitary-authority/peterborough,Peterborough City Council,Adult Services & Communities - Adults,Independent Sector Placements,Services,05/05/2017 00:00,8000088164,3436.92,Revenue,Augusta Care Ltd,Home Care
Peterborough,http://opendatacommunities.org/id/unitary-authority/peterborough,Peterborough City Council,Adult Services & Communities - Adults,Independent Sector Placements,Services,05/05/2017 00:00,8000088165,1343.32,Revenue,Augusta Care Ltd,Home Care
Peterborough,http://opendatacommunities.org/id/unitary-authority/peterborough,Peterborough City Council,Adult Services & Communities - Adults,Independent Sector Placements,Services,05/05/2017 00:00,8000088166,2862.72,Revenue,Augusta Care Ltd,Home Care
Peterborough,http://opendatacommunities.org/id/unitary-authority/peterborough,Peterborough City Council,Adult Services & Communities - Adults,Independent Sector Placements,Services,05/05/2017 00:00,8000088167,5180.12,Revenue,Augusta Care Ltd,Home Care
Peterborough,http://opendatacommunities.org/id/unitary-authority/peterborough,Peterborough City Council,Adult Services & Communities - Adults,Independent Sector Placements,Services,05/05/2017 00:00,8000088168,3645.96,Revenue,Augusta Care Ltd,Home Care
Peterborough,http://opendatacommunities.org/id/unitary-authority/peterborough,Peterborough City Council,Adult Services & Communities - Adults,Independent Sector Placements,Services,05/05/2017 00:00,8000088169,3818.84,Revenue,Augusta Care Ltd,Home Care
Peterborough,http://opendatacommunities.org/id/unitary-authority/peterborough,Peterborough City Council,Adult Services & Communities - Adults,Independent Sector Placements,Services,05/05/2017 00:00,8000088170,4493.4,Revenue,Augusta Care Ltd,Home Care
Peterborough,http://opendatacommunities.org/id/unitary-authority/peterborough,Peterborough City Council,Adult Services & Communities - Adults,Independent Sector Placements,Services,05/05/2017 00:00,8000088171,4607,Revenue,Augusta Care Ltd,Home Care
Peterborough,http://opendatacommunities.org/id/unitary-authority/peterborough,Peterborough City Council,Adult Services & Communities - Adults,Independent Sector Placements,Services,05/05/2017 00:00,8000088172,3420.4,Revenue,Augusta Care Ltd,Home Care
Peterborough,http://opendatacommunities.org/id/unitary-authority/peterborough,Peterborough City Council,Adult Services & Communities - Adults,Independent Sector Placements,Services,05/05/2017 00:00,8000088173,2087.4,Revenue,Augusta Care Ltd,Home Care
Peterborough,http://opendatacommunities.org/id/unitary-authority/peterborough,Peterborough City Council,Adult Services & Communities - Adults,Independent Sector Placements,Services,05/05/2017 00:00,8000088174,4820,Revenue,Augusta Care Ltd,Home Care
Peterborough,http://opendatacommunities.org/id/unitary-authority/peterborough,Peterborough City Council,Adult Services & Communities - Adults,Independent Sector Placements,Services,05/05/2017 00:00,8000088175,1590.4,Revenue,Augusta Care Ltd,Home Care
Peterborough,http://opendatacommunities.org/id/unitary-authority/peterborough,Peterborough City Council,Adult Services & Communities - Adults,Independent Sector Placements,Services,05/05/2017 00:00,8000088176,1590.4,Revenue,Augusta Care Ltd,Home Care
Peterborough,http://opendatacommunities.org/id/unitary-authority/peterborough,Peterborough City Council,Adult Services & Communities - Adults,Independent Sector Placements,Services,05/05/2017 00:00,8000088177,4252,Revenue,Augusta Care Ltd,Home Care
Peterborough,http://opendatacommunities.org/id/unitary-authority/peterborough,Peterborough City Council,Adult Services & Communities - Adults,Independent Sector Placements,Services,05/05/2017 00:00,8000088178,4244.04,Revenue,Augusta Care Ltd,Home Care
Peterborough,http://opendatacommunities.org/id/unitary-authority/peterborough,Peterborough City Council,Adult Services & Communities - Adults,Independent Sector Placements,Services,05/05/2017 00:00,8000088179,547,Revenue,Augusta Care Ltd,Home Care
Peterborough,http://opendatacommunities.org/id/unitary-authority/peterborough,Peterborough City Council,Adult Services & Communities - Adults,Independent Sector Placements,Services,05/05/2017 00:00,8000088180,831,Revenue,Augusta Care Ltd,Home Care
Peterborough,http://opendatacommunities.org/id/unitary-authority/peterborough,Peterborough City Council,Adult Services & Communities - Adults,Independent Sector Placements,Services,05/05/2017 00:00,8000088181,1576.2,Revenue,Augusta Care Ltd,Home Care
Peterborough,http://opendatacommunities.org/id/unitary-authority/peterborough,Peterborough City Council,Adult Services & Communities - Adults,Independent Sector Placements,Services,05/05/2017 00:00,8000088182,568,Revenue,Augusta Care Ltd,Home Care
Peterborough,http://opendatacommunities.org/id/unitary-authority/peterborough,Peterborough City Council,Adult Services & Communities - Adults,Independent Sector Placements,Services,05/05/2017 00:00,8000088185,1972,Revenue,Augusta Care Ltd,Home Care
Peterborough,http://opendatacommunities.org/id/unitary-authority/peterborough,Peterborough City Council,Adult Services & Communities - Adults,Independent Sector Placements,Services,05/05/2017 00:00,8000088186,4402.52,Revenue,Augusta Care Ltd,Home Care
Peterborough,http://opendatacommunities.org/id/unitary-authority/peterborough,Peterborough City Council,Adult Services & Communities - Adults,Independent Sector Placements,Services,05/05/2017 00:00,8000088187,653.2,Revenue,Augusta Care Ltd,Home Care
Peterborough,http://opendatacommunities.org/id/unitary-authority/peterborough,Peterborough City Council,Adult Services & Communities - Adults,Independent Sector Placements,Services,05/05/2017 00:00,8000088188,1022.4,Revenue,Augusta Care Ltd,Home Care
Peterborough,http://opendatacommunities.org/id/unitary-authority/peterborough,Peterborough City Council,Adult Services & Communities - Adults,Independent Sector Placements,Services,05/05/2017 00:00,8000088189,1178.6,Revenue,Augusta Care Ltd,Home Care
Peterborough,http://opendatacommunities.org/id/unitary-authority/peterborough,Peterborough City Council,Adult Services & Communities - Adults,Independent Sector Placements,Services,05/05/2017 00:00,8000088190,7481.6,Revenue,Augusta Care Ltd,Home Care
Peterborough,http://opendatacommunities.org/id/unitary-authority/peterborough,Peterborough City Council,Adult Services & Communities - Adults,Independent Sector Placements,Services,05/05/2017 00:00,8000088191,7084,Revenue,Augusta Care Ltd,Home Care
Peterborough,http://opendatacommunities.org/id/unitary-authority/peterborough,Peterborough City Council,Adult Services & Communities - Adults,Independent Sector Placements,Services,05/05/2017 00:00,8000088192,823.6,Revenue,Augusta Care Ltd,Home Care
Peterborough,http://opendatacommunities.org/id/unitary-authority/peterborough,Peterborough City Council,Adult Services & Communities - Adults,Independent Sector Placements,Services,05/05/2017 00:00,8000088194,3388.32,Revenue,Augusta Care Ltd,Home Care
Peterborough,http://opendatacommunities.org/id/unitary-authority/peterborough,Peterborough City Council,Adult Services & Communities - Adults,Independent Sector Placements,Services,05/05/2017 00:00,8000088195,11132.8,Revenue,Augusta Care Ltd,Home Care
Peterborough,http://opendatacommunities.org/id/unitary-authority/peterborough,Peterborough City Council,Adult Services & Communities - Adults,Independent Sector Placements,Services,05/05/2017 00:00,8000088196,1604.6,Revenue,Augusta Care Ltd,Home Care
Peterborough,http://opendatacommunities.org/id/unitary-authority/peterborough,Peterborough City Council,Adult Services & Communities - Adults,Independent Sector Placements,Services,05/05/2017 00:00,8000088197,4157.16,Revenue,Augusta Care Ltd,Home Care
Peterborough,http://opendatacommunities.org/id/unitary-authority/peterborough,Peterborough City Council,Adult Services & Communities - Adults,Independent Sector Placements,Services,05/05/2017 00:00,8000088198,3385.8,Revenue,Augusta Care Ltd,Home Care
Peterborough,http://opendatacommunities.org/id/unitary-authority/peterborough,Peterborough City Council,Adult Services & Communities - Adults,Independent Sector Placements,Services,05/05/2017 00:00,8000088199,14660.4,Revenue,Augusta Care Ltd,Home Care
Peterborough,http://opendatacommunities.org/id/unitary-authority/peterborough,Peterborough City Council,Adult Services & Communities - Adults,Independent Sector Placements,Services,05/05/2017 00:00,8000088200,681.6,Revenue,Augusta Care Ltd,Home Care
Peterborough,http://opendatacommunities.org/id/unitary-authority/peterborough,Peterborough City Council,Adult Services & Communities - Adults,Independent Sector Placements,Services,05/05/2017 00:00,8000088203,7057.4,Revenue,Augusta Care Ltd,Home Care
Peterborough,http://opendatacommunities.org/id/unitary-authority/peterborough,Peterborough City Council,Adult Services & Communities - Adults,Independent Sector Placements,Services,05/05/2017 00:00,8000088238,527.75,Revenue,COMFORCARE SENIOR SERVICES,Home Care
Peterborough,http://opendatacommunities.org/id/unitary-authority/peterborough,Peterborough City Council,Adult Services & Communities - Adults,Independent Sector Placements,Services,05/05/2017 00:00,8000088240,1461.75,Revenue,COMFORCARE SENIOR SERVICES,Home Care
Peterborough,http://opendatacommunities.org/id/unitary-authority/peterborough,Peterborough City Council,Adult Services & Communities - Adults,Independent Sector Placements,Services,05/05/2017 00:00,8000088241,848.5,Revenue,COMFORCARE SENIOR SERVICES,Home Care
Peterborough,http://opendatacommunities.org/id/unitary-authority/peterborough,Peterborough City Council,Adult Services & Communities - Adults,Independent Sector Placements,Services,05/05/2017 00:00,8000088242,1049.12,Revenue,COMFORCARE SENIOR SERVICES,Home Care
Peterborough,http://opendatacommunities.org/id/unitary-authority/peterborough,Peterborough City Council,Adult Services & Communities - Adults,Independent Sector Placements,Services,05/05/2017 00:00,8000088243,2944.75,Revenue,COMFORCARE SENIOR SERVICES,Home Care
Peterborough,http://opendatacommunities.org/id/unitary-authority/peterborough,Peterborough City Council,Adult Services & Communities - Adults,Independent Sector Placements,Services,05/05/2017 00:00,8000088245,629.25,Revenue,COMFORCARE SENIOR SERVICES,Home Care
Peterborough,http://opendatacommunities.org/id/unitary-authority/peterborough,Peterborough City Council,Adult Services & Communities - Adults,Independent Sector Placements,Services,05/05/2017 00:00,8000088246,575.5,Revenue,COMFORCARE SENIOR SERVICES,Home Care
Peterborough,http://opendatacommunities.org/id/unitary-authority/peterborough,Peterborough City Council,Adult Services & Communities - Adults,Independent Sector Placements,Services,05/05/2017 00:00,8000088247,1469.71,Revenue,COMFORCARE SENIOR SERVICES,Home Care
Peterborough,http://opendatacommunities.org/id/unitary-authority/peterborough,Peterborough City Council,Adult Services & Communities - Adults,Independent Sector Placements,Services,05/05/2017 00:00,8000088252,794.75,Revenue,COMFORCARE SENIOR SERVICES,Home Care
Peterborough,http://opendatacommunities.org/id/unitary-authority/peterborough,Peterborough City Council,Adult Services & Communities - Adults,Independent Sector Placements,Services,05/05/2017 00:00,8000088253,1060.25,Revenue,COMFORCARE SENIOR SERVICES,Home Care
Peterborough,http://opendatacommunities.org/id/unitary-authority/peterborough,Peterborough City Council,Adult Services & Communities - Adults,Independent Sector Placements,Services,05/05/2017 00:00,8000088255,1888,Revenue,COMFORCARE SENIOR SERVICES,Home Care
Peterborough,http://opendatacommunities.org/id/unitary-authority/peterborough,Peterborough City Council,Adult Services & Communities - Adults,Independent Sector Placements,Services,05/05/2017 00:00,8000088256,979.5,Revenue,COMFORCARE SENIOR SERVICES,Home Care
Peterborough,http://opendatacommunities.org/id/unitary-authority/peterborough,Peterborough City Council,Adult Services & Communities - Adults,Independent Sector Placements,Services,05/05/2017 00:00,8000088257,900.5,Revenue,COMFORCARE SENIOR SERVICES,Home Care
Peterborough,http://opendatacommunities.org/id/unitary-authority/peterborough,Peterborough City Council,Adult Services & Communities - Adults,Independent Sector Placements,Services,05/05/2017 00:00,8000088260,1069.25,Revenue,COMFORCARE SENIOR SERVICES,Home Care
Peterborough,http://opendatacommunities.org/id/unitary-authority/peterborough,Peterborough City Council,Adult Services & Communities - Adults,Independent Sector Placements,Services,05/05/2017 00:00,8000088261,2099,Revenue,COMFORCARE SENIOR SERVICES,Home Care
Peterborough,http://opendatacommunities.org/id/unitary-authority/peterborough,Peterborough City Council,Adult Services & Communities - Adults,Independent Sector Placements,Services,05/05/2017 00:00,8000088265,820.25,Revenue,COMFORCARE SENIOR SERVICES,Home Care
Peterborough,http://opendatacommunities.org/id/unitary-authority/peterborough,Peterborough City Council,Adult Services & Communities - Adults,Independent Sector Placements,Services,05/05/2017 00:00,8000088266,1035.5,Revenue,COMFORCARE SENIOR SERVICES,Home Care
Peterborough,http://opendatacommunities.org/id/unitary-authority/peterborough,Peterborough City Council,Adult Services & Communities - Adults,Independent Sector Placements,Services,05/05/2017 00:00,8000088268,1056.5,Revenue,COMFORCARE SENIOR SERVICES,Home Care
Peterborough,http://opendatacommunities.org/id/unitary-authority/peterborough,Peterborough City Council,Adult Services & Communities - Adults,Independent Sector Placements,Services,05/05/2017 00:00,8000088271,1238.25,Revenue,COMFORCARE SENIOR SERVICES,Home Care
Peterborough,http://opendatacommunities.org/id/unitary-authority/peterborough,Peterborough City Council,Adult Services & Communities - Adults,Independent Sector Placements,Services,05/05/2017 00:00,8000088274,535.5,Revenue,COMFORCARE SENIOR SERVICES,Home Care
Peterborough,http://opendatacommunities.org/id/unitary-authority/peterborough,Peterborough City Council,Adult Services & Communities - Adults,Independent Sector Placements,Services,05/05/2017 00:00,8000088276,720.25,Revenue,COMFORCARE SENIOR SERVICES,Home Care
Peterborough,http://opendatacommunities.org/id/unitary-authority/peterborough,Peterborough City Council,Adult Services & Communities - Adults,Independent Sector Placements,Services,05/05/2017 00:00,8000088277,623.75,Revenue,COMFORCARE SENIOR SERVICES,Home Care
Peterborough,http://opendatacommunities.org/id/unitary-authority/peterborough,Peterborough City Council,Adult Services & Communities - Adults,Independent Sector Placements,Services,05/05/2017 00:00,8000088278,622,Revenue,COMFORCARE SENIOR SERVICES,Home Care
Peterborough,http://opendatacommunities.org/id/unitary-authority/peterborough,Peterborough City Council,Adult Services & Communities - Adults,Independent Sector Placements,Services,05/05/2017 00:00,8000088280,627.08,Revenue,COMFORCARE SENIOR SERVICES,Home Care
Peterborough,http://opendatacommunities.org/id/unitary-authority/peterborough,Peterborough City Council,Adult Services & Communities - Adults,Independent Sector Placements,Services,05/05/2017 00:00,8000088285,554.75,Revenue,COMFORCARE SENIOR SERVICES,Home Care
Peterborough,http://opendatacommunities.org/id/unitary-authority/peterborough,Peterborough City Council,Adult Services & Communities - Adults,Independent Sector Placements,Services,05/05/2017 00:00,8000088286,733,Revenue,COMFORCARE SENIOR SERVICES,Home Care
Peterborough,http://opendatacommunities.org/id/unitary-authority/peterborough,Peterborough City Council,Adult Services & Communities - Adults,Independent Sector Placements,Services,05/05/2017 00:00,8000088288,902.25,Revenue,COMFORCARE SENIOR SERVICES,Home Care
Peterborough,http://opendatacommunities.org/id/unitary-authority/peterborough,Peterborough City Council,Adult Services & Communities - Adults,Independent Sector Placements,Services,05/05/2017 00:00,8000088289,2335.25,Revenue,COMFORCARE SENIOR SERVICES,Home Care
Peterborough,http://opendatacommunities.org/id/unitary-authority/peterborough,Peterborough City Council,Education,Home to School Transport,Contract Hire and Operating Leases,05/05/2017 00:00,8000088516,1034,Revenue,R T Enterprises Ltd T/A Royal Taxis,Hired Transport
Peterborough,http://opendatacommunities.org/id/unitary-authority/peterborough,Peterborough City Council,Education,Home to School Transport,Contract Hire and Operating Leases,05/05/2017 00:00,8000088536,1430,Revenue,The Private Hire Company,Hired Transport
Peterborough,http://opendatacommunities.org/id/unitary-authority/peterborough,Peterborough City Council,Adult Services & Communities - Adults,Independent Sector Placements,Services,05/05/2017 00:00,8000088719,743.75,Revenue,COMFORCARE SENIOR SERVICES,Home Care
Peterborough,http://opendatacommunities.org/id/unitary-authority/peterborough,Peterborough City Council,Adult Services & Communities - Adults,Independent Sector Placements,Services,05/05/2017 00:00,8000088723,596.25,Revenue,Cross Keys Homes,Home Care
Peterborough,http://opendatacommunities.org/id/unitary-authority/peterborough,Peterborough City Council,Adult Services & Communities - Adults,Independent Sector Placements,Services,05/05/2017 00:00,8000088732,1518,Revenue,Cozy Care,Home Care
Peterborough,http://opendatacommunities.org/id/unitary-authority/peterborough,Peterborough City Council,ICT,ICT,Services,08/05/2017 00:00,30121937,900,Revenue,Porism Limited,Computer Software
Peterborough,http://opendatacommunities.org/id/unitary-authority/peterborough,Peterborough City Council,Legal & Democratic,Legal Services,Agency Staff,08/05/2017 00:00,30124726,1305,Revenue,Venn Group Ltd,External Temporary Staff
Peterborough,http://opendatacommunities.org/id/unitary-authority/peterborough,Peterborough City Council,Legal & Democratic,Legal Services,Agency Staff,08/05/2017 00:00,30124727,871.6,Revenue,Venn Group Ltd,External Temporary Staff
Peterborough,http://opendatacommunities.org/id/unitary-authority/peterborough,Peterborough City Council,Corporate Property,Commercial Propety,Repair & Maintenance of Buildings,08/05/2017 00:00,30125006,8544.15,Revenue,Opportunity Peterborough,Other Occupancy Costs
Peterborough,http://opendatacommunities.org/id/unitary-authority/peterborough,Peterborough City Council,Adult Services & Communities - Adults,Independent Sector Placements,Services,08/05/2017 00:00,30125058,3000,Revenue,FIELD HOUSE (EYE) LTD,Residential Care
Peterborough,http://opendatacommunities.org/id/unitary-authority/peterborough,Peterborough City Council,Corporate Items,Corporate Services,Repair & Maintenance of Buildings,08/05/2017 00:00,30125613,145926,Revenue,North Level Dist.  Int. Drainage Board,Drainage Levy
Peterborough,http://opendatacommunities.org/id/unitary-authority/peterborough,Peterborough City Council,Adult Services & Communities - Adults,Independent Sector Placements,Services,08/05/2017 00:00,30125615,614.84,Revenue,Thera East Anglia,Day Care
Peterborough,http://opendatacommunities.org/id/unitary-authority/peterborough,Peterborough City Council,Adult Services & Communities - Adults,Independent Sector Placements,Services,08/05/2017 00:00,30125618,2211.32,Revenue,Thera East Anglia,Day Care
Peterborough,http://opendatacommunities.org/id/unitary-authority/peterborough,Peterborough City Council,Adult Services & Communities - Adults,Independent Sector Placements,Services,08/05/2017 00:00,30125620,614.84,Revenue,Thera East Anglia,Day Care
Peterborough,http://opendatacommunities.org/id/unitary-authority/peterborough,Peterborough City Council,Adult Services & Communities - Adults,Independent Sector Placements,Services,08/05/2017 00:00,30125621,806,Revenue,Thera East Anglia,Day Care
Peterborough,http://opendatacommunities.org/id/unitary-authority/peterborough,Peterborough City Council,Adult Services & Communities - Adults,Independent Sector Placements,Services,08/05/2017 00:00,30125623,1488,Revenue,Thera East Anglia,Day Care
Peterborough,http://opendatacommunities.org/id/unitary-authority/peterborough,Peterborough City Council,City Servs & Communications,Service Director,Services,08/05/2017 00:00,30125741,625,Revenue,Association of Town Centre Management,Administration Expenses
Peterborough,http://opendatacommunities.org/id/unitary-authority/peterborough,Peterborough City Council,Children's & Safeguarding,Access to Resources & Specialist Commissioning,Services,08/05/2017 00:00,30125824,9200,Revenue,Red Balloon of the Air,Boarding Out Allowances
Peterborough,http://opendatacommunities.org/id/unitary-authority/peterborough,Peterborough City Council,Adult Services & Communities - Adults,Independent Sector Placements,Services,08/05/2017 00:00,30125908,4668.14,Revenue,Barchester Healthcare (Werrington Lodge),Residential Care
Peterborough,http://opendatacommunities.org/id/unitary-authority/peterborough,Peterborough City Council,Westcombe Engineering,Westcombe Engineering,"Tools, Equipment, Furniture & Materials",08/05/2017 00:00,30125917,978,Revenue,Barron Clark Castings Ltd,Items For Resale
Peterborough,http://opendatacommunities.org/id/unitary-authority/peterborough,Peterborough City Council,Corporate,Corporate,Non Revenue,08/05/2017 00:00,30126157,9148.5,Capital,V4 Services Ltd,Consultants Fees
Peterborough,http://opendatacommunities.org/id/unitary-authority/peterborough,Peterborough City Council,Business Management and Commercial Operations,Commissioning,Services,08/05/2017 00:00,30127085,1267.5,Revenue,Vale Community Pre-School,Grant Payment
Peterborough,http://opendatacommunities.org/id/unitary-authority/peterborough,Peterborough City Council,Business Management and Commercial Operations,Commissioning,Services,08/05/2017 00:00,30127087,633.75,Revenue,Millfield Pre-School,Grant Payment
Peterborough,http://opendatacommunities.org/id/unitary-authority/peterborough,Peterborough City Council,Business Management and Commercial Operations,Commissioning,Services,08/05/2017 00:00,30127089,1267.5,Revenue,St Thomas More Catholic Nursery,Grant Payment
Peterborough,http://opendatacommunities.org/id/unitary-authority/peterborough,Peterborough City Council,Business Management and Commercial Operations,Commissioning,Services,08/05/2017 00:00,30127097,715,Revenue,Braybrook Nursery,Grant Payment
Peterborough,http://opendatacommunities.org/id/unitary-authority/peterborough,Peterborough City Council,Business Management and Commercial Operations,Commissioning,Services,08/05/2017 00:00,30127235,800,Revenue,BDP Social Care Ltd,Hired Services
Peterborough,http://opendatacommunities.org/id/unitary-authority/peterborough,Peterborough City Council,Children's & Safeguarding,Access to Resources & Specialist Commissioning,Services,08/05/2017 00:00,30127249,830.07,Revenue,BDP Social Care Ltd,Hired Services
Peterborough,http://opendatacommunities.org/id/unitary-authority/peterborough,Peterborough City Council,Business Management and Commercial Operations,Commissioning,Services,08/05/2017 00:00,30127261,3150,Revenue,BDP Social Care Ltd,Hired Services
Peterborough,http://opendatacommunities.org/id/unitary-authority/peterborough,Peterborough City Council,Adults and Communities - Communities,Service Director - Adults & Communities,Agency Staff,08/05/2017 00:00,30127279,1574.4,Revenue,Reed Specialist Recruitment,External Temporary Staff
Peterborough,http://opendatacommunities.org/id/unitary-authority/peterborough,Peterborough City Council,Adult Services & Communities - Adults,Finance,Agency Staff,08/05/2017 00:00,30127443,3325,Revenue,Willowmead Consultants Ltd,External Temporary Staff
Peterborough,http://opendatacommunities.org/id/unitary-authority/peterborough,Peterborough City Council,Education,Pupil Referral Unit,Agency Staff,08/05/2017 00:00,30127455,4619.81,Revenue,Vision for Education Ltd,Supply Teachers
Peterborough,http://opendatacommunities.org/id/unitary-authority/peterborough,Peterborough City Council,Education,Financing - Resources,Services,08/05/2017 00:00,30127531,5113.44,Revenue,Sense,Education Expenses
Peterborough,http://opendatacommunities.org/id/unitary-authority/peterborough,Peterborough City Council,Education,Financing - Resources,Services,08/05/2017 00:00,30127537,2556.72,Revenue,Sense,Education Expenses
Peterborough,http://opendatacommunities.org/id/unitary-authority/peterborough,Peterborough City Council,Education,Financing - Resources,Services,08/05/2017 00:00,30127539,2556.72,Revenue,Sense,Education Expenses
Peterborough,http://opendatacommunities.org/id/unitary-authority/peterborough,Peterborough City Council,Education,Financing - Resources,Services,08/05/2017 00:00,30127542,1857.16,Revenue,Sense,Education Expenses
Peterborough,http://opendatacommunities.org/id/unitary-authority/peterborough,Peterborough City Council,Education,Financing - Resources,Services,08/05/2017 00:00,30127544,3714.32,Revenue,Sense,Education Expenses
Peterborough,http://opendatacommunities.org/id/unitary-authority/peterborough,Peterborough City Council,Education,Financing - Resources,Services,08/05/2017 00:00,30127548,1857.16,Revenue,Sense,Education Expenses
Peterborough,http://opendatacommunities.org/id/unitary-authority/peterborough,Peterborough City Council,City Servs & Communications,Regulatory Services,Services,08/05/2017 00:00,30129283,912.51,Revenue,"Pengelly M O A & G P Mizen,",Hired Services
Peterborough,http://opendatacommunities.org/id/unitary-authority/peterborough,Peterborough City Council,Education,School Infrastructure,Contract Hire and Operating Leases,08/05/2017 00:00,8000088757,1254.08,Revenue,Redacted Personal Information,Hired Transport
Peterborough,http://opendatacommunities.org/id/unitary-authority/peterborough,Peterborough City Council,Education,Home to School Transport,Contract Hire and Operating Leases,08/05/2017 00:00,8000088761,677.62,Revenue,Redacted Personal Information,Hired Transport
Peterborough,http://opendatacommunities.org/id/unitary-authority/peterborough,Peterborough City Council,Education,Home to School Transport,Contract Hire and Operating Leases,08/05/2017 00:00,8000088762,1009.86,Revenue,Redacted Personal Information,Hired Transport
Peterborough,http://opendatacommunities.org/id/unitary-authority/peterborough,Peterborough City Council,Business Management and Commercial Operations,Business Management and Commercial Operations,Contract Hire and Operating Leases,08/05/2017 00:00,8000088764,593.62,Revenue,Redacted Personal Information,Hired Transport
Peterborough,http://opendatacommunities.org/id/unitary-authority/peterborough,Peterborough City Council,Adult Services & Communities - Adults,Independent Sector Placements,Services,08/05/2017 00:00,8000089658,8674.4,Revenue,Augusta Care Ltd,Home Care
Peterborough,http://opendatacommunities.org/id/unitary-authority/peterborough,Peterborough City Council,Corporate,Corporate,Non Revenue,10/05/2017 00:00,30089192,2395.8,Capital,IIC by Education (P'boro) Ltd,Building And Site Works
Peterborough,http://opendatacommunities.org/id/unitary-authority/peterborough,Peterborough City Council,ICT,ICT,Services,10/05/2017 00:00,30120217,3470,Revenue,Arcus Global ltd,Consultants Fees
Peterborough,http://opendatacommunities.org/id/unitary-authority/peterborough,Peterborough City Council,Adult Services & Communities - Adults,Block Contracts,Third Party Payments,10/05/2017 00:00,30120402,1632.53,Revenue,Pilgrim Havens,Third Party Payments - Contract
Peterborough,http://opendatacommunities.org/id/unitary-authority/peterborough,Peterborough City Council,Children's & Safeguarding,Access to Resources & Specialist Commissioning,Services,10/05/2017 00:00,30123168,13164.29,Revenue,The Caldecott Foundation Ltd,Boarding Out Allowances
Peterborough,http://opendatacommunities.org/id/unitary-authority/peterborough,Peterborough City Council,Legal & Democratic,Legal Services,Agency Staff,10/05/2017 00:00,30124728,682,Revenue,Venn Group Ltd,External Temporary Staff
Peterborough,http://opendatacommunities.org/id/unitary-authority/peterborough,Peterborough City Council,Adult Services & Communities - Adults,Mental Capacity Act & DoLs,Services,10/05/2017 00:00,30125094,1110,Revenue,Redacted Personal Information,Hired Services
Peterborough,http://opendatacommunities.org/id/unitary-authority/peterborough,Peterborough City Council,Children's & Safeguarding,Access to Resources & Specialist Commissioning,Services,10/05/2017 00:00,30125106,600,Revenue,Barford Children's Services,Boarding Out Allowances
Peterborough,http://opendatacommunities.org/id/unitary-authority/peterborough,Peterborough City Council,Corporate,Corporate,Non Revenue,10/05/2017 00:00,30125117,1979.99,Balance Sheet,Tesco Underwriting Ltd,Insurance Claims
Peterborough,http://opendatacommunities.org/id/unitary-authority/peterborough,Peterborough City Council,Adults and Communities - Communities,Housing and Health,Services,10/05/2017 00:00,30125313,3000,Revenue,Cambridgeshire & Peterborough Fire Authority,Road Safety
Peterborough,http://opendatacommunities.org/id/unitary-authority/peterborough,Peterborough City Council,Corporate,Corporate,Non Revenue,10/05/2017 00:00,30125344,550,Capital,Mills & Reeve,Building And Site Works
Peterborough,http://opendatacommunities.org/id/unitary-authority/peterborough,Peterborough City Council,Amey Peterborough & Waste Management,Waste & Operational Svs Mgmt,Services,10/05/2017 00:00,30125345,47436.36,Revenue,Peterborough Rugby Club,Grant Payment
Peterborough,http://opendatacommunities.org/id/unitary-authority/peterborough,Peterborough City Council,City Servs & Communications,"Markets, Tourism & Events",Services,10/05/2017 00:00,30125351,513,Revenue,Chapter of Peterborough Cathedral,Tickets
Peterborough,http://opendatacommunities.org/id/unitary-authority/peterborough,Peterborough City Council,Children's & Safeguarding,Access to Resources & Specialist Commissioning,Services,10/05/2017 00:00,30125466,19400,Revenue,The Caldecott Foundation Ltd,Boarding Out Allowances
Peterborough,http://opendatacommunities.org/id/unitary-authority/peterborough,Peterborough City Council,Financial Services,Finance,Agency Staff,10/05/2017 00:00,30125570,1369,Revenue,Reed Specialist Recruitment,External Temporary Staff
Peterborough,http://opendatacommunities.org/id/unitary-authority/peterborough,Peterborough City Council,City Servs & Communications,Marketing & Communications,Services,10/05/2017 00:00,30125723,8020,Revenue,Ancient House Press Plc,Printing
Peterborough,http://opendatacommunities.org/id/unitary-authority/peterborough,Peterborough City Council,Peterborough Highway Services,Transport & Infrastructure Commissioning,Services,10/05/2017 00:00,30125743,15228.08,Revenue,First Eastern Counties Buses Ltd,Contractors
Peterborough,http://opendatacommunities.org/id/unitary-authority/peterborough,Peterborough City Council,Peterborough Highway Services,Transport & Infrastructure Commissioning,Services,10/05/2017 00:00,30125745,502.69,Revenue,Cambridgeshire County Council,Contractors
Peterborough,http://opendatacommunities.org/id/unitary-authority/peterborough,Peterborough City Council,Westcombe Engineering,Westcombe Engineering,"Tools, Equipment, Furniture & Materials",10/05/2017 00:00,30125746,10978.63,Revenue,BWC Aluminium Ltd,Items For Resale
Peterborough,http://opendatacommunities.org/id/unitary-authority/peterborough,Peterborough City Council,Vivacity/Cultural Services,Cultural Services,Services,10/05/2017 00:00,30125748,7975,Revenue,Charanga Ltd,Hired Services
Peterborough,http://opendatacommunities.org/id/unitary-authority/peterborough,Peterborough City Council,Peterborough Highway Services,Highway Mtce & Scheme Commissioning,Services,10/05/2017 00:00,30125749,3712,Revenue,Cambridgeshire County Council,Computer Software
Peterborough,http://opendatacommunities.org/id/unitary-authority/peterborough,Peterborough City Council,HR,HR WFD & Training,Services,10/05/2017 00:00,30125764,892.5,Revenue,Essex County Council,Course Instructors Fees
Peterborough,http://opendatacommunities.org/id/unitary-authority/peterborough,Peterborough City Council,Peterborough Highway Services,Transport & Infrastructure Commissioning,Energy Costs,10/05/2017 00:00,30125794,1197.32,Revenue,British Gas Business,Electricity
Peterborough,http://opendatacommunities.org/id/unitary-authority/peterborough,Peterborough City Council,Adult Services & Communities - Adults,Independent Sector Placements,Services,10/05/2017 00:00,30125804,2575,Revenue,BUPA Care Homes,Residential Care
Peterborough,http://opendatacommunities.org/id/unitary-authority/peterborough,Peterborough City Council,Adult Services & Communities - Adults,Independent Sector Placements,Services,10/05/2017 00:00,30125805,1593.2,Revenue,BUPA Care Homes,Residential Care
Peterborough,http://opendatacommunities.org/id/unitary-authority/peterborough,Peterborough City Council,Adult Services & Communities - Adults,Independent Sector Placements,Services,10/05/2017 00:00,30125810,1053.44,Revenue,Pilgrim Havens,Residential Care
Peterborough,http://opendatacommunities.org/id/unitary-authority/peterborough,Peterborough City Council,Adult Services & Communities - Adults,Independent Sector Placements,Services,10/05/2017 00:00,30125826,928.04,Revenue,Pilgrim Havens,Residential Care
Peterborough,http://opendatacommunities.org/id/unitary-authority/peterborough,Peterborough City Council,Adult Services & Communities - Adults,Independent Sector Placements,Services,10/05/2017 00:00,30125827,1331.08,Revenue,Pilgrim Havens,Residential Care
Peterborough,http://opendatacommunities.org/id/unitary-authority/peterborough,Peterborough City Council,Adult Services & Communities - Adults,Independent Sector Placements,Services,10/05/2017 00:00,30125828,1299.08,Revenue,Pilgrim Havens,Residential Care
Peterborough,http://opendatacommunities.org/id/unitary-authority/peterborough,Peterborough City Council,Children's & Safeguarding,Children's Social Care,Services,10/05/2017 00:00,30125867,900,Revenue,Coram Family,Adoption
Peterborough,http://opendatacommunities.org/id/unitary-authority/peterborough,Peterborough City Council,Adult Services & Communities - Adults,Independent Sector Placements,Services,10/05/2017 00:00,30125980,589.68,Revenue,Carers Trust Cambridgeshire,Home Care
Peterborough,http://opendatacommunities.org/id/unitary-authority/peterborough,Peterborough City Council,Adult Services & Communities - Adults,Independent Sector Placements,Services,10/05/2017 00:00,30126062,544.32,Revenue,Carers Trust Cambridgeshire,Home Care
Peterborough,http://opendatacommunities.org/id/unitary-authority/peterborough,Peterborough City Council,Peterborough Highway Services,Highway & Drainage Control,Agency Staff,10/05/2017 00:00,30126137,1110,Revenue,Matchtech,External Temporary Staff
Peterborough,http://opendatacommunities.org/id/unitary-authority/peterborough,Peterborough City Council,Corporate,Corporate,Non Revenue,10/05/2017 00:00,30126246,1444.22,Capital,Dolphin Mobility East Midlands Ltd,Grant Payment
Peterborough,http://opendatacommunities.org/id/unitary-authority/peterborough,Peterborough City Council,Corporate,Corporate,Non Revenue,10/05/2017 00:00,30126269,1500,Capital,NPS Peterborough Ltd,Consultants Fees
Peterborough,http://opendatacommunities.org/id/unitary-authority/peterborough,Peterborough City Council,Corporate Items,Corporate Services,Agency Staff,10/05/2017 00:00,30126312,3087.5,Revenue,Green Park Interim and Exec Ltd,External Temporary Staff
Peterborough,http://opendatacommunities.org/id/unitary-authority/peterborough,Peterborough City Council,Corporate Items,Corporate Services,Agency Staff,10/05/2017 00:00,30126313,4987.5,Revenue,Green Park Interim and Exec Ltd,External Temporary Staff
Peterborough,http://opendatacommunities.org/id/unitary-authority/peterborough,Peterborough City Council,Corporate Property,Strategic Projects,Agency Staff,10/05/2017 00:00,30126328,1531.41,Revenue,Hays Specialist Recruitment Ltd,External Temporary Staff
Peterborough,http://opendatacommunities.org/id/unitary-authority/peterborough,Peterborough City Council,City Servs & Communications,"Markets, Tourism & Events",Rents,10/05/2017 00:00,30126332,1834.47,Revenue,Jones Lang LaSalle,Rent
Peterborough,http://opendatacommunities.org/id/unitary-authority/peterborough,Peterborough City Council,Corporate,Corporate,Non Revenue,10/05/2017 00:00,30126353,4345.98,Capital,Tansor Assessment Centre,Grant Payment
Peterborough,http://opendatacommunities.org/id/unitary-authority/peterborough,Peterborough City Council,Corporate Property,Commercial Propety,Services,10/05/2017 00:00,30126441,5500,Revenue,Serco Ltd,Hired Services
Peterborough,http://opendatacommunities.org/id/unitary-authority/peterborough,Peterborough City Council,Adult Services & Communities - Adults,Independent Sector Placements,Services,10/05/2017 00:00,30126446,4855.43,Revenue,BUPA Care Homes,Residential Care
Peterborough,http://opendatacommunities.org/id/unitary-authority/peterborough,Peterborough City Council,Corporate Property,Commercial Propety,Repair & Maintenance of Buildings,10/05/2017 00:00,30126457,878,Revenue,Tesam Distribution Ltd,Premises Repairs
Peterborough,http://opendatacommunities.org/id/unitary-authority/peterborough,Peterborough City Council,Business Management and Commercial Operations,Clare Lodge,Agency Staff,10/05/2017 00:00,30126491,1080,Revenue,Wrixon Care Services,External Temporary Staff
Peterborough,http://opendatacommunities.org/id/unitary-authority/peterborough,Peterborough City Council,Westcombe Engineering,Westcombe Engineering,"Tools, Equipment, Furniture & Materials",10/05/2017 00:00,30126510,1150,Revenue,Perkins Engines Co Ltd,Items For Resale
Peterborough,http://opendatacommunities.org/id/unitary-authority/peterborough,Peterborough City Council,Adults and Communities - Communities,Service Director - Adults & Communities,Third Party Payments,10/05/2017 00:00,30126539,10000,Revenue,P'Boro Council For Voluntary Srvs (PCVS),Grant-Third Party
Peterborough,http://opendatacommunities.org/id/unitary-authority/peterborough,Peterborough City Council,Adult Services & Communities - Adults,Independent Sector Placements,Services,10/05/2017 00:00,30126712,1240,Revenue,Oakhouse Homecare Cambs Ltd,Residential Care
Peterborough,http://opendatacommunities.org/id/unitary-authority/peterborough,Peterborough City Council,Adult Services & Communities - Adults,Independent Sector Placements,Services,10/05/2017 00:00,30126713,1024.04,Revenue,Oakhouse Homecare Cambs Ltd,Residential Care
Peterborough,http://opendatacommunities.org/id/unitary-authority/peterborough,Peterborough City Council,Adult Services & Communities - Adults,Independent Sector Placements,Services,10/05/2017 00:00,30126715,1167.08,Revenue,Oakhouse Homecare Cambs Ltd,Residential Care
Peterborough,http://opendatacommunities.org/id/unitary-authority/peterborough,Peterborough City Council,City Servs & Communications,"Markets, Tourism & Events",Services,10/05/2017 00:00,30126853,7709.39,Revenue,National Express Ltd,Contractors
Peterborough,http://opendatacommunities.org/id/unitary-authority/peterborough,Peterborough City Council,Business Management and Commercial Operations,Commissioning,Repair & Maintenance of Buildings,10/05/2017 00:00,30126950,1496.75,Revenue,R J Warren Ltd,Premises Maintenance
Peterborough,http://opendatacommunities.org/id/unitary-authority/peterborough,Peterborough City Council,Corporate Property,Office Accomodation,Services,10/05/2017 00:00,30126984,3300,Revenue,Simply Plants,Contractors
Peterborough,http://opendatacommunities.org/id/unitary-authority/peterborough,Peterborough City Council,Adults and Communities - Communities,Housing and Health,Services,10/05/2017 00:00,30127030,943.5,Revenue,Rawheat Heating & Plumbing Eng.,Contractors
Peterborough,http://opendatacommunities.org/id/unitary-authority/peterborough,Peterborough City Council,Corporate Property,Office Accomodation,Cleaning & Domestic Supplies,10/05/2017 00:00,30127072,1477.28,Revenue,Beebys Ltd,Cleaning
Peterborough,http://opendatacommunities.org/id/unitary-authority/peterborough,Peterborough City Council,Adults and Communities - Communities,Housing and Health,Services,10/05/2017 00:00,30127190,655.06,Revenue,DA Rosalia Hotel,Homelessness Bed & Breakfast Costs
Peterborough,http://opendatacommunities.org/id/unitary-authority/peterborough,Peterborough City Council,Adults and Communities - Communities,Housing and Health,Services,10/05/2017 00:00,30127219,655.06,Revenue,DA Rosalia Hotel,Homelessness Bed & Breakfast Costs
Peterborough,http://opendatacommunities.org/id/unitary-authority/peterborough,Peterborough City Council,Adults and Communities - Communities,Housing and Health,Services,10/05/2017 00:00,30127229,655.06,Revenue,DA Rosalia Hotel,Homelessness Bed & Breakfast Costs
Peterborough,http://opendatacommunities.org/id/unitary-authority/peterborough,Peterborough City Council,Adults and Communities - Communities,Housing and Health,Services,10/05/2017 00:00,30127245,525,Revenue,DA Rosalia Hotel,Homelessness Bed & Breakfast Costs
Peterborough,http://opendatacommunities.org/id/unitary-authority/peterborough,Peterborough City Council,Adults and Communities - Communities,Housing and Health,Services,10/05/2017 00:00,30127251,655.06,Revenue,DA Rosalia Hotel,Homelessness Bed & Breakfast Costs
Peterborough,http://opendatacommunities.org/id/unitary-authority/peterborough,Peterborough City Council,Adults and Communities - Communities,Housing and Health,Services,10/05/2017 00:00,30127255,655.06,Revenue,DA Rosalia Hotel,Homelessness Bed & Breakfast Costs
Peterborough,http://opendatacommunities.org/id/unitary-authority/peterborough,Peterborough City Council,Adult Services & Communities - Adults,Independent Sector Placements,Services,10/05/2017 00:00,30127264,1932,Revenue,SOCIAL CARE SOLUTIONS LTD,Home Care
Peterborough,http://opendatacommunities.org/id/unitary-authority/peterborough,Peterborough City Council,Financial Services,Insurance,Premises Insurances,10/05/2017 00:00,30127373,715.96,Revenue,Zurich Insurance Company,Insurance Premiums
Peterborough,http://opendatacommunities.org/id/unitary-authority/peterborough,Peterborough City Council,Corporate Items,Corporate Services,Employee Costs,10/05/2017 00:00,30127377,638972.98,Revenue,Cambridgeshire County Council,Pensions
Peterborough,http://opendatacommunities.org/id/unitary-authority/peterborough,Peterborough City Council,Adult Services & Communities - Adults,Finance,Agency Staff,10/05/2017 00:00,30127380,1914.8,Revenue,Reed Specialist Recruitment,External Temporary Staff
Peterborough,http://opendatacommunities.org/id/unitary-authority/peterborough,Peterborough City Council,Corporate Items,Corporate Services,Employee Costs,10/05/2017 00:00,30127381,394108.38,Revenue,Cambridgeshire County Council,Pensions
Peterborough,http://opendatacommunities.org/id/unitary-authority/peterborough,Peterborough City Council,Adult Services & Communities - Adults,Independent Sector Placements,Services,10/05/2017 00:00,30127386,1463.65,Revenue,Park Vista Care Home,Residential Care
Peterborough,http://opendatacommunities.org/id/unitary-authority/peterborough,Peterborough City Council,Adult Services & Communities - Adults,Independent Sector Placements,Services,10/05/2017 00:00,30127387,535.71,Revenue,Park Vista Care Home,Residential Care
Peterborough,http://opendatacommunities.org/id/unitary-authority/peterborough,Peterborough City Council,Adults and Communities - Communities,Housing and Health,Services,10/05/2017 00:00,30127425,525,Revenue,DA Rosalia Hotel,Homelessness Bed & Breakfast Costs
Peterborough,http://opendatacommunities.org/id/unitary-authority/peterborough,Peterborough City Council,Business Management and Commercial Operations,Clare Lodge,Repair & Maintenance of Buildings,10/05/2017 00:00,30127426,142292.91,Revenue,Southview Building Solutions Ltd,Premises Maintenance
Peterborough,http://opendatacommunities.org/id/unitary-authority/peterborough,Peterborough City Council,Adults and Communities - Communities,Housing and Health,Services,10/05/2017 00:00,30127427,655.06,Revenue,DA Rosalia Hotel,Homelessness Bed & Breakfast Costs
Peterborough,http://opendatacommunities.org/id/unitary-authority/peterborough,Peterborough City Council,Adults and Communities - Communities,Housing and Health,Services,10/05/2017 00:00,30127440,655.06,Revenue,DA Rosalia Hotel,Homelessness Bed & Breakfast Costs
Peterborough,http://opendatacommunities.org/id/unitary-authority/peterborough,Peterborough City Council,Education,PFI,Energy Costs,10/05/2017 00:00,30127445,1332.32,Revenue,Corona Energy Retail 4 Limited,Gas
Peterborough,http://opendatacommunities.org/id/unitary-authority/peterborough,Peterborough City Council,Education,PFI,Energy Costs,10/05/2017 00:00,30127445,2229.6,Revenue,Corona Energy Retail 4 Limited,Gas
Peterborough,http://opendatacommunities.org/id/unitary-authority/peterborough,Peterborough City Council,Education,PFI,Energy Costs,10/05/2017 00:00,30127445,1524.46,Revenue,Corona Energy Retail 4 Limited,Gas
Peterborough,http://opendatacommunities.org/id/unitary-authority/peterborough,Peterborough City Council,Education,PFI,Energy Costs,10/05/2017 00:00,30127445,880.07,Revenue,Corona Energy Retail 4 Limited,Gas
Peterborough,http://opendatacommunities.org/id/unitary-authority/peterborough,Peterborough City Council,Vivacity/Cultural Services,Cultural Services,Energy Costs,10/05/2017 00:00,30127445,1440.48,Revenue,Corona Energy Retail 4 Limited,Gas
Peterborough,http://opendatacommunities.org/id/unitary-authority/peterborough,Peterborough City Council,Legal & Democratic,Elections,Services,10/05/2017 00:00,30127448,15368.55,Revenue,Xpress Software Solutions Ltd,Subscriptions
Peterborough,http://opendatacommunities.org/id/unitary-authority/peterborough,Peterborough City Council,Education,Pupil Referral Unit,Agency Staff,10/05/2017 00:00,30127461,825,Revenue,Vision for Education Ltd,Supply Teachers
Peterborough,http://opendatacommunities.org/id/unitary-authority/peterborough,Peterborough City Council,Corporate,Corporate,Non Revenue,10/05/2017 00:00,30127479,5260.8,Capital,Gaswise Services Ltd,Grant Payment
Peterborough,http://opendatacommunities.org/id/unitary-authority/peterborough,Peterborough City Council,Corporate,Corporate,Non Revenue,10/05/2017 00:00,30127491,3243.45,Capital,Rawheat Heating & Plumbing Eng.,Grant Payment
Peterborough,http://opendatacommunities.org/id/unitary-authority/peterborough,Peterborough City Council,Corporate,Corporate,Non Revenue,10/05/2017 00:00,30127492,4819.5,Capital,Gaswise Services Ltd,Grant Payment
Peterborough,http://opendatacommunities.org/id/unitary-authority/peterborough,Peterborough City Council,Corporate,Corporate,Non Revenue,10/05/2017 00:00,30127493,3454.37,Capital,Gaswise Services Ltd,Grant Payment
Peterborough,http://opendatacommunities.org/id/unitary-authority/peterborough,Peterborough City Council,Corporate,Corporate,Non Revenue,10/05/2017 00:00,30127494,3350,Capital,Stannah Lift Services,Grant Payment
Peterborough,http://opendatacommunities.org/id/unitary-authority/peterborough,Peterborough City Council,Corporate,Corporate,Non Revenue,10/05/2017 00:00,30127495,1068,Capital,M J Greaves,Grant Payment
Peterborough,http://opendatacommunities.org/id/unitary-authority/peterborough,Peterborough City Council,Corporate,Corporate,Non Revenue,10/05/2017 00:00,30127497,17634,Capital,Nadeem Construction,Grant Payment
Peterborough,http://opendatacommunities.org/id/unitary-authority/peterborough,Peterborough City Council,City Servs & Communications,"Markets, Tourism & Events",Rents,10/05/2017 00:00,30127508,2201.36,Revenue,Jones Lang LaSalle,Rent
Peterborough,http://opendatacommunities.org/id/unitary-authority/peterborough,Peterborough City Council,Education,Financing - Resources,Services,10/05/2017 00:00,30127549,1857.16,Revenue,Sense,Education Expenses
Peterborough,http://opendatacommunities.org/id/unitary-authority/peterborough,Peterborough City Council,Education,Financing - Resources,Services,10/05/2017 00:00,30127550,1857.16,Revenue,Sense,Education Expenses
Peterborough,http://opendatacommunities.org/id/unitary-authority/peterborough,Peterborough City Council,Business Management and Commercial Operations,Commissioning,Interview & Training Expenses,10/05/2017 00:00,30127554,650,Revenue,Northamptonshire Childminding Association,Training
Peterborough,http://opendatacommunities.org/id/unitary-authority/peterborough,Peterborough City Council,Adult Services & Communities - Adults,Therapy/Reablement/Community Equipment,Services,10/05/2017 00:00,30127597,810,Revenue,Families First Peterborough,Purchased Social Care Services
Peterborough,http://opendatacommunities.org/id/unitary-authority/peterborough,Peterborough City Council,Adult Services & Communities - Adults,Independent Sector Placements,Services,10/05/2017 00:00,30127599,3400,Revenue,EXCELCARE GLENNFIELD HOUSE,Residential Care
Peterborough,http://opendatacommunities.org/id/unitary-authority/peterborough,Peterborough City Council,Adult Services & Communities - Adults,Independent Sector Placements,Services,10/05/2017 00:00,30127600,3400,Revenue,EXCELCARE GLENNFIELD HOUSE,Residential Care
Peterborough,http://opendatacommunities.org/id/unitary-authority/peterborough,Peterborough City Council,Adult Services & Communities - Adults,Independent Sector Placements,Services,10/05/2017 00:00,30127603,3400,Revenue,EXCELCARE GLENNFIELD HOUSE,Residential Care
Peterborough,http://opendatacommunities.org/id/unitary-authority/peterborough,Peterborough City Council,Adult Services & Communities - Adults,Independent Sector Placements,Services,10/05/2017 00:00,30127604,3400,Revenue,EXCELCARE GLENNFIELD HOUSE,Residential Care
Peterborough,http://opendatacommunities.org/id/unitary-authority/peterborough,Peterborough City Council,Adult Services & Communities - Adults,Independent Sector Placements,Services,10/05/2017 00:00,30127605,3720,Revenue,EXCELCARE GLENNFIELD HOUSE,Residential Care
Peterborough,http://opendatacommunities.org/id/unitary-authority/peterborough,Peterborough City Council,Adult Services & Communities - Adults,Independent Sector Placements,Services,10/05/2017 00:00,30127608,3200,Revenue,EXCELCARE GLENNFIELD HOUSE,Residential Care
Peterborough,http://opendatacommunities.org/id/unitary-authority/peterborough,Peterborough City Council,Adult Services & Communities - Adults,Independent Sector Placements,Services,10/05/2017 00:00,30127609,1680,Revenue,EXCELCARE GLENNFIELD HOUSE,Residential Care
Peterborough,http://opendatacommunities.org/id/unitary-authority/peterborough,Peterborough City Council,Adult Services & Communities - Adults,Independent Sector Placements,Services,10/05/2017 00:00,30127610,3200,Revenue,EXCELCARE GLENNFIELD HOUSE,Residential Care
Peterborough,http://opendatacommunities.org/id/unitary-authority/peterborough,Peterborough City Council,Adult Services & Communities - Adults,Independent Sector Placements,Services,10/05/2017 00:00,30127611,3720,Revenue,EXCELCARE GLENNFIELD HOUSE,Residential Care
Peterborough,http://opendatacommunities.org/id/unitary-authority/peterborough,Peterborough City Council,Adult Services & Communities - Adults,Independent Sector Placements,Services,10/05/2017 00:00,30127613,1680,Revenue,EXCELCARE GLENNFIELD HOUSE,Residential Care
Peterborough,http://opendatacommunities.org/id/unitary-authority/peterborough,Peterborough City Council,Adult Services & Communities - Adults,Independent Sector Placements,Services,10/05/2017 00:00,30127615,2320,Revenue,FIELD HOUSE (EYE) LTD,Residential Care
Peterborough,http://opendatacommunities.org/id/unitary-authority/peterborough,Peterborough City Council,Education,PFI,Energy Costs,10/05/2017 00:00,30127630,614.97,Revenue,Corona Energy Retail 4 Limited,Gas
Peterborough,http://opendatacommunities.org/id/unitary-authority/peterborough,Peterborough City Council,Education,PFI,Energy Costs,10/05/2017 00:00,30127630,2048.01,Revenue,Corona Energy Retail 4 Limited,Gas
Peterborough,http://opendatacommunities.org/id/unitary-authority/peterborough,Peterborough City Council,Education,PFI,Energy Costs,10/05/2017 00:00,30127630,2313.45,Revenue,Corona Energy Retail 4 Limited,Gas
Peterborough,http://opendatacommunities.org/id/unitary-authority/peterborough,Peterborough City Council,Adults and Communities - Communities,Housing and Health,Services,10/05/2017 00:00,30127642,1203.84,Revenue,Richards Property Refurbishments,Contractors
Peterborough,http://opendatacommunities.org/id/unitary-authority/peterborough,Peterborough City Council,Adults and Communities - Communities,Housing and Health,Services,10/05/2017 00:00,30127643,782.71,Revenue,Richards Property Refurbishments,Contractors
Peterborough,http://opendatacommunities.org/id/unitary-authority/peterborough,Peterborough City Council,Adults and Communities - Communities,Housing and Health,Services,10/05/2017 00:00,30127655,510,Revenue,Richards Property Refurbishments,Contractors
Peterborough,http://opendatacommunities.org/id/unitary-authority/peterborough,Peterborough City Council,Children's & Safeguarding,Access to Resources & Specialist Commissioning,Services,10/05/2017 00:00,30127673,12471.43,Revenue,Ethelbert Childrens Services,Boarding Out Allowances
Peterborough,http://opendatacommunities.org/id/unitary-authority/peterborough,Peterborough City Council,Education,Financing - Resources,Services,10/05/2017 00:00,30127701,2591.04,Revenue,Sense,Education Expenses
Peterborough,http://opendatacommunities.org/id/unitary-authority/peterborough,Peterborough City Council,Education,Financing - Resources,Services,10/05/2017 00:00,30127707,5481.76,Revenue,Sense,Education Expenses
Peterborough,http://opendatacommunities.org/id/unitary-authority/peterborough,Peterborough City Council,Education,Financing - Resources,Services,10/05/2017 00:00,30127708,2740.88,Revenue,Sense,Education Expenses
Peterborough,http://opendatacommunities.org/id/unitary-authority/peterborough,Peterborough City Council,Financial Services,Finance,Agency Staff,10/05/2017 00:00,30127709,1165.5,Revenue,Reed Specialist Recruitment,External Temporary Staff
Peterborough,http://opendatacommunities.org/id/unitary-authority/peterborough,Peterborough City Council,Financial Services,Finance,Agency Staff,10/05/2017 00:00,30127711,1091.5,Revenue,Reed Specialist Recruitment,External Temporary Staff
Peterborough,http://opendatacommunities.org/id/unitary-authority/peterborough,Peterborough City Council,Children's & Safeguarding,Access to Resources & Specialist Commissioning,Services,10/05/2017 00:00,30127712,1557.64,Revenue,By The Bridge,Boarding Out Allowances
Peterborough,http://opendatacommunities.org/id/unitary-authority/peterborough,Peterborough City Council,Financial Services,Finance,Agency Staff,10/05/2017 00:00,30127713,1230.25,Revenue,Reed Specialist Recruitment,External Temporary Staff
Peterborough,http://opendatacommunities.org/id/unitary-authority/peterborough,Peterborough City Council,Education,Financing - Resources,Services,10/05/2017 00:00,30127715,538.88,Revenue,Sense,Education Expenses
Peterborough,http://opendatacommunities.org/id/unitary-authority/peterborough,Peterborough City Council,Education,Financing - Resources,Services,10/05/2017 00:00,30127716,8622,Revenue,Sense,Education Expenses
Peterborough,http://opendatacommunities.org/id/unitary-authority/peterborough,Peterborough City Council,Education,Financing - Resources,Services,10/05/2017 00:00,30127719,1437,Revenue,Sense,Education Expenses
Peterborough,http://opendatacommunities.org/id/unitary-authority/peterborough,Peterborough City Council,Westcombe Engineering,Westcombe Engineering,Energy Costs,10/05/2017 00:00,30127735,870.56,Revenue,British Gas Business,Electricity
Peterborough,http://opendatacommunities.org/id/unitary-authority/peterborough,Peterborough City Council,Vivacity/Cultural Services,Cultural Services,Energy Costs,10/05/2017 00:00,30127735,889.66,Revenue,British Gas Business,Electricity
Peterborough,http://opendatacommunities.org/id/unitary-authority/peterborough,Peterborough City Council,Westcombe Engineering,Westcombe Engineering,Energy Costs,10/05/2017 00:00,30127735,1085.51,Revenue,British Gas Business,Electricity
Peterborough,http://opendatacommunities.org/id/unitary-authority/peterborough,Peterborough City Council,Adults and Communities - Communities,Housing and Health,Services,10/05/2017 00:00,30127758,507.5,Revenue,Eastfield Guesthouse,Homelessness Bed & Breakfast Costs
Peterborough,http://opendatacommunities.org/id/unitary-authority/peterborough,Peterborough City Council,Adults and Communities - Communities,Housing and Health,Services,10/05/2017 00:00,30127760,525,Revenue,Eastfield Guesthouse,Homelessness Bed & Breakfast Costs
Peterborough,http://opendatacommunities.org/id/unitary-authority/peterborough,Peterborough City Council,Adults and Communities - Communities,Housing and Health,Services,10/05/2017 00:00,30127764,507.5,Revenue,Eastfield Guesthouse,Homelessness Bed & Breakfast Costs
Peterborough,http://opendatacommunities.org/id/unitary-authority/peterborough,Peterborough City Council,Adult Services & Communities - Adults,Therapy/Reablement/Community Equipment,Agency Staff,10/05/2017 00:00,30127792,2722.5,Revenue,Sanctuary Personnel Ltd,External Temporary Staff
Peterborough,http://opendatacommunities.org/id/unitary-authority/peterborough,Peterborough City Council,Adult Services & Communities - Adults,Therapy/Reablement/Community Equipment,Agency Staff,10/05/2017 00:00,30127793,2244,Revenue,Sanctuary Personnel Ltd,External Temporary Staff
Peterborough,http://opendatacommunities.org/id/unitary-authority/peterborough,Peterborough City Council,Children's & Safeguarding,Access to Resources & Specialist Commissioning,Services,10/05/2017 00:00,30127795,27500,Revenue,Wilds Lodge School,Boarding Out Allowances
Peterborough,http://opendatacommunities.org/id/unitary-authority/peterborough,Peterborough City Council,Vivacity/Cultural Services,Cultural Services,Energy Costs,10/05/2017 00:00,30127798,1847.21,Revenue,British Gas Business,Electricity
Peterborough,http://opendatacommunities.org/id/unitary-authority/peterborough,Peterborough City Council,ICT,ICT,Services,10/05/2017 00:00,30127810,60000,Revenue,Arcus Global ltd,Computer Software
Peterborough,http://opendatacommunities.org/id/unitary-authority/peterborough,Peterborough City Council,Adult Services & Communities - Adults,Independent Sector Placements,Services,10/05/2017 00:00,30127812,7509.6,Revenue,SOCIAL CARE SOLUTIONS LTD,Home Care
Peterborough,http://opendatacommunities.org/id/unitary-authority/peterborough,Peterborough City Council,Adult Services & Communities - Adults,Independent Sector Placements,Services,10/05/2017 00:00,30127813,1870.06,Revenue,SOCIAL CARE SOLUTIONS LTD,Home Care
Peterborough,http://opendatacommunities.org/id/unitary-authority/peterborough,Peterborough City Council,Adult Services & Communities - Adults,Independent Sector Placements,Services,10/05/2017 00:00,30127814,3740.12,Revenue,SOCIAL CARE SOLUTIONS LTD,Home Care
Peterborough,http://opendatacommunities.org/id/unitary-authority/peterborough,Peterborough City Council,Adult Services & Communities - Adults,Independent Sector Placements,Services,10/05/2017 00:00,30127816,3740.12,Revenue,SOCIAL CARE SOLUTIONS LTD,Home Care
Peterborough,http://opendatacommunities.org/id/unitary-authority/peterborough,Peterborough City Council,Adult Services & Communities - Adults,Independent Sector Placements,Services,10/05/2017 00:00,30127817,3740.12,Revenue,SOCIAL CARE SOLUTIONS LTD,Home Care
Peterborough,http://opendatacommunities.org/id/unitary-authority/peterborough,Peterborough City Council,Adult Services & Communities - Adults,Independent Sector Placements,Services,10/05/2017 00:00,30127819,3740.12,Revenue,SOCIAL CARE SOLUTIONS LTD,Home Care
Peterborough,http://opendatacommunities.org/id/unitary-authority/peterborough,Peterborough City Council,Adult Services & Communities - Adults,Independent Sector Placements,Services,10/05/2017 00:00,30127820,3740.12,Revenue,SOCIAL CARE SOLUTIONS LTD,Home Care
Peterborough,http://opendatacommunities.org/id/unitary-authority/peterborough,Peterborough City Council,Adult Services & Communities - Adults,Independent Sector Placements,Services,10/05/2017 00:00,30127821,3740.12,Revenue,SOCIAL CARE SOLUTIONS LTD,Home Care
Peterborough,http://opendatacommunities.org/id/unitary-authority/peterborough,Peterborough City Council,Children's & Safeguarding,Access to Resources & Specialist Commissioning,Services,10/05/2017 00:00,30127822,1457.74,Revenue,Malcolm Sargent Primary School,Out Of Area Education Costs
Peterborough,http://opendatacommunities.org/id/unitary-authority/peterborough,Peterborough City Council,Adult Services & Communities - Adults,Independent Sector Placements,Services,10/05/2017 00:00,30127823,3903.2,Revenue,SOCIAL CARE SOLUTIONS LTD,Home Care
Peterborough,http://opendatacommunities.org/id/unitary-authority/peterborough,Peterborough City Council,Adult Services & Communities - Adults,Independent Sector Placements,Services,10/05/2017 00:00,30127824,2231.6,Revenue,SOCIAL CARE SOLUTIONS LTD,Home Care
Peterborough,http://opendatacommunities.org/id/unitary-authority/peterborough,Peterborough City Council,Children's & Safeguarding,Access to Resources & Specialist Commissioning,Services,10/05/2017 00:00,30127825,2672.5,Revenue,Malcolm Sargent Primary School,Out Of Area Education Costs
Peterborough,http://opendatacommunities.org/id/unitary-authority/peterborough,Peterborough City Council,Adult Services & Communities - Adults,Independent Sector Placements,Services,10/05/2017 00:00,30127826,1951.6,Revenue,SOCIAL CARE SOLUTIONS LTD,Home Care
Peterborough,http://opendatacommunities.org/id/unitary-authority/peterborough,Peterborough City Council,Adult Services & Communities - Adults,Independent Sector Placements,Services,10/05/2017 00:00,30127827,4463.2,Revenue,SOCIAL CARE SOLUTIONS LTD,Home Care
Peterborough,http://opendatacommunities.org/id/unitary-authority/peterborough,Peterborough City Council,Adult Services & Communities - Adults,Independent Sector Placements,Services,10/05/2017 00:00,30127829,4463.2,Revenue,SOCIAL CARE SOLUTIONS LTD,Home Care
Peterborough,http://opendatacommunities.org/id/unitary-authority/peterborough,Peterborough City Council,Adult Services & Communities - Adults,Independent Sector Placements,Services,10/05/2017 00:00,30127831,3903.2,Revenue,SOCIAL CARE SOLUTIONS LTD,Home Care
Peterborough,http://opendatacommunities.org/id/unitary-authority/peterborough,Peterborough City Council,Adult Services & Communities - Adults,Independent Sector Placements,Services,10/05/2017 00:00,30127832,3903.2,Revenue,SOCIAL CARE SOLUTIONS LTD,Home Care
Peterborough,http://opendatacommunities.org/id/unitary-authority/peterborough,Peterborough City Council,Adult Services & Communities - Adults,Independent Sector Placements,Services,10/05/2017 00:00,30127833,3903.2,Revenue,SOCIAL CARE SOLUTIONS LTD,Home Care
Peterborough,http://opendatacommunities.org/id/unitary-authority/peterborough,Peterborough City Council,Adult Services & Communities - Adults,Independent Sector Placements,Services,10/05/2017 00:00,30127834,4463.2,Revenue,SOCIAL CARE SOLUTIONS LTD,Home Care
Peterborough,http://opendatacommunities.org/id/unitary-authority/peterborough,Peterborough City Council,Adult Services & Communities - Adults,Independent Sector Placements,Services,10/05/2017 00:00,30127835,4463.2,Revenue,SOCIAL CARE SOLUTIONS LTD,Home Care
Peterborough,http://opendatacommunities.org/id/unitary-authority/peterborough,Peterborough City Council,Adult Services & Communities - Adults,Independent Sector Placements,Services,10/05/2017 00:00,30127836,3211.2,Revenue,SOCIAL CARE SOLUTIONS LTD,Home Care
Peterborough,http://opendatacommunities.org/id/unitary-authority/peterborough,Peterborough City Council,Adult Services & Communities - Adults,Independent Sector Placements,Services,10/05/2017 00:00,30127838,3211.2,Revenue,SOCIAL CARE SOLUTIONS LTD,Home Care
Peterborough,http://opendatacommunities.org/id/unitary-authority/peterborough,Peterborough City Council,Adult Services & Communities - Adults,Independent Sector Placements,Services,10/05/2017 00:00,30127839,3211.2,Revenue,SOCIAL CARE SOLUTIONS LTD,Home Care
Peterborough,http://opendatacommunities.org/id/unitary-authority/peterborough,Peterborough City Council,Adult Services & Communities - Adults,Independent Sector Placements,Services,10/05/2017 00:00,30127840,1605.6,Revenue,SOCIAL CARE SOLUTIONS LTD,Home Care
Peterborough,http://opendatacommunities.org/id/unitary-authority/peterborough,Peterborough City Council,Children's & Safeguarding,Access to Resources & Specialist Commissioning,Services,10/05/2017 00:00,30127841,4287,Revenue,Maplefields Academy,Education Expenses
Peterborough,http://opendatacommunities.org/id/unitary-authority/peterborough,Peterborough City Council,Adult Services & Communities - Adults,Independent Sector Placements,Services,10/05/2017 00:00,30127842,3211.2,Revenue,SOCIAL CARE SOLUTIONS LTD,Home Care
Peterborough,http://opendatacommunities.org/id/unitary-authority/peterborough,Peterborough City Council,Adult Services & Communities - Adults,Independent Sector Placements,Services,10/05/2017 00:00,30127843,4463.2,Revenue,SOCIAL CARE SOLUTIONS LTD,Home Care
Peterborough,http://opendatacommunities.org/id/unitary-authority/peterborough,Peterborough City Council,Adult Services & Communities - Adults,Independent Sector Placements,Services,10/05/2017 00:00,30127844,3211.2,Revenue,SOCIAL CARE SOLUTIONS LTD,Home Care
Peterborough,http://opendatacommunities.org/id/unitary-authority/peterborough,Peterborough City Council,Adult Services & Communities - Adults,Independent Sector Placements,Services,10/05/2017 00:00,30127845,3211.2,Revenue,SOCIAL CARE SOLUTIONS LTD,Home Care
Peterborough,http://opendatacommunities.org/id/unitary-authority/peterborough,Peterborough City Council,Adult Services & Communities - Adults,Independent Sector Placements,Services,10/05/2017 00:00,30127847,3903.2,Revenue,SOCIAL CARE SOLUTIONS LTD,Home Care
Peterborough,http://opendatacommunities.org/id/unitary-authority/peterborough,Peterborough City Council,Adult Services & Communities - Adults,Independent Sector Placements,Services,10/05/2017 00:00,30127848,4463.2,Revenue,SOCIAL CARE SOLUTIONS LTD,Home Care
Peterborough,http://opendatacommunities.org/id/unitary-authority/peterborough,Peterborough City Council,Adult Services & Communities - Adults,Independent Sector Placements,Services,10/05/2017 00:00,30127849,3903.2,Revenue,SOCIAL CARE SOLUTIONS LTD,Home Care
Peterborough,http://opendatacommunities.org/id/unitary-authority/peterborough,Peterborough City Council,Adult Services & Communities - Adults,Day Opportunities / In House,Agency Staff,10/05/2017 00:00,30127851,1221,Revenue,Medicare First,External Temporary Staff
Peterborough,http://opendatacommunities.org/id/unitary-authority/peterborough,Peterborough City Council,Adult Services & Communities - Adults,Day Opportunities / In House,Agency Staff,10/05/2017 00:00,30127852,1221,Revenue,Medicare First,External Temporary Staff
Peterborough,http://opendatacommunities.org/id/unitary-authority/peterborough,Peterborough City Council,Adult Services & Communities - Adults,Day Opportunities / In House,Agency Staff,10/05/2017 00:00,30127853,1221,Revenue,Medicare First,External Temporary Staff
Peterborough,http://opendatacommunities.org/id/unitary-authority/peterborough,Peterborough City Council,Adult Services & Communities - Adults,Day Opportunities / In House,Agency Staff,10/05/2017 00:00,30127854,1221,Revenue,Medicare First,External Temporary Staff
Peterborough,http://opendatacommunities.org/id/unitary-authority/peterborough,Peterborough City Council,Adult Services & Communities - Adults,Independent Sector Placements,Services,10/05/2017 00:00,30127886,890.5,Revenue,Select Support Partnerships Limited,Home Care
Peterborough,http://opendatacommunities.org/id/unitary-authority/peterborough,Peterborough City Council,Adult Services & Communities - Adults,Independent Sector Placements,Services,10/05/2017 00:00,30127887,923,Revenue,Select Support Partnerships Limited,Home Care
Peterborough,http://opendatacommunities.org/id/unitary-authority/peterborough,Peterborough City Council,Adult Services & Communities - Adults,Independent Sector Placements,Services,10/05/2017 00:00,30127888,923.2,Revenue,Select Support Partnerships Limited,Home Care
Peterborough,http://opendatacommunities.org/id/unitary-authority/peterborough,Peterborough City Council,Adult Services & Communities - Adults,Independent Sector Placements,Services,10/05/2017 00:00,30127889,910,Revenue,Select Support Partnerships Limited,Home Care
Peterborough,http://opendatacommunities.org/id/unitary-authority/peterborough,Peterborough City Council,Adult Services & Communities - Adults,Independent Sector Placements,Services,10/05/2017 00:00,30127890,2479.78,Revenue,PHILIA LODGE REST HOME,Residential Care
Peterborough,http://opendatacommunities.org/id/unitary-authority/peterborough,Peterborough City Council,Adult Services & Communities - Adults,Independent Sector Placements,Services,10/05/2017 00:00,30127891,1104.68,Revenue,Sanctuary Care Limited,Residential Care
Peterborough,http://opendatacommunities.org/id/unitary-authority/peterborough,Peterborough City Council,Education,Service Director Education,Employee Costs,10/05/2017 00:00,30127923,25990.1,Revenue,Teachers Pensions,Pensions
Peterborough,http://opendatacommunities.org/id/unitary-authority/peterborough,Peterborough City Council,Adult Services & Communities - Adults,Independent Sector Placements,Services,10/05/2017 00:00,30127927,1064.13,Revenue,Hales Group Ltd,Home Care
Peterborough,http://opendatacommunities.org/id/unitary-authority/peterborough,Peterborough City Council,Adult Services & Communities - Adults,Independent Sector Placements,Services,10/05/2017 00:00,30127928,969.2,Revenue,Hales Group Ltd,Home Care
Peterborough,http://opendatacommunities.org/id/unitary-authority/peterborough,Peterborough City Council,Adult Services & Communities - Adults,Independent Sector Placements,Services,10/05/2017 00:00,30127931,744.13,Revenue,Hales Group Ltd,Home Care
Peterborough,http://opendatacommunities.org/id/unitary-authority/peterborough,Peterborough City Council,Adult Services & Communities - Adults,Independent Sector Placements,Services,10/05/2017 00:00,30127933,891.7,Revenue,Hales Group Ltd,Home Care
Peterborough,http://opendatacommunities.org/id/unitary-authority/peterborough,Peterborough City Council,Business Management and Commercial Operations,Clare Lodge,Services,10/05/2017 00:00,30127937,2407.51,Revenue,PHS Group Plc,Hired Services
Peterborough,http://opendatacommunities.org/id/unitary-authority/peterborough,Peterborough City Council,Adult Services & Communities - Adults,Independent Sector Placements,Services,10/05/2017 00:00,30127939,1321.4,Revenue,PHILIA LODGE REST HOME,Residential Care
Peterborough,http://opendatacommunities.org/id/unitary-authority/peterborough,Peterborough City Council,Adult Services & Communities - Adults,Independent Sector Placements,Services,10/05/2017 00:00,30127941,766.4,Revenue,PHILIA LODGE REST HOME,Residential Care
Peterborough,http://opendatacommunities.org/id/unitary-authority/peterborough,Peterborough City Council,Adult Services & Communities - Adults,Independent Sector Placements,Services,10/05/2017 00:00,30127943,2648,Revenue,PHILIA LODGE REST HOME,Residential Care
Peterborough,http://opendatacommunities.org/id/unitary-authority/peterborough,Peterborough City Council,Adult Services & Communities - Adults,Independent Sector Placements,Services,10/05/2017 00:00,30127947,2021.88,Revenue,PHILIA LODGE REST HOME,Residential Care
Peterborough,http://opendatacommunities.org/id/unitary-authority/peterborough,Peterborough City Council,Adult Services & Communities - Adults,Independent Sector Placements,Services,10/05/2017 00:00,30127948,630.4,Revenue,PHILIA LODGE REST HOME,Residential Care
Peterborough,http://opendatacommunities.org/id/unitary-authority/peterborough,Peterborough City Council,Adult Services & Communities - Adults,Independent Sector Placements,Services,10/05/2017 00:00,30127950,2380,Revenue,PHILIA LODGE REST HOME,Residential Care
Peterborough,http://opendatacommunities.org/id/unitary-authority/peterborough,Peterborough City Council,Adult Services & Communities - Adults,Independent Sector Placements,Services,10/05/2017 00:00,30127952,1299.08,Revenue,PHILIA LODGE REST HOME,Residential Care
Peterborough,http://opendatacommunities.org/id/unitary-authority/peterborough,Peterborough City Council,Corporate,Corporate,Non Revenue,10/05/2017 00:00,30127975,4872,Capital,Direct Power,Building And Site Works
Peterborough,http://opendatacommunities.org/id/unitary-authority/peterborough,Peterborough City Council,HR,HR WFD & Training,Services,10/05/2017 00:00,30127976,575,Revenue,Do the Write Thing Ltd,Course Instructors Fees
Peterborough,http://opendatacommunities.org/id/unitary-authority/peterborough,Peterborough City Council,HR,HR WFD & Training,Services,10/05/2017 00:00,30127980,12300,Revenue,Reed Business Information Ltd,Subscriptions
Peterborough,http://opendatacommunities.org/id/unitary-authority/peterborough,Peterborough City Council,HR,HR WFD & Training,Services,10/05/2017 00:00,30127981,10700,Revenue,Reed Business Information Ltd,Subscriptions
Peterborough,http://opendatacommunities.org/id/unitary-authority/peterborough,Peterborough City Council,Business Management and Commercial Operations,Clare Lodge,Interview & Training Expenses,10/05/2017 00:00,30128020,904,Revenue,Hexagon Care Services,Training
Peterborough,http://opendatacommunities.org/id/unitary-authority/peterborough,Peterborough City Council,Adult Services & Communities - Adults,Independent Sector Placements,Services,10/05/2017 00:00,30128024,1612.5,Revenue,STAR RESIDENTIAL HOME LTD,Residential Care
Peterborough,http://opendatacommunities.org/id/unitary-authority/peterborough,Peterborough City Council,Adult Services & Communities - Adults,Independent Sector Placements,Services,10/05/2017 00:00,30128025,1490.16,Revenue,STAR RESIDENTIAL HOME LTD,Residential Care
Peterborough,http://opendatacommunities.org/id/unitary-authority/peterborough,Peterborough City Council,Adult Services & Communities - Adults,Independent Sector Placements,Services,10/05/2017 00:00,30128026,2598.08,Revenue,STAR RESIDENTIAL HOME LTD,Residential Care
Peterborough,http://opendatacommunities.org/id/unitary-authority/peterborough,Peterborough City Council,Adult Services & Communities - Adults,Independent Sector Placements,Services,10/05/2017 00:00,30128027,2852,Revenue,STAR RESIDENTIAL HOME LTD,Residential Care
Peterborough,http://opendatacommunities.org/id/unitary-authority/peterborough,Peterborough City Council,Adult Services & Communities - Adults,Independent Sector Placements,Services,10/05/2017 00:00,30128028,2675.32,Revenue,STAR RESIDENTIAL HOME LTD,Residential Care
Peterborough,http://opendatacommunities.org/id/unitary-authority/peterborough,Peterborough City Council,Adult Services & Communities - Adults,Independent Sector Placements,Services,10/05/2017 00:00,30128029,2507.24,Revenue,STAR RESIDENTIAL HOME LTD,Residential Care
Peterborough,http://opendatacommunities.org/id/unitary-authority/peterborough,Peterborough City Council,Adult Services & Communities - Adults,Independent Sector Placements,Services,10/05/2017 00:00,8000088858,1390.12,Revenue,Redacted Personal Information,Adult Social Care Direct Payment
Peterborough,http://opendatacommunities.org/id/unitary-authority/peterborough,Peterborough City Council,Adult Services & Communities - Adults,Independent Sector Placements,Services,10/05/2017 00:00,8000088862,2912,Revenue,Redacted Personal Information,Adult Social Care Direct Payment
Peterborough,http://opendatacommunities.org/id/unitary-authority/peterborough,Peterborough City Council,Adult Services & Communities - Adults,Independent Sector Placements,Services,10/05/2017 00:00,8000088863,2388.2,Revenue,Redacted Personal Information,Adult Social Care Direct Payment
Peterborough,http://opendatacommunities.org/id/unitary-authority/peterborough,Peterborough City Council,Adult Services & Communities - Adults,Independent Sector Placements,Services,10/05/2017 00:00,8000088866,1037.84,Revenue,Redacted Personal Information,Adult Social Care Direct Payment
Peterborough,http://opendatacommunities.org/id/unitary-authority/peterborough,Peterborough City Council,Adult Services & Communities - Adults,Independent Sector Placements,Services,10/05/2017 00:00,8000088867,1608.36,Revenue,Redacted Personal Information,Adult Social Care Direct Payment
Peterborough,http://opendatacommunities.org/id/unitary-authority/peterborough,Peterborough City Council,Adult Services & Communities - Adults,Independent Sector Placements,Services,10/05/2017 00:00,8000088869,644,Revenue,Redacted Personal Information,Adult Social Care Direct Payment
Peterborough,http://opendatacommunities.org/id/unitary-authority/peterborough,Peterborough City Council,Adult Services & Communities - Adults,Independent Sector Placements,Services,10/05/2017 00:00,8000088870,949.84,Revenue,Redacted Personal Information,Adult Social Care Direct Payment
Peterborough,http://opendatacommunities.org/id/unitary-authority/peterborough,Peterborough City Council,Adult Services & Communities - Adults,Independent Sector Placements,Services,10/05/2017 00:00,8000088871,2740.48,Revenue,Redacted Personal Information,Adult Social Care Direct Payment
Peterborough,http://opendatacommunities.org/id/unitary-authority/peterborough,Peterborough City Council,Adult Services & Communities - Adults,Independent Sector Placements,Services,10/05/2017 00:00,8000088872,606.6,Revenue,Redacted Personal Information,Adult Social Care Direct Payment
Peterborough,http://opendatacommunities.org/id/unitary-authority/peterborough,Peterborough City Council,Adult Services & Communities - Adults,Independent Sector Placements,Services,10/05/2017 00:00,8000088873,1090.92,Revenue,Redacted Personal Information,Adult Social Care Direct Payment
Peterborough,http://opendatacommunities.org/id/unitary-authority/peterborough,Peterborough City Council,Adult Services & Communities - Adults,Independent Sector Placements,Services,10/05/2017 00:00,8000088874,1303.04,Revenue,Redacted Personal Information,Adult Social Care Direct Payment
Peterborough,http://opendatacommunities.org/id/unitary-authority/peterborough,Peterborough City Council,Adult Services & Communities - Adults,Independent Sector Placements,Services,10/05/2017 00:00,8000088875,806.48,Revenue,Redacted Personal Information,Adult Social Care Direct Payment
Peterborough,http://opendatacommunities.org/id/unitary-authority/peterborough,Peterborough City Council,Adult Services & Communities - Adults,Independent Sector Placements,Services,10/05/2017 00:00,8000088877,858.48,Revenue,Redacted Personal Information,Adult Social Care Direct Payment
Peterborough,http://opendatacommunities.org/id/unitary-authority/peterborough,Peterborough City Council,Adult Services & Communities - Adults,Independent Sector Placements,Services,10/05/2017 00:00,8000088879,544.8,Revenue,Redacted Personal Information,Adult Social Care Direct Payment
Peterborough,http://opendatacommunities.org/id/unitary-authority/peterborough,Peterborough City Council,Adult Services & Communities - Adults,Independent Sector Placements,Services,10/05/2017 00:00,8000088881,748.04,Revenue,Redacted Personal Information,Adult Social Care Direct Payment
Peterborough,http://opendatacommunities.org/id/unitary-authority/peterborough,Peterborough City Council,Adult Services & Communities - Adults,Independent Sector Placements,Services,10/05/2017 00:00,8000088883,1407.4,Revenue,Redacted Personal Information,Adult Social Care Direct Payment
Peterborough,http://opendatacommunities.org/id/unitary-authority/peterborough,Peterborough City Council,Adult Services & Communities - Adults,Independent Sector Placements,Services,10/05/2017 00:00,8000088884,644,Revenue,Redacted Personal Information,Adult Social Care Direct Payment
Peterborough,http://opendatacommunities.org/id/unitary-authority/peterborough,Peterborough City Council,Adult Services & Communities - Adults,Independent Sector Placements,Services,10/05/2017 00:00,8000088885,1629.88,Revenue,Redacted Personal Information,Adult Social Care Direct Payment
Peterborough,http://opendatacommunities.org/id/unitary-authority/peterborough,Peterborough City Council,Adult Services & Communities - Adults,Independent Sector Placements,Services,10/05/2017 00:00,8000088890,6124.16,Revenue,Redacted Personal Information,Adult Social Care Direct Payment
